Organisation Code,Organisation Label,Effective Date,Organisational Unit,Service Division Label,Category Internal Name,Purpose,Detailed Expenditure Code,Payment Date,Transaction Number,Irrecoverable VAT Amount,Amount,Capital Or Revenue,Beneficiary Name,Procurement Card
Http://opendatacommunities.org/id/metropolitan-district-council/leeds,Leeds City Council,31/07/2023,Adults and Health,Services For Older People Under 65 P/Dis,Agency Payments,Sheltered Accommodation,569,19/07/2023,2307-00001,0.00,5400.00,R,A & V TRANSITIONAL HOMES,No
Http://opendatacommunities.org/id/metropolitan-district-council/leeds,Leeds City Council,31/07/2023,Children and Families,Social Care,Agency Payments,Placement Support,550,13/07/2023,2307-00002,0.00,300.00,R,REDACTED PERSONAL DATA,No
Http://opendatacommunities.org/id/metropolitan-district-council/leeds,Leeds City Council,31/07/2023,City Development,Libraries Arts & Heritage,Supplies and Services,Operational Furniture And Equipment,203,28/07/2023,2307-00003,0.00,45.00,R,A C Entertainment Technologies Ltd,No
Http://opendatacommunities.org/id/metropolitan-district-council/leeds,Leeds City Council,31/07/2023,Strategic Landlord,HRA Housing Leeds,Capital,CONSTRUCTION,3,28/07/2023,2307-00004,0.00,170795.23,C,A Connolly Limited,No
Http://opendatacommunities.org/id/metropolitan-district-council/leeds,Leeds City Council,31/07/2023,Strategy and Resources,Leeds Building Services,Supplies and Services,Other Hired And Contracted Services,265,06/07/2023,2307-00005,0.00,6566.63,R,A Coole Electrical Ltd,No
Http://opendatacommunities.org/id/metropolitan-district-council/leeds,Leeds City Council,31/07/2023,Strategy and Resources,Leeds Building Services,Supplies and Services,Other Hired And Contracted Services,265,13/07/2023,2307-00006,0.00,3612.90,R,A Coole Electrical Ltd,No
Http://opendatacommunities.org/id/metropolitan-district-council/leeds,Leeds City Council,31/07/2023,Strategy and Resources,Leeds Building Services,Supplies and Services,Other Hired And Contracted Services,265,14/07/2023,2307-00007,0.00,35371.03,R,A Coole Electrical Ltd,No
Http://opendatacommunities.org/id/metropolitan-district-council/leeds,Leeds City Council,31/07/2023,Strategy and Resources,Leeds Building Services,Supplies and Services,Other Hired And Contracted Services,265,21/07/2023,2307-00008,0.00,4678.97,R,A Coole Electrical Ltd,No
Http://opendatacommunities.org/id/metropolitan-district-council/leeds,Leeds City Council,31/07/2023,Strategy and Resources,Leeds Building Services,Supplies and Services,Other Hired And Contracted Services,265,21/07/2023,2307-00009,0.00,7496.16,R,A Coole Electrical Ltd,No
Http://opendatacommunities.org/id/metropolitan-district-council/leeds,Leeds City Council,31/07/2023,Strategy and Resources,Leeds Building Services,Supplies and Services,Other Hired And Contracted Services,265,27/07/2023,2307-00010,0.00,5034.52,R,A Coole Electrical Ltd,No
Http://opendatacommunities.org/id/metropolitan-district-council/leeds,Leeds City Council,31/07/2023,Strategy and Resources,Leeds Building Services,Supplies and Services,Other Hired And Contracted Services,265,28/07/2023,2307-00011,0.00,1950.02,R,A Coole Electrical Ltd,No
Http://opendatacommunities.org/id/metropolitan-district-council/leeds,Leeds City Council,31/07/2023,Communities Housing and Environment,Customer Access,Supplies and Services,Bought In Professional Services,277,05/07/2023,2307-00012,0.00,36.00,R,REDACTED COMMERCIAL CONFIDENTIALITY,No
Http://opendatacommunities.org/id/metropolitan-district-council/leeds,Leeds City Council,31/07/2023,Communities Housing and Environment,Customer Access,Supplies and Services,Bought In Professional Services,277,05/07/2023,2307-00013,0.00,27.00,R,REDACTED COMMERCIAL CONFIDENTIALITY,No
Http://opendatacommunities.org/id/metropolitan-district-council/leeds,Leeds City Council,31/07/2023,Communities Housing and Environment,Customer Access,Supplies and Services,Bought In Professional Services,277,05/07/2023,2307-00014,0.00,18.00,R,REDACTED COMMERCIAL CONFIDENTIALITY,No
Http://opendatacommunities.org/id/metropolitan-district-council/leeds,Leeds City Council,31/07/2023,Communities Housing and Environment,Customer Access,Supplies and Services,Bought In Professional Services,277,12/07/2023,2307-00015,0.00,18.00,R,REDACTED COMMERCIAL CONFIDENTIALITY,No
Http://opendatacommunities.org/id/metropolitan-district-council/leeds,Leeds City Council,31/07/2023,Communities Housing and Environment,Customer Access,Supplies and Services,Bought In Professional Services,277,12/07/2023,2307-00016,0.00,18.00,R,REDACTED COMMERCIAL CONFIDENTIALITY,No
Http://opendatacommunities.org/id/metropolitan-district-council/leeds,Leeds City Council,31/07/2023,Communities Housing and Environment,Customer Access,Supplies and Services,Bought In Professional Services,277,19/07/2023,2307-00017,0.00,18.00,R,REDACTED COMMERCIAL CONFIDENTIALITY,No
Http://opendatacommunities.org/id/metropolitan-district-council/leeds,Leeds City Council,31/07/2023,Communities Housing and Environment,Customer Access,Supplies and Services,Bought In Professional Services,277,19/07/2023,2307-00018,0.00,27.00,R,REDACTED COMMERCIAL CONFIDENTIALITY,No
Http://opendatacommunities.org/id/metropolitan-district-council/leeds,Leeds City Council,31/07/2023,Communities Housing and Environment,Customer Access,Supplies and Services,Bought In Professional Services,277,19/07/2023,2307-00019,0.00,39.00,R,REDACTED COMMERCIAL CONFIDENTIALITY,No
Http://opendatacommunities.org/id/metropolitan-district-council/leeds,Leeds City Council,31/07/2023,Communities Housing and Environment,Customer Access,Supplies and Services,Bought In Professional Services,277,26/07/2023,2307-00020,0.00,18.00,R,REDACTED COMMERCIAL CONFIDENTIALITY,No
Http://opendatacommunities.org/id/metropolitan-district-council/leeds,Leeds City Council,31/07/2023,Communities Housing and Environment,Customer Access,Supplies and Services,Bought In Professional Services,277,26/07/2023,2307-00021,0.00,18.00,R,REDACTED COMMERCIAL CONFIDENTIALITY,No
Http://opendatacommunities.org/id/metropolitan-district-council/leeds,Leeds City Council,31/07/2023,Communities Housing and Environment,Customer Access,Supplies and Services,Bought In Professional Services,277,26/07/2023,2307-00022,0.00,27.00,R,REDACTED COMMERCIAL CONFIDENTIALITY,No
Http://opendatacommunities.org/id/metropolitan-district-council/leeds,Leeds City Council,31/07/2023,Children and Families,Social Care,Agency Payments,Services Rendered By Voluntary Sector,505,05/07/2023,2307-00023,0.00,1144.65,R,REDACTED PERSONAL DATA,No
Http://opendatacommunities.org/id/metropolitan-district-council/leeds,Leeds City Council,31/07/2023,Children and Families,Social Care,Agency Payments,Services Rendered By Other Organisations,511,07/07/2023,2307-00024,0.00,8788.11,R,REDACTED PERSONAL DATA,No
Http://opendatacommunities.org/id/metropolitan-district-council/leeds,Leeds City Council,31/07/2023,Children and Families,Social Care,Agency Payments,Services Rendered By Other Organisations,511,05/07/2023,2307-00025,0.00,228.93,R,REDACTED PERSONAL DATA,No
Http://opendatacommunities.org/id/metropolitan-district-council/leeds,Leeds City Council,31/07/2023,Children and Families,Social Care,Agency Payments,Services Rendered By Other Organisations,511,07/07/2023,2307-00026,0.00,147.60,R,REDACTED PERSONAL DATA,No
Http://opendatacommunities.org/id/metropolitan-district-council/leeds,Leeds City Council,31/07/2023,Children and Families,Social Care,Agency Payments,Services Rendered By Other Organisations,511,07/07/2023,2307-00027,0.00,530.87,R,REDACTED PERSONAL DATA,No
Http://opendatacommunities.org/id/metropolitan-district-council/leeds,Leeds City Council,31/07/2023,Adults and Health,Other Generic Services,Agency Payments,Fees To Carers,563,07/07/2023,2307-00028,0.00,93.82,R,REDACTED PERSONAL DATA,No
Http://opendatacommunities.org/id/metropolitan-district-council/leeds,Leeds City Council,31/07/2023,Adults and Health,Other Generic Services,Agency Payments,Fees To Carers,563,14/07/2023,2307-00029,0.00,548.05,R,REDACTED PERSONAL DATA,No
Http://opendatacommunities.org/id/metropolitan-district-council/leeds,Leeds City Council,31/07/2023,Adults and Health,Other Generic Services,Agency Payments,Fees To Carers,563,14/07/2023,2307-00030,0.00,50.40,R,REDACTED PERSONAL DATA,No
Http://opendatacommunities.org/id/metropolitan-district-council/leeds,Leeds City Council,31/07/2023,Adults and Health,Other Generic Services,Agency Payments,Fees To Carers,563,14/07/2023,2307-00031,0.00,140.73,R,REDACTED PERSONAL DATA,No
Http://opendatacommunities.org/id/metropolitan-district-council/leeds,Leeds City Council,31/07/2023,Adults and Health,Other Generic Services,Agency Payments,Fees To Carers,563,28/07/2023,2307-00032,0.00,93.82,R,REDACTED PERSONAL DATA,No
Http://opendatacommunities.org/id/metropolitan-district-council/leeds,Leeds City Council,31/07/2023,Strategy and Resources,Leeds Building Services ,Supplies and Services,Operational Materials,205,15/06/2023,2307-00033,0.00,31.67,R,A J Access Platforms Limi,Yes
Http://opendatacommunities.org/id/metropolitan-district-council/leeds,Leeds City Council,31/07/2023,Strategy and Resources,Leeds Building Services,Supplies and Services,Operational Materials,205,07/07/2023,2307-00034,0.00,2675.00,R,A J H  Pump Supply & Repair Ltd,No
Http://opendatacommunities.org/id/metropolitan-district-council/leeds,Leeds City Council,31/07/2023,Strategy and Resources,Leeds Building Services,Supplies and Services,Operational Materials,205,07/07/2023,2307-00035,0.00,995.00,R,A J H  Pump Supply & Repair Ltd,No
Http://opendatacommunities.org/id/metropolitan-district-council/leeds,Leeds City Council,31/07/2023,Strategy and Resources,Leeds Building Services,Supplies and Services,Operational Materials,205,07/07/2023,2307-00036,0.00,175.00,R,A J H  Pump Supply & Repair Ltd,No
Http://opendatacommunities.org/id/metropolitan-district-council/leeds,Leeds City Council,31/07/2023,Strategy and Resources,Leeds Building Services,Supplies and Services,Operational Materials,205,21/07/2023,2307-00037,0.00,1718.00,R,A J H  Pump Supply & Repair Ltd,No
Http://opendatacommunities.org/id/metropolitan-district-council/leeds,Leeds City Council,31/07/2023,Strategy and Resources,Leeds Building Services,Supplies and Services,Operational Materials,205,25/07/2023,2307-00038,0.00,998.00,R,A J H  Pump Supply & Repair Ltd,No
Http://opendatacommunities.org/id/metropolitan-district-council/leeds,Leeds City Council,31/07/2023,Strategy and Resources,Leeds Building Services,Supplies and Services,Operational Materials,205,27/07/2023,2307-00039,0.00,114.00,R,A J H  Pump Supply & Repair Ltd,No
Http://opendatacommunities.org/id/metropolitan-district-council/leeds,Leeds City Council,31/07/2023,Communities Housing and Environment,Climate Energy & Greenspaces,Supplies and Services,Resaleable Materials,204,05/07/2023,2307-00040,0.00,374.32,R,A J PROMOTIONS,No
Http://opendatacommunities.org/id/metropolitan-district-council/leeds,Leeds City Council,31/07/2023,Communities Housing and Environment,Climate Energy & Greenspaces,Supplies and Services,Resaleable Materials,204,07/07/2023,2307-00041,0.00,1723.50,R,A J PROMOTIONS,No
Http://opendatacommunities.org/id/metropolitan-district-council/leeds,Leeds City Council,31/07/2023,Communities Housing and Environment,Climate Energy & Greenspaces,Supplies and Services,Resaleable Materials,204,07/07/2023,2307-00042,0.00,360.00,R,A J PROMOTIONS,No
Http://opendatacommunities.org/id/metropolitan-district-council/leeds,Leeds City Council,31/07/2023,Children and Families,Social Care,Agency Payments,Services Rendered By Other Organisations,511,07/07/2023,2307-00043,0.00,1151.28,R,REDACTED PERSONAL DATA,No
Http://opendatacommunities.org/id/metropolitan-district-council/leeds,Leeds City Council,31/07/2023,Children and Families,Social Care,Supplies and Services,Teaching Materials,202,13/07/2023,2307-00044,0.00,864.00,R,A L Dalton Limited,No
Http://opendatacommunities.org/id/metropolitan-district-council/leeds,Leeds City Council,31/07/2023,Children and Families,Social Care,Employees,Agency Staff,8,17/07/2023,2307-00045,0.00,-312.00,R,A Little Something Extra Ltd,No
Http://opendatacommunities.org/id/metropolitan-district-council/leeds,Leeds City Council,31/07/2023,Children and Families,Social Care,Employees,Agency Staff,8,17/07/2023,2307-00046,0.00,1608.75,R,A Little Something Extra Ltd,No
Http://opendatacommunities.org/id/metropolitan-district-council/leeds,Leeds City Council,31/07/2023,Children and Families,Social Care,Employees,Agency Staff,8,17/07/2023,2307-00047,0.00,624.00,R,A Little Something Extra Ltd,No
Http://opendatacommunities.org/id/metropolitan-district-council/leeds,Leeds City Council,31/07/2023,Children and Families,Social Care,Employees,Agency Staff,8,27/07/2023,2307-00048,0.00,136.50,R,A Little Something Extra Ltd,No
Http://opendatacommunities.org/id/metropolitan-district-council/leeds,Leeds City Council,31/07/2023,Children and Families,Social Care,Employees,Agency Staff,8,27/07/2023,2307-00049,0.00,858.00,R,A Little Something Extra Ltd,No
Http://opendatacommunities.org/id/metropolitan-district-council/leeds,Leeds City Council,31/07/2023,Strategic Landlord,Housing Management,Supplies and Services,Compensation Claims,200,21/07/2023,2307-00050,0.00,50.00,R,REDACTED PERSONAL DATA,No
Http://opendatacommunities.org/id/metropolitan-district-council/leeds,Leeds City Council,31/07/2023,Children and Families,Social Care,Agency Payments,Services Rendered By Other Organisations,511,05/07/2023,2307-00051,0.00,686.79,R,REDACTED PERSONAL DATA,No
Http://opendatacommunities.org/id/metropolitan-district-council/leeds,Leeds City Council,31/07/2023,Children and Families,Social Care,Agency Payments,Services Rendered By Other Organisations,511,07/07/2023,2307-00052,0.00,1535.04,R,REDACTED PERSONAL DATA,No
Http://opendatacommunities.org/id/metropolitan-district-council/leeds,Leeds City Council,31/07/2023,Communities Housing and Environment,Customer Access,Supplies and Services,Bought In Professional Services,277,05/07/2023,2307-00053,0.00,18.00,R,A NAMAKI,No
Http://opendatacommunities.org/id/metropolitan-district-council/leeds,Leeds City Council,31/07/2023,Communities Housing and Environment,Customer Access,Supplies and Services,Bought In Professional Services,277,05/07/2023,2307-00054,0.00,18.00,R,A NAMAKI,No
Http://opendatacommunities.org/id/metropolitan-district-council/leeds,Leeds City Council,31/07/2023,Communities Housing and Environment,Customer Access,Supplies and Services,Bought In Professional Services,277,05/07/2023,2307-00055,0.00,18.00,R,A NAMAKI,No
Http://opendatacommunities.org/id/metropolitan-district-council/leeds,Leeds City Council,31/07/2023,Communities Housing and Environment,Customer Access,Supplies and Services,Bought In Professional Services,277,05/07/2023,2307-00056,0.00,102.00,R,A NAMAKI,No
Http://opendatacommunities.org/id/metropolitan-district-council/leeds,Leeds City Council,31/07/2023,Communities Housing and Environment,Customer Access,Supplies and Services,Bought In Professional Services,277,05/07/2023,2307-00057,0.00,18.00,R,A NAMAKI,No
Http://opendatacommunities.org/id/metropolitan-district-council/leeds,Leeds City Council,31/07/2023,Communities Housing and Environment,Customer Access,Supplies and Services,Bought In Professional Services,277,05/07/2023,2307-00058,0.00,108.00,R,A NAMAKI,No
Http://opendatacommunities.org/id/metropolitan-district-council/leeds,Leeds City Council,31/07/2023,Communities Housing and Environment,Customer Access,Supplies and Services,Bought In Professional Services,277,05/07/2023,2307-00059,0.00,18.00,R,A NAMAKI,No
Http://opendatacommunities.org/id/metropolitan-district-council/leeds,Leeds City Council,31/07/2023,Communities Housing and Environment,Customer Access,Supplies and Services,Bought In Professional Services,277,05/07/2023,2307-00060,0.00,27.00,R,A NAMAKI,No
Http://opendatacommunities.org/id/metropolitan-district-council/leeds,Leeds City Council,31/07/2023,Communities Housing and Environment,Customer Access,Supplies and Services,Bought In Professional Services,277,12/07/2023,2307-00061,0.00,18.00,R,A NAMAKI,No
Http://opendatacommunities.org/id/metropolitan-district-council/leeds,Leeds City Council,31/07/2023,Communities Housing and Environment,Customer Access,Supplies and Services,Bought In Professional Services,277,12/07/2023,2307-00062,0.00,18.00,R,A NAMAKI,No
Http://opendatacommunities.org/id/metropolitan-district-council/leeds,Leeds City Council,31/07/2023,Communities Housing and Environment,Customer Access,Supplies and Services,Bought In Professional Services,277,12/07/2023,2307-00063,0.00,108.00,R,A NAMAKI,No
Http://opendatacommunities.org/id/metropolitan-district-council/leeds,Leeds City Council,31/07/2023,Communities Housing and Environment,Customer Access,Supplies and Services,Bought In Professional Services,277,12/07/2023,2307-00064,0.00,18.00,R,A NAMAKI,No
Http://opendatacommunities.org/id/metropolitan-district-council/leeds,Leeds City Council,31/07/2023,Communities Housing and Environment,Customer Access,Supplies and Services,Bought In Professional Services,277,12/07/2023,2307-00065,0.00,54.00,R,A NAMAKI,No
Http://opendatacommunities.org/id/metropolitan-district-council/leeds,Leeds City Council,31/07/2023,Communities Housing and Environment,Customer Access,Supplies and Services,Bought In Professional Services,277,12/07/2023,2307-00066,0.00,18.00,R,A NAMAKI,No
Http://opendatacommunities.org/id/metropolitan-district-council/leeds,Leeds City Council,31/07/2023,Communities Housing and Environment,Customer Access,Supplies and Services,Bought In Professional Services,277,12/07/2023,2307-00067,0.00,18.00,R,A NAMAKI,No
Http://opendatacommunities.org/id/metropolitan-district-council/leeds,Leeds City Council,31/07/2023,Communities Housing and Environment,Customer Access,Supplies and Services,Bought In Professional Services,277,19/07/2023,2307-00068,0.00,108.00,R,A NAMAKI,No
Http://opendatacommunities.org/id/metropolitan-district-council/leeds,Leeds City Council,31/07/2023,Communities Housing and Environment,Customer Access,Supplies and Services,Bought In Professional Services,277,19/07/2023,2307-00069,0.00,27.00,R,A NAMAKI,No
Http://opendatacommunities.org/id/metropolitan-district-council/leeds,Leeds City Council,31/07/2023,Communities Housing and Environment,Customer Access,Supplies and Services,Bought In Professional Services,277,19/07/2023,2307-00070,0.00,108.00,R,A NAMAKI,No
Http://opendatacommunities.org/id/metropolitan-district-council/leeds,Leeds City Council,31/07/2023,Communities Housing and Environment,Customer Access,Supplies and Services,Bought In Professional Services,277,19/07/2023,2307-00071,0.00,54.00,R,A NAMAKI,No
Http://opendatacommunities.org/id/metropolitan-district-council/leeds,Leeds City Council,31/07/2023,Communities Housing and Environment,Customer Access,Supplies and Services,Bought In Professional Services,277,19/07/2023,2307-00072,0.00,18.00,R,A NAMAKI,No
Http://opendatacommunities.org/id/metropolitan-district-council/leeds,Leeds City Council,31/07/2023,Communities Housing and Environment,Customer Access,Supplies and Services,Bought In Professional Services,277,19/07/2023,2307-00073,0.00,18.00,R,A NAMAKI,No
Http://opendatacommunities.org/id/metropolitan-district-council/leeds,Leeds City Council,31/07/2023,Communities Housing and Environment,Customer Access,Supplies and Services,Bought In Professional Services,277,19/07/2023,2307-00074,0.00,18.00,R,A NAMAKI,No
Http://opendatacommunities.org/id/metropolitan-district-council/leeds,Leeds City Council,31/07/2023,Communities Housing and Environment,Customer Access,Supplies and Services,Bought In Professional Services,277,19/07/2023,2307-00075,0.00,18.00,R,A NAMAKI,No
Http://opendatacommunities.org/id/metropolitan-district-council/leeds,Leeds City Council,31/07/2023,Communities Housing and Environment,Customer Access,Supplies and Services,Bought In Professional Services,277,26/07/2023,2307-00076,0.00,108.00,R,A NAMAKI,No
Http://opendatacommunities.org/id/metropolitan-district-council/leeds,Leeds City Council,31/07/2023,Communities Housing and Environment,Customer Access,Supplies and Services,Bought In Professional Services,277,26/07/2023,2307-00077,0.00,108.00,R,A NAMAKI,No
Http://opendatacommunities.org/id/metropolitan-district-council/leeds,Leeds City Council,31/07/2023,Communities Housing and Environment,Customer Access,Supplies and Services,Bought In Professional Services,277,26/07/2023,2307-00078,0.00,54.00,R,A NAMAKI,No
Http://opendatacommunities.org/id/metropolitan-district-council/leeds,Leeds City Council,31/07/2023,Communities Housing and Environment,Customer Access,Supplies and Services,Bought In Professional Services,277,26/07/2023,2307-00079,0.00,18.00,R,A NAMAKI,No
Http://opendatacommunities.org/id/metropolitan-district-council/leeds,Leeds City Council,31/07/2023,Communities Housing and Environment,Customer Access,Supplies and Services,Bought In Professional Services,277,26/07/2023,2307-00080,0.00,18.00,R,A NAMAKI,No
Http://opendatacommunities.org/id/metropolitan-district-council/leeds,Leeds City Council,31/07/2023,Children and Families,Social Care,Agency Payments,Services Rendered By Other Organisations,511,07/07/2023,2307-00081,0.00,383.76,R,REDACTED PERSONAL DATA,No
Http://opendatacommunities.org/id/metropolitan-district-council/leeds,Leeds City Council,31/07/2023,Communities Housing and Environment,Climate Energy & Greenspaces,Supplies and Services,Other Hired And Contracted Services,265,07/07/2023,2307-00082,0.00,1357.62,R,A NICHOLLS,No
Http://opendatacommunities.org/id/metropolitan-district-council/leeds,Leeds City Council,31/07/2023,Strategic Landlord,HRA Housing Leeds,Capital,OTHER COSTS,7,07/07/2023,2307-00083,0.00,100.00,C,REDACTED PERSONAL DATA,No
Http://opendatacommunities.org/id/metropolitan-district-council/leeds,Leeds City Council,31/07/2023,Children and Families,Social Care,Agency Payments,Services Rendered By Other Organisations,511,05/07/2023,2307-00084,0.00,457.86,R,REDACTED PERSONAL DATA,No
Http://opendatacommunities.org/id/metropolitan-district-council/leeds,Leeds City Council,31/07/2023,Strategy and Resources,Shared Services,Supplies and Services,Other Hired And Contracted Services,265,03/07/2023,2307-00085,0.00,90.00,R,A Star Couriers Ltd,No
Http://opendatacommunities.org/id/metropolitan-district-council/leeds,Leeds City Council,31/07/2023,Communities Housing and Environment,Waste Management,Employees,Training & Development,70,06/07/2023,2307-00086,0.00,339.80,R,A T Nerac Ltd,No
Http://opendatacommunities.org/id/metropolitan-district-council/leeds,Leeds City Council,31/07/2023,Communities Housing and Environment,Waste Management,Employees,Training & Development,70,28/07/2023,2307-00087,0.00,211.80,R,A T Nerac Ltd,No
Http://opendatacommunities.org/id/metropolitan-district-council/leeds,Leeds City Council,31/07/2023,Children and Families,Social Care,Agency Payments,Services Rendered By Other Organisations,511,05/07/2023,2307-00088,0.00,228.93,R,REDACTED PERSONAL DATA,No
Http://opendatacommunities.org/id/metropolitan-district-council/leeds,Leeds City Council,31/07/2023,Communities Housing and Environment,Waste Management,Capital,FURNITURE AND EQUIPMENT,5,05/07/2023,2307-00089,0.00,5125.00,C,A&C Weber Uk Ltd,No
Http://opendatacommunities.org/id/metropolitan-district-council/leeds,Leeds City Council,31/07/2023,Communities Housing and Environment,Waste Management,Capital,FURNITURE AND EQUIPMENT,5,05/07/2023,2307-00090,0.00,5900.00,C,A&C Weber Uk Ltd,No
Http://opendatacommunities.org/id/metropolitan-district-council/leeds,Leeds City Council,31/07/2023,Strategic Accounts,Miscellaneous,Supplies and Services,Non-Recurring Grants,227,24/07/2023,2307-00091,0.00,100.00,R,A&T Office Admin Solutions,No
Http://opendatacommunities.org/id/metropolitan-district-council/leeds,Leeds City Council,31/07/2023,Strategy and Resources,Leeds Building Services,Supplies and Services,Operational Materials,205,07/07/2023,2307-00092,0.00,84.00,R,A1 STAIR LIFT SERVICES,No
Http://opendatacommunities.org/id/metropolitan-district-council/leeds,Leeds City Council,31/07/2023,Strategy and Resources,Leeds Building Services,Supplies and Services,Operational Materials,205,21/07/2023,2307-00093,0.00,110.00,R,A1 STAIR LIFT SERVICES,No
Http://opendatacommunities.org/id/metropolitan-district-council/leeds,Leeds City Council,31/07/2023,Strategy and Resources,Leeds Building Services,Supplies and Services,Operational Materials,205,21/07/2023,2307-00094,0.00,134.50,R,A1 STAIR LIFT SERVICES,No
Http://opendatacommunities.org/id/metropolitan-district-council/leeds,Leeds City Council,31/07/2023,City Development,Recreation ,Supplies and Services,Operational Furniture And Equipment,203,31/05/2023,2307-00095,0.00,45.43,R,Aal Ltd,Yes
Http://opendatacommunities.org/id/metropolitan-district-council/leeds,Leeds City Council,31/07/2023,Children and Families,Social Care,Internal Recharges,Legal Disbursements,411,21/07/2023,2307-00096,0.00,575.00,R,Aaqib Javed,No
Http://opendatacommunities.org/id/metropolitan-district-council/leeds,Leeds City Council,31/07/2023,Adults and Health,Services For Older People - 65 And Over,Agency Payments,Residential Care Dementia,571,19/07/2023,2307-00097,0.00,2469.52,R,Aaron Court Care Home,No
Http://opendatacommunities.org/id/metropolitan-district-council/leeds,Leeds City Council as Accountable Body,31/07/2023,Social Services Pooled Budgets,Leeds Community Equip Store Pooled Budgt,Supplies and Services,Other Equipment,203,14/07/2023,2307-00098,0.00,1100.00,R,AAT (GB) LTD,No
Http://opendatacommunities.org/id/metropolitan-district-council/leeds,Leeds City Council as Accountable Body,31/07/2023,Social Services Pooled Budgets,Leeds Community Equip Store Pooled Budgt,Supplies and Services,Other Equipment,203,14/07/2023,2307-00099,0.00,1029.00,R,AAT (GB) LTD,No
Http://opendatacommunities.org/id/metropolitan-district-council/leeds,Leeds City Council as Accountable Body,31/07/2023,Social Services Pooled Budgets,Leeds Community Equip Store Pooled Budgt,Supplies and Services,Other Equipment,203,14/07/2023,2307-00100,0.00,289.00,R,AAT (GB) LTD,No
Http://opendatacommunities.org/id/metropolitan-district-council/leeds,Leeds City Council as Accountable Body,31/07/2023,Social Services Pooled Budgets,Leeds Community Equip Store Pooled Budgt,Supplies and Services,Other Equipment,203,28/07/2023,2307-00101,0.00,1780.00,R,AAT (GB) LTD,No
Http://opendatacommunities.org/id/metropolitan-district-council/leeds,Leeds City Council,31/07/2023,Communities Housing and Environment,Car Parking Services ,Supplies and Services,Postages,212,26/06/2023,2307-00102,0.00,23.00,R,Abacus Express,Yes
Http://opendatacommunities.org/id/metropolitan-district-council/leeds,Leeds City Council,31/07/2023,Communities Housing and Environment,Customer Access,Supplies and Services,Bought In Professional Services,277,05/07/2023,2307-00103,0.00,18.00,R,Abadit Kiros,No
Http://opendatacommunities.org/id/metropolitan-district-council/leeds,Leeds City Council,31/07/2023,Communities Housing and Environment,Customer Access,Supplies and Services,Bought In Professional Services,277,05/07/2023,2307-00104,0.00,36.00,R,Abadit Kiros,No
Http://opendatacommunities.org/id/metropolitan-district-council/leeds,Leeds City Council,31/07/2023,Communities Housing and Environment,Customer Access,Supplies and Services,Bought In Professional Services,277,05/07/2023,2307-00105,0.00,18.00,R,Abadit Kiros,No
Http://opendatacommunities.org/id/metropolitan-district-council/leeds,Leeds City Council,31/07/2023,Communities Housing and Environment,Customer Access,Supplies and Services,Bought In Professional Services,277,05/07/2023,2307-00106,0.00,18.00,R,Abadit Kiros,No
Http://opendatacommunities.org/id/metropolitan-district-council/leeds,Leeds City Council,31/07/2023,Communities Housing and Environment,Customer Access,Supplies and Services,Bought In Professional Services,277,05/07/2023,2307-00107,0.00,9.00,R,Abadit Kiros,No
Http://opendatacommunities.org/id/metropolitan-district-council/leeds,Leeds City Council,31/07/2023,Communities Housing and Environment,Customer Access,Supplies and Services,Bought In Professional Services,277,05/07/2023,2307-00108,0.00,24.00,R,Abadit Kiros,No
Http://opendatacommunities.org/id/metropolitan-district-council/leeds,Leeds City Council,31/07/2023,Communities Housing and Environment,Customer Access,Supplies and Services,Bought In Professional Services,277,12/07/2023,2307-00109,0.00,27.00,R,Abadit Kiros,No
Http://opendatacommunities.org/id/metropolitan-district-council/leeds,Leeds City Council,31/07/2023,Communities Housing and Environment,Customer Access,Supplies and Services,Bought In Professional Services,277,12/07/2023,2307-00110,0.00,18.00,R,Abadit Kiros,No
Http://opendatacommunities.org/id/metropolitan-district-council/leeds,Leeds City Council,31/07/2023,Communities Housing and Environment,Customer Access,Supplies and Services,Bought In Professional Services,277,19/07/2023,2307-00111,0.00,18.00,R,Abadit Kiros,No
Http://opendatacommunities.org/id/metropolitan-district-council/leeds,Leeds City Council,31/07/2023,Communities Housing and Environment,Customer Access,Supplies and Services,Bought In Professional Services,277,19/07/2023,2307-00112,0.00,24.00,R,Abadit Kiros,No
Http://opendatacommunities.org/id/metropolitan-district-council/leeds,Leeds City Council,31/07/2023,Communities Housing and Environment,Customer Access,Supplies and Services,Bought In Professional Services,277,26/07/2023,2307-00113,0.00,18.00,R,Abadit Kiros,No
Http://opendatacommunities.org/id/metropolitan-district-council/leeds,Leeds City Council,31/07/2023,Communities Housing and Environment,Customer Access,Supplies and Services,Bought In Professional Services,277,26/07/2023,2307-00114,0.00,27.00,R,Abadit Kiros,No
Http://opendatacommunities.org/id/metropolitan-district-council/leeds,Leeds City Council,31/07/2023,Communities Housing and Environment,Customer Access,Supplies and Services,Bought In Professional Services,277,26/07/2023,2307-00115,0.00,27.00,R,Abadit Kiros,No
Http://opendatacommunities.org/id/metropolitan-district-council/leeds,Leeds City Council,31/07/2023,Communities Housing and Environment,Customer Access,Supplies and Services,Bought In Professional Services,277,26/07/2023,2307-00116,0.00,18.00,R,Abadit Kiros,No
Http://opendatacommunities.org/id/metropolitan-district-council/leeds,Leeds City Council,31/07/2023,Communities Housing and Environment,Customer Access,Supplies and Services,Bought In Professional Services,277,26/07/2023,2307-00117,0.00,18.00,R,Abadit Kiros,No
Http://opendatacommunities.org/id/metropolitan-district-council/leeds,Leeds City Council,31/07/2023,Communities Housing and Environment,Customer Access,Supplies and Services,Bought In Professional Services,277,26/07/2023,2307-00118,0.00,18.00,R,Abadit Kiros,No
Http://opendatacommunities.org/id/metropolitan-district-council/leeds,Leeds City Council,31/07/2023,Communities Housing and Environment,Customer Access,Supplies and Services,Bought In Professional Services,277,26/07/2023,2307-00119,0.00,18.00,R,Abadit Kiros,No
Http://opendatacommunities.org/id/metropolitan-district-council/leeds,Leeds City Council,31/07/2023,Communities Housing and Environment,Customer Access,Supplies and Services,Bought In Professional Services,277,26/07/2023,2307-00120,0.00,18.00,R,Abadit Kiros,No
Http://opendatacommunities.org/id/metropolitan-district-council/leeds,Leeds City Council,31/07/2023,Children and Families,Social Care ,Supplies and Services,Operational Materials,205,22/06/2023,2307-00121,0.00,176.72,R,Abaris International L,Yes
Http://opendatacommunities.org/id/metropolitan-district-council/leeds,Leeds City Council,31/07/2023,Adults and Health,Services For Adults Under 65 Mental/Dis,Agency Payments,Home Care,568,14/07/2023,2307-00122,0.00,252.00,R,Abbeyfield The Dales Limited,No
Http://opendatacommunities.org/id/metropolitan-district-council/leeds,Leeds City Council,31/07/2023,Adults and Health,Services For Adults Under 65 Mental/Dis,Agency Payments,Home Care,568,27/07/2023,2307-00123,0.00,252.00,R,Abbeyfield The Dales Limited,No
Http://opendatacommunities.org/id/metropolitan-district-council/leeds,Leeds City Council,31/07/2023,Adults and Health,Services For Adults Under 65 Mental/Dis,Agency Payments,Home Care,568,28/07/2023,2307-00124,0.00,252.00,R,Abbeyfield The Dales Limited,No
Http://opendatacommunities.org/id/metropolitan-district-council/leeds,Leeds City Council,31/07/2023,Children and Families,Social Care,Agency Payments,Services Rendered By Other Organisations,511,07/07/2023,2307-00125,0.00,1343.16,R,REDACTED PERSONAL DATA,No
Http://opendatacommunities.org/id/metropolitan-district-council/leeds,Leeds City Council,31/07/2023,Communities Housing and Environment,Climate Energy & Greenspaces ,Supplies and Services,Other Hired And Contracted Services,265,05/06/2023,2307-00126,0.00,1000.00,R,Abbotts Memorial Compa,Yes
Http://opendatacommunities.org/id/metropolitan-district-council/leeds,Leeds City Council,31/07/2023,Communities Housing and Environment,Climate Energy & Greenspaces ,Supplies and Services,Other Hired And Contracted Services,265,05/06/2023,2307-00127,0.00,3950.00,R,Abbotts Memorial Compa,Yes
Http://opendatacommunities.org/id/metropolitan-district-council/leeds,Leeds City Council,31/07/2023,Communities Housing and Environment,Climate Energy & Greenspaces ,Supplies and Services,Other Hired And Contracted Services,265,05/06/2023,2307-00128,0.00,890.00,R,Abbotts Memorial Compa,Yes
Http://opendatacommunities.org/id/metropolitan-district-council/leeds,Leeds City Council,31/07/2023,Communities Housing and Environment,Climate Energy & Greenspaces ,Supplies and Services,Other Hired And Contracted Services,265,06/06/2023,2307-00129,0.00,350.00,R,Abbotts Memorial Compa,Yes
Http://opendatacommunities.org/id/metropolitan-district-council/leeds,Leeds City Council,31/07/2023,Communities Housing and Environment,Climate Energy & Greenspaces ,Supplies and Services,Other Hired And Contracted Services,265,14/06/2023,2307-00130,0.00,2970.00,R,Abbotts Memorial Compa,Yes
Http://opendatacommunities.org/id/metropolitan-district-council/leeds,Leeds City Council,31/07/2023,Communities Housing and Environment,Climate Energy & Greenspaces ,Supplies and Services,Other Hired And Contracted Services,265,14/06/2023,2307-00131,0.00,600.00,R,Abbotts Memorial Compa,Yes
Http://opendatacommunities.org/id/metropolitan-district-council/leeds,Leeds City Council,31/07/2023,Communities Housing and Environment,Climate Energy & Greenspaces ,Supplies and Services,Other Hired And Contracted Services,265,27/06/2023,2307-00132,0.00,600.00,R,Abbotts Memorial Compa,Yes
Http://opendatacommunities.org/id/metropolitan-district-council/leeds,Leeds City Council,31/07/2023,Communities Housing and Environment,Climate Energy & Greenspaces ,Supplies and Services,Other Hired And Contracted Services,265,28/06/2023,2307-00133,0.00,1900.00,R,Abbotts Memorial Compa,Yes
Http://opendatacommunities.org/id/metropolitan-district-council/leeds,Leeds City Council,31/07/2023,Children and Families,Social Care,Agency Payments,Services Rendered By Other Organisations,511,05/07/2023,2307-00134,0.00,2747.16,R,ABC NURSERY AT LUFC,No
Http://opendatacommunities.org/id/metropolitan-district-council/leeds,Leeds City Council,31/07/2023,Children and Families,Social Care,Agency Payments,Services Rendered By Other Organisations,511,07/07/2023,2307-00135,0.00,8826.48,R,ABC NURSERY AT LUFC,No
Http://opendatacommunities.org/id/metropolitan-district-council/leeds,Leeds City Council,31/07/2023,Children and Families,Social Care,Agency Payments,Services Rendered By Other Organisations,511,05/07/2023,2307-00136,0.00,915.72,R,Abc@D'S Childcare,No
Http://opendatacommunities.org/id/metropolitan-district-council/leeds,Leeds City Council,31/07/2023,Children and Families,Social Care,Agency Payments,Services Rendered By Other Organisations,511,07/07/2023,2307-00137,0.00,7291.44,R,Abc@D'S Childcare,No
Http://opendatacommunities.org/id/metropolitan-district-council/leeds,Leeds City Council,31/07/2023,Communities Housing and Environment,Customer Access,Supplies and Services,Bought In Professional Services,277,05/07/2023,2307-00138,0.00,18.00,R,Abdalla Ahmed,No
Http://opendatacommunities.org/id/metropolitan-district-council/leeds,Leeds City Council,31/07/2023,Communities Housing and Environment,Customer Access,Supplies and Services,Bought In Professional Services,277,05/07/2023,2307-00139,0.00,18.00,R,Abdalla Ahmed,No
Http://opendatacommunities.org/id/metropolitan-district-council/leeds,Leeds City Council,31/07/2023,Communities Housing and Environment,Customer Access,Supplies and Services,Bought In Professional Services,277,05/07/2023,2307-00140,0.00,18.00,R,Abdalla Ahmed,No
Http://opendatacommunities.org/id/metropolitan-district-council/leeds,Leeds City Council,31/07/2023,Communities Housing and Environment,Customer Access,Supplies and Services,Bought In Professional Services,277,12/07/2023,2307-00141,0.00,47.90,R,Abdalla Ahmed,No
Http://opendatacommunities.org/id/metropolitan-district-council/leeds,Leeds City Council,31/07/2023,Communities Housing and Environment,Customer Access,Supplies and Services,Bought In Professional Services,277,19/07/2023,2307-00142,0.00,25.50,R,Abdalla Ahmed,No
Http://opendatacommunities.org/id/metropolitan-district-council/leeds,Leeds City Council,31/07/2023,Communities Housing and Environment,Customer Access,Supplies and Services,Bought In Professional Services,277,19/07/2023,2307-00143,0.00,25.50,R,Abdalla Ahmed,No
Http://opendatacommunities.org/id/metropolitan-district-council/leeds,Leeds City Council,31/07/2023,Communities Housing and Environment,Customer Access,Supplies and Services,Bought In Professional Services,277,05/07/2023,2307-00144,0.00,27.00,R,Abdul Kalam,No
Http://opendatacommunities.org/id/metropolitan-district-council/leeds,Leeds City Council,31/07/2023,Communities Housing and Environment,Customer Access,Supplies and Services,Bought In Professional Services,277,12/07/2023,2307-00145,0.00,27.00,R,Abdul Kalam,No
Http://opendatacommunities.org/id/metropolitan-district-council/leeds,Leeds City Council,31/07/2023,Communities Housing and Environment,Customer Access,Supplies and Services,Bought In Professional Services,277,19/07/2023,2307-00146,0.00,18.00,R,Abdul Kalam,No
Http://opendatacommunities.org/id/metropolitan-district-council/leeds,Leeds City Council,31/07/2023,Communities Housing and Environment,Customer Access,Supplies and Services,Bought In Professional Services,277,26/07/2023,2307-00147,0.00,27.00,R,Abdul Kalam,No
Http://opendatacommunities.org/id/metropolitan-district-council/leeds,Leeds City Council,31/07/2023,Communities Housing and Environment,Customer Access,Supplies and Services,Bought In Professional Services,277,05/07/2023,2307-00148,0.00,18.00,R,Abdulahad Denha,No
Http://opendatacommunities.org/id/metropolitan-district-council/leeds,Leeds City Council,31/07/2023,Communities Housing and Environment,Customer Access,Supplies and Services,Bought In Professional Services,277,12/07/2023,2307-00149,0.00,36.00,R,Abdulahad Denha,No
Http://opendatacommunities.org/id/metropolitan-district-council/leeds,Leeds City Council,31/07/2023,Communities Housing and Environment,Customer Access,Supplies and Services,Bought In Professional Services,277,12/07/2023,2307-00150,0.00,18.00,R,Abdulahad Denha,No
Http://opendatacommunities.org/id/metropolitan-district-council/leeds,Leeds City Council,31/07/2023,Communities Housing and Environment,Customer Access,Supplies and Services,Bought In Professional Services,277,12/07/2023,2307-00151,0.00,22.50,R,Abdulahad Denha,No
Http://opendatacommunities.org/id/metropolitan-district-council/leeds,Leeds City Council,31/07/2023,Communities Housing and Environment,Customer Access,Supplies and Services,Bought In Professional Services,277,26/07/2023,2307-00152,0.00,31.50,R,Abdulahad Denha,No
Http://opendatacommunities.org/id/metropolitan-district-council/leeds,Leeds City Council,31/07/2023,Communities Housing and Environment,Customer Access,Supplies and Services,Bought In Professional Services,277,26/07/2023,2307-00153,0.00,18.00,R,Abdulahad Denha,No
Http://opendatacommunities.org/id/metropolitan-district-council/leeds,Leeds City Council,31/07/2023,Communities Housing and Environment,Customer Access,Supplies and Services,Bought In Professional Services,277,26/07/2023,2307-00154,0.00,18.00,R,Abdulahad Denha,No
Http://opendatacommunities.org/id/metropolitan-district-council/leeds,Leeds City Council,31/07/2023,Communities Housing and Environment,Customer Access,Supplies and Services,Bought In Professional Services,277,26/07/2023,2307-00155,0.00,18.00,R,Abdulahad Denha,No
Http://opendatacommunities.org/id/metropolitan-district-council/leeds,Leeds City Council,31/07/2023,Communities Housing and Environment,Customer Access,Supplies and Services,Bought In Professional Services,277,19/07/2023,2307-00156,0.00,9.00,R,Abdulrahim Dastyar,No
Http://opendatacommunities.org/id/metropolitan-district-council/leeds,Leeds City Council,31/07/2023,Communities Housing and Environment,Customer Access,Supplies and Services,Bought In Professional Services,277,26/07/2023,2307-00157,0.00,36.00,R,Abdulrahim Dastyar,No
Http://opendatacommunities.org/id/metropolitan-district-council/leeds,Leeds City Council,31/07/2023,Communities Housing and Environment,Customer Access,Supplies and Services,Bought In Professional Services,277,26/07/2023,2307-00158,0.00,27.00,R,Abdulrahim Dastyar,No
Http://opendatacommunities.org/id/metropolitan-district-council/leeds,Leeds City Council,31/07/2023,Communities Housing and Environment,Customer Access,Supplies and Services,Bought In Professional Services,277,26/07/2023,2307-00159,0.00,9.00,R,Abdulrahim Dastyar,No
Http://opendatacommunities.org/id/metropolitan-district-council/leeds,Leeds City Council,31/07/2023,Communities Housing and Environment,Customer Access,Supplies and Services,Bought In Professional Services,277,26/07/2023,2307-00160,0.00,31.50,R,Abdulrahim Dastyar,No
Http://opendatacommunities.org/id/metropolitan-district-council/leeds,Leeds City Council,31/07/2023,Adults and Health,Services For Older People - 65 And Over,Agency Payments,Nursing Home,570,19/07/2023,2307-00161,0.00,38920.07,R,Aberford Hall,No
Http://opendatacommunities.org/id/metropolitan-district-council/leeds,Leeds City Council,31/07/2023,Adults and Health,Services For Older People Under 65 P/Dis,Agency Payments,Nursing Home,570,19/07/2023,2307-00162,0.00,3016.00,R,Aberford Hall,No
Http://opendatacommunities.org/id/metropolitan-district-council/leeds,Leeds City Council,31/07/2023,Strategy and Resources,Leeds Building Services,Supplies and Services,Operational Materials,205,07/07/2023,2307-00163,0.00,390.88,R,ABI GARAGE DOORS LTD,No
Http://opendatacommunities.org/id/metropolitan-district-council/leeds,Leeds City Council,31/07/2023,Strategy and Resources,Leeds Building Services,Supplies and Services,Operational Materials,205,07/07/2023,2307-00164,0.00,437.20,R,ABI GARAGE DOORS LTD,No
Http://opendatacommunities.org/id/metropolitan-district-council/leeds,Leeds City Council,31/07/2023,Strategy and Resources,Leeds Building Services,Supplies and Services,Operational Materials,205,07/07/2023,2307-00165,0.00,437.20,R,ABI GARAGE DOORS LTD,No
Http://opendatacommunities.org/id/metropolitan-district-council/leeds,Leeds City Council,31/07/2023,Strategy and Resources,Leeds Building Services,Supplies and Services,Operational Materials,205,21/07/2023,2307-00166,0.00,420.90,R,ABI GARAGE DOORS LTD,No
Http://opendatacommunities.org/id/metropolitan-district-council/leeds,Leeds City Council,31/07/2023,Strategy and Resources,Leeds Building Services,Supplies and Services,Operational Materials,205,21/07/2023,2307-00167,0.00,46.75,R,ABI GARAGE DOORS LTD,No
Http://opendatacommunities.org/id/metropolitan-district-council/leeds,Leeds City Council,31/07/2023,Strategy and Resources,Leeds Building Services,Supplies and Services,Operational Materials,205,28/07/2023,2307-00168,0.00,8.75,R,ABI GARAGE DOORS LTD,No
Http://opendatacommunities.org/id/metropolitan-district-council/leeds,Leeds City Council,31/07/2023,Strategy and Resources,Leeds Building Services,Supplies and Services,Operational Materials,205,28/07/2023,2307-00169,0.00,54.59,R,ABI GARAGE DOORS LTD,No
Http://opendatacommunities.org/id/metropolitan-district-council/leeds,Leeds City Council,31/07/2023,Communities Housing and Environment,Customer Access,Supplies and Services,Bought In Professional Services,277,12/07/2023,2307-00170,0.00,18.00,R,Abida Begum,No
Http://opendatacommunities.org/id/metropolitan-district-council/leeds,Leeds City Council,31/07/2023,City Development,Recreation,External Income,Sporting & Other Recreational Fees,928,06/07/2023,2307-00171,0.00,160.00,R,REDACTED PERSONAL DATA,No
Http://opendatacommunities.org/id/metropolitan-district-council/leeds,Leeds City Council,31/07/2023,Adults and Health,Social Services Support Services,Employees,Training & Development,70,28/07/2023,2307-00172,0.00,950.00,R,AbilityNet,No
Http://opendatacommunities.org/id/metropolitan-district-council/leeds,Leeds City Council,31/07/2023,Communities Housing and Environment,Climate Energy & Greenspaces ,Supplies and Services,Office Consumables,210,12/06/2023,2307-00173,0.00,288.00,R,Abram Pulman And Sons,Yes
Http://opendatacommunities.org/id/metropolitan-district-council/leeds,Leeds City Council,31/07/2023,Children and Families,Social Care,Agency Payments,General External Residential Placements,507,28/07/2023,2307-00174,0.00,17121.30,R,Absolute Children's Services Ltd,No
Http://opendatacommunities.org/id/metropolitan-district-council/leeds,Leeds City Council,31/07/2023,Children and Families,Social Care ,Supplies and Services,Food & Drink,231,07/06/2023,2307-00175,0.00,14.61,R,Abu Bakr Supermarket,Yes
Http://opendatacommunities.org/id/metropolitan-district-council/leeds,Leeds City Council,31/07/2023,Adults and Health,Service Strategy,Supplies and Services,Consultancy Services,259,19/07/2023,2307-00176,0.00,5407.60,R,Acainn Ltd,No
Http://opendatacommunities.org/id/metropolitan-district-council/leeds,Leeds City Council,31/07/2023,Strategy and Resources,Technology,Supplies and Services,Computer Software & Equipment,214,04/07/2023,2307-00177,0.00,116360.18,R,Access Uk Ltd,No
Http://opendatacommunities.org/id/metropolitan-district-council/leeds,Leeds City Council,31/07/2023,Strategy and Resources,Technology,Supplies and Services,Computer Software & Equipment,214,14/07/2023,2307-00178,0.00,5802.00,R,Access Uk Ltd,No
Http://opendatacommunities.org/id/metropolitan-district-council/leeds,Leeds City Council,31/07/2023,Strategy and Resources,Technology,Supplies and Services,Computer Software & Equipment,214,21/07/2023,2307-00179,0.00,17212.77,R,Access Uk Ltd,No
Http://opendatacommunities.org/id/metropolitan-district-council/leeds,Leeds City Council,31/07/2023,Strategy and Resources,Technology,Supplies and Services,Computer Software & Equipment,214,27/07/2023,2307-00180,0.00,18197.13,R,Access Uk Ltd,No
Http://opendatacommunities.org/id/metropolitan-district-council/leeds,Leeds City Council,31/07/2023,Strategy and Resources,Technology,Supplies and Services,Computer Software & Equipment,214,27/07/2023,2307-00181,0.00,7056.00,R,Access Uk Ltd,No
Http://opendatacommunities.org/id/metropolitan-district-council/leeds,Leeds City Council,31/07/2023,Strategy and Resources,Leeds Building Services,Supplies and Services,Other Hired And Contracted Services,265,26/07/2023,2307-00182,0.00,920.00,R,Ace Elevators Limited,No
Http://opendatacommunities.org/id/metropolitan-district-council/leeds,Leeds City Council,31/07/2023,Strategy and Resources,Leeds Building Services,Supplies and Services,Other Hired And Contracted Services,265,14/07/2023,2307-00183,0.00,364.00,R,Acorn Analytical Services Limited,No
Http://opendatacommunities.org/id/metropolitan-district-council/leeds,Leeds City Council as Accountable Body,31/07/2023,Social Services Pooled Budgets,Jcs For People With Learning Disabilitie,Agency Payments,Residential,580,19/07/2023,2307-00184,0.00,103912.96,R,Acorn Care & Education Limited,No
Http://opendatacommunities.org/id/metropolitan-district-council/leeds,Leeds City Council as Accountable Body,31/07/2023,Social Services Pooled Budgets,Jcs For People With Learning Disabilitie,Agency Payments,Residential,580,19/07/2023,2307-00185,0.00,21536.80,R,Acorn Care & Education Limited (Ofg),No
Http://opendatacommunities.org/id/metropolitan-district-council/leeds,Leeds City Council,31/07/2023,Children and Families,Social Care,Agency Payments,Placement Support,550,25/07/2023,2307-00186,0.00,258.65,R,Acorn Care & Education Ltd,No
Http://opendatacommunities.org/id/metropolitan-district-council/leeds,Leeds City Council,31/07/2023,Children and Families,Social Care,Agency Payments,General External Residential Placements,507,13/07/2023,2307-00187,0.00,17249.29,R,Acorn Care & Education Ltd (Sales),No
Http://opendatacommunities.org/id/metropolitan-district-council/leeds,Leeds City Council,31/07/2023,Children and Families,Social Care,Agency Payments,General External Residential Placements,507,13/07/2023,2307-00188,0.00,18865.71,R,Acorn Care & Education Ltd (Sales),No
Http://opendatacommunities.org/id/metropolitan-district-council/leeds,Leeds City Council,31/07/2023,Children and Families,Learning,Agency Payments,SEN Placements,566,14/07/2023,2307-00189,0.00,20323.02,R,Acorn Care & Education Ltd (Sales),No
Http://opendatacommunities.org/id/metropolitan-district-council/leeds,Leeds City Council,31/07/2023,Children and Families,Learning,Agency Payments,SEN Placements,566,14/07/2023,2307-00190,0.00,20256.73,R,Acorn Care & Education Ltd (Sales),No
Http://opendatacommunities.org/id/metropolitan-district-council/leeds,Leeds City Council,31/07/2023,Children and Families,Learning,Agency Payments,SEN Placements,566,14/07/2023,2307-00191,0.00,21797.46,R,Acorn Care & Education Ltd (Sales),No
Http://opendatacommunities.org/id/metropolitan-district-council/leeds,Leeds City Council,31/07/2023,Children and Families,Learning,Agency Payments,SEN Placements,566,14/07/2023,2307-00192,0.00,21864.62,R,Acorn Care & Education Ltd (Sales),No
Http://opendatacommunities.org/id/metropolitan-district-council/leeds,Leeds City Council,31/07/2023,Children and Families,Social Care,Agency Payments,General External Residential Placements,507,28/07/2023,2307-00193,0.00,12955.71,R,Acorn Care & Education Ltd (Sales),No
Http://opendatacommunities.org/id/metropolitan-district-council/leeds,Leeds City Council,31/07/2023,Children and Families,Social Care,Agency Payments,General External Residential Placements,507,28/07/2023,2307-00194,0.00,9210.00,R,Acorn Care & Education Ltd (Sales),No
Http://opendatacommunities.org/id/metropolitan-district-council/leeds,Leeds City Council,31/07/2023,Children and Families,Learning,Agency Payments,SEN Placements,566,28/07/2023,2307-00195,0.00,37658.84,R,Acorn Care & Education Ltd (Sales),No
Http://opendatacommunities.org/id/metropolitan-district-council/leeds,Leeds City Council,31/07/2023,Children and Families,Social Care,Agency Payments,General External Residential Placements,507,28/07/2023,2307-00196,0.00,18434.27,R,Acorn Care & Education Ltd (Sales),No
Http://opendatacommunities.org/id/metropolitan-district-council/leeds,Leeds City Council,31/07/2023,Children and Families,Social Care,Agency Payments,General External Residential Placements,507,28/07/2023,2307-00197,0.00,18034.20,R,Acorn Care & Education Ltd (Sales),No
Http://opendatacommunities.org/id/metropolitan-district-council/leeds,Leeds City Council,31/07/2023,Adults and Health,Services For Older People Under 65 P/Dis,Agency Payments,Nursing Home,570,19/07/2023,2307-00198,0.00,3500.00,R,Acorn Care Home,No
Http://opendatacommunities.org/id/metropolitan-district-council/leeds,Leeds City Council,31/07/2023,Children and Families,Social Care,Agency Payments,Services Rendered By Other Organisations,511,05/07/2023,2307-00199,0.00,457.86,R,ACORNS NURSERY,No
Http://opendatacommunities.org/id/metropolitan-district-council/leeds,Leeds City Council,31/07/2023,Children and Families,Social Care,Agency Payments,Services Rendered By Other Organisations,511,07/07/2023,2307-00200,0.00,11129.04,R,ACORNS NURSERY,No
Http://opendatacommunities.org/id/metropolitan-district-council/leeds,Leeds City Council,31/07/2023,Adults and Health,Services For Older People - 65 And Over,Agency Payments,Nursing Home,570,19/07/2023,2307-00201,0.00,45377.69,R,Acre Green,No
Http://opendatacommunities.org/id/metropolitan-district-council/leeds,Leeds City Council,31/07/2023,Adults and Health,Services For Older People - 65 And Over,Agency Payments,Residential,580,19/07/2023,2307-00202,0.00,4548.80,R,Acre Green,No
Http://opendatacommunities.org/id/metropolitan-district-council/leeds,Leeds City Council,31/07/2023,Adults and Health,Services For Older People Under 65 P/Dis,Agency Payments,Nursing Home,570,19/07/2023,2307-00203,0.00,2665.80,R,Acre Green,No
Http://opendatacommunities.org/id/metropolitan-district-council/leeds,Leeds City Council,31/07/2023,Adults and Health,Services For Older People Under 65 P/Dis,Agency Payments,Residential,580,19/07/2023,2307-00204,0.00,2071.00,R,Acre Green,No
Http://opendatacommunities.org/id/metropolitan-district-council/leeds,Leeds City Council,31/07/2023,Children and Families,Social Care,Agency Payments,Services Rendered By Other Organisations,511,05/07/2023,2307-00205,0.00,915.72,R,Acre Wood Day Nursery,No
Http://opendatacommunities.org/id/metropolitan-district-council/leeds,Leeds City Council,31/07/2023,Children and Families,Social Care,Agency Payments,Services Rendered By Other Organisations,511,07/07/2023,2307-00206,0.00,13239.72,R,Acre Wood Day Nursery,No
Http://opendatacommunities.org/id/metropolitan-district-council/leeds,Leeds City Council,31/07/2023,Adults and Health,Services For Adults Under 65 Mental/Dis,Agency Payments,Fees - Level 4,520,07/07/2023,2307-00207,0.00,2800.00,R,Action First Assessments Ltd,No
Http://opendatacommunities.org/id/metropolitan-district-council/leeds,Leeds City Council as Accountable Body,31/07/2023,Social Services Pooled Budgets,Jcs For People With Learning Disabilitie,Agency Payments,Residential,580,19/07/2023,2307-00208,0.00,11613.36,R,Action For Care Contracts Limited,No
Http://opendatacommunities.org/id/metropolitan-district-council/leeds,Leeds City Council,31/07/2023,Children and Families,Social Care,Agency Payments,Services Rendered By Other Organisations,511,05/07/2023,2307-00209,0.00,915.72,R,ACTIVE KIDS YEADON LLP,No
Http://opendatacommunities.org/id/metropolitan-district-council/leeds,Leeds City Council,31/07/2023,Children and Families,Social Care,Agency Payments,Services Rendered By Other Organisations,511,07/07/2023,2307-00210,0.00,7214.69,R,ACTIVE KIDS YEADON LLP,No
Http://opendatacommunities.org/id/metropolitan-district-council/leeds,Leeds City Council,31/07/2023,Children and Families,Social Care ,Supplies and Services,Other Hired And Contracted Services,265,21/06/2023,2307-00211,0.00,113.90,R,Active Leeds,Yes
Http://opendatacommunities.org/id/metropolitan-district-council/leeds,Leeds City Council,31/07/2023,Adults and Health,Services For Adults Under 65 Mental/Dis,Agency Payments,Sheltered Accommodation,569,19/07/2023,2307-00212,0.00,17467.92,R,Active Pathways,No
Http://opendatacommunities.org/id/metropolitan-district-council/leeds,Leeds City Council,31/07/2023,Adults and Health,Services For Older People - 65 And Over,Agency Payments,Sheltered Accommodation,569,19/07/2023,2307-00213,0.00,4150.84,R,Active Pathways,No
Http://opendatacommunities.org/id/metropolitan-district-council/leeds,Leeds City Council as Accountable Body,31/07/2023,Social Services Pooled Budgets,Jcs For People With Learning Disabilitie,Agency Payments,Sheltered Accommodation,569,19/07/2023,2307-00214,0.00,8301.68,R,Active Pathways,No
Http://opendatacommunities.org/id/metropolitan-district-council/leeds,Leeds City Council,31/07/2023,Adults and Health,Services For Adults Under 65 Mental/Dis,Agency Payments,Residential,580,19/07/2023,2307-00215,0.00,12973.80,R,Active Pathways Limited,No
Http://opendatacommunities.org/id/metropolitan-district-council/leeds,Leeds City Council,31/07/2023,Communities Housing and Environment,Waste Management,Supplies and Services,Waste Disposal Charges,236,06/07/2023,2307-00216,0.00,1148.50,R,Acumen Waste Services Ltd,No
Http://opendatacommunities.org/id/metropolitan-district-council/leeds,Leeds City Council,31/07/2023,Communities Housing and Environment,Waste Management,Supplies and Services,Recycling & Reuse Charges,234,12/07/2023,2307-00217,0.00,12397.68,R,Acumen Waste Services Ltd,No
Http://opendatacommunities.org/id/metropolitan-district-council/leeds,Leeds City Council,31/07/2023,Communities Housing and Environment,Cleaner Neighbourhood Teams,Supplies and Services,Operational Furniture And Equipment,203,14/07/2023,2307-00218,0.00,1022.36,R,Acumen Waste Services Ltd,No
Http://opendatacommunities.org/id/metropolitan-district-council/leeds,Leeds City Council,31/07/2023,Communities Housing and Environment,Waste Management,Supplies and Services,Recycling & Reuse Charges,234,20/07/2023,2307-00219,0.00,6503.76,R,Acumen Waste Services Ltd,No
Http://opendatacommunities.org/id/metropolitan-district-council/leeds,Leeds City Council,31/07/2023,Communities Housing and Environment,Waste Management,Supplies and Services,Recycling & Reuse Charges,234,26/07/2023,2307-00220,0.00,7534.80,R,Acumen Waste Services Ltd,No
Http://opendatacommunities.org/id/metropolitan-district-council/leeds,Leeds City Council,31/07/2023,Strategy and Resources,Shared Services,Supplies and Services,Operational Materials,205,21/07/2023,2307-00221,0.00,283.50,R,AD3 Envelope Printers Limited,No
Http://opendatacommunities.org/id/metropolitan-district-council/leeds,Leeds City Council,31/07/2023,Strategy and Resources,Shared Services,Supplies and Services,Operational Materials,205,28/07/2023,2307-00222,0.00,1497.00,R,AD3 Envelope Printers Limited,No
Http://opendatacommunities.org/id/metropolitan-district-council/leeds,Leeds City Council,31/07/2023,Communities Housing and Environment,Strategic Housing Partnership & Support,Supplies and Services,Other Hired And Contracted Services,265,06/07/2023,2307-00223,0.00,1049.98,R,Adair Paxton LLP,No
Http://opendatacommunities.org/id/metropolitan-district-council/leeds,Leeds City Council,31/07/2023,City Development,Highways,Internal Recharges,Legal Disbursements,411,07/07/2023,2307-00224,0.00,28800.00,R,Adam Aldred,No
Http://opendatacommunities.org/id/metropolitan-district-council/leeds,Leeds City Council,31/07/2023,Children and Families,Social Care,Agency Payments, Direct Work,549,05/07/2023,2307-00225,0.00,6.35,R,REDACTED PERSONAL DATA,No
Http://opendatacommunities.org/id/metropolitan-district-council/leeds,Leeds City Council,31/07/2023,Children and Families,Social Care,Appropriations,Leaving Care Allowances,634,10/07/2023,2307-00226,0.00,50.00,R,REDACTED PERSONAL DATA,No
Http://opendatacommunities.org/id/metropolitan-district-council/leeds,Leeds City Council,31/07/2023,Strategy and Resources,Leeds Building Services,Supplies and Services,Other Hired And Contracted Services,265,27/07/2023,2307-00227,0.00,10985.00,R,Adaston Limited,No
Http://opendatacommunities.org/id/metropolitan-district-council/leeds,Leeds City Council,31/07/2023,Strategy and Resources,Leeds Building Services,Supplies and Services,Other Hired And Contracted Services,265,31/07/2023,2307-00228,0.00,1495.00,R,Adaston Limited,No
Http://opendatacommunities.org/id/metropolitan-district-council/leeds,Leeds City Council,31/07/2023,Children and Families,Social Care,Agency Payments,Services Rendered By Voluntary Sector,505,05/07/2023,2307-00229,0.00,1373.58,R,ADEL PRE SCHOOL,No
Http://opendatacommunities.org/id/metropolitan-district-council/leeds,Leeds City Council,31/07/2023,Children and Families,Social Care,Agency Payments,Services Rendered By Voluntary Sector,505,07/07/2023,2307-00230,0.00,3453.84,R,ADEL PRE SCHOOL,No
Http://opendatacommunities.org/id/metropolitan-district-council/leeds,Leeds City Council,31/07/2023,City Development,Recreation,Supplies and Services,Bought In Professional Services,277,28/07/2023,2307-00231,0.00,120.00,R,Adele Battersby,No
Http://opendatacommunities.org/id/metropolitan-district-council/leeds,Leeds City Council,31/07/2023,City Development,Recreation,Supplies and Services,Bought In Professional Services,277,28/07/2023,2307-00232,0.00,160.00,R,Adele Battersby,No
Http://opendatacommunities.org/id/metropolitan-district-council/leeds,Leeds City Council,31/07/2023,Children and Families,Social Care,Agency Payments,Services Rendered By Other Organisations,511,05/07/2023,2307-00233,0.00,801.26,R,REDACTED PERSONAL DATA,No
Http://opendatacommunities.org/id/metropolitan-district-council/leeds,Leeds City Council,31/07/2023,Children and Families,Social Care,Agency Payments,Services Rendered By Other Organisations,511,07/07/2023,2307-00234,0.00,1343.16,R,REDACTED PERSONAL DATA,No
Http://opendatacommunities.org/id/metropolitan-district-council/leeds,Leeds City Council,31/07/2023,City Development,Libraries Arts & Heritage,Supplies and Services,Other Hired And Contracted Services,265,21/07/2023,2307-00235,0.00,200.00,R,Adele Jones,No
Http://opendatacommunities.org/id/metropolitan-district-council/leeds,Leeds City Council,31/07/2023,Strategy and Resources,Leeds Building Services,Supplies and Services,Operational Materials,205,05/07/2023,2307-00236,0.00,14.02,R,ADI-Gardiner Ltd,No
Http://opendatacommunities.org/id/metropolitan-district-council/leeds,Leeds City Council,31/07/2023,Strategy and Resources,Leeds Building Services,Supplies and Services,Operational Materials,205,05/07/2023,2307-00237,0.00,9.54,R,ADI-Gardiner Ltd,No
Http://opendatacommunities.org/id/metropolitan-district-council/leeds,Leeds City Council,31/07/2023,Strategy and Resources,Leeds Building Services,Supplies and Services,Operational Materials,205,05/07/2023,2307-00238,0.00,7.58,R,ADI-Gardiner Ltd,No
Http://opendatacommunities.org/id/metropolitan-district-council/leeds,Leeds City Council,31/07/2023,Strategy and Resources,Leeds Building Services,Supplies and Services,Operational Materials,205,05/07/2023,2307-00239,0.00,29.78,R,ADI-Gardiner Ltd,No
Http://opendatacommunities.org/id/metropolitan-district-council/leeds,Leeds City Council,31/07/2023,Strategy and Resources,Leeds Building Services,Supplies and Services,Operational Materials,205,07/07/2023,2307-00240,0.00,14.02,R,ADI-Gardiner Ltd,No
Http://opendatacommunities.org/id/metropolitan-district-council/leeds,Leeds City Council,31/07/2023,Strategy and Resources,Leeds Building Services,Supplies and Services,Operational Materials,205,13/07/2023,2307-00241,0.00,47.30,R,ADI-Gardiner Ltd,No
Http://opendatacommunities.org/id/metropolitan-district-council/leeds,Leeds City Council,31/07/2023,Strategy and Resources,Leeds Building Services,Supplies and Services,Operational Materials,205,13/07/2023,2307-00242,0.00,81.91,R,ADI-Gardiner Ltd,No
Http://opendatacommunities.org/id/metropolitan-district-council/leeds,Leeds City Council,31/07/2023,Strategy and Resources,Leeds Building Services,Supplies and Services,Operational Materials,205,14/07/2023,2307-00243,0.00,9.54,R,ADI-Gardiner Ltd,No
Http://opendatacommunities.org/id/metropolitan-district-council/leeds,Leeds City Council,31/07/2023,Strategy and Resources,Leeds Building Services,Supplies and Services,Operational Materials,205,14/07/2023,2307-00244,0.00,323.90,R,ADI-Gardiner Ltd,No
Http://opendatacommunities.org/id/metropolitan-district-council/leeds,Leeds City Council,31/07/2023,Strategy and Resources,Leeds Building Services,Supplies and Services,Operational Materials,205,14/07/2023,2307-00245,0.00,18.24,R,ADI-Gardiner Ltd,No
Http://opendatacommunities.org/id/metropolitan-district-council/leeds,Leeds City Council,31/07/2023,Strategy and Resources,Leeds Building Services,Supplies and Services,Operational Materials,205,14/07/2023,2307-00246,0.00,40.07,R,ADI-Gardiner Ltd,No
Http://opendatacommunities.org/id/metropolitan-district-council/leeds,Leeds City Council,31/07/2023,Strategy and Resources,Leeds Building Services,Supplies and Services,Operational Materials,205,14/07/2023,2307-00247,0.00,141.26,R,ADI-Gardiner Ltd,No
Http://opendatacommunities.org/id/metropolitan-district-council/leeds,Leeds City Council,31/07/2023,Strategy and Resources,Leeds Building Services,Supplies and Services,Operational Materials,205,14/07/2023,2307-00248,0.00,49.14,R,ADI-Gardiner Ltd,No
Http://opendatacommunities.org/id/metropolitan-district-council/leeds,Leeds City Council,31/07/2023,Strategy and Resources,Leeds Building Services,Supplies and Services,Operational Materials,205,14/07/2023,2307-00249,0.00,280.00,R,ADI-Gardiner Ltd,No
Http://opendatacommunities.org/id/metropolitan-district-council/leeds,Leeds City Council,31/07/2023,Strategy and Resources,Leeds Building Services,Supplies and Services,Operational Materials,205,19/07/2023,2307-00250,0.00,45.05,R,ADI-Gardiner Ltd,No
Http://opendatacommunities.org/id/metropolitan-district-council/leeds,Leeds City Council,31/07/2023,Strategy and Resources,Leeds Building Services,Supplies and Services,Operational Materials,205,19/07/2023,2307-00251,0.00,76.63,R,ADI-Gardiner Ltd,No
Http://opendatacommunities.org/id/metropolitan-district-council/leeds,Leeds City Council,31/07/2023,Strategy and Resources,Leeds Building Services,Supplies and Services,Operational Materials,205,19/07/2023,2307-00252,0.00,28.04,R,ADI-Gardiner Ltd,No
Http://opendatacommunities.org/id/metropolitan-district-council/leeds,Leeds City Council,31/07/2023,Strategy and Resources,Leeds Building Services,Supplies and Services,Operational Materials,205,19/07/2023,2307-00253,0.00,28.04,R,ADI-Gardiner Ltd,No
Http://opendatacommunities.org/id/metropolitan-district-council/leeds,Leeds City Council,31/07/2023,Strategy and Resources,Leeds Building Services,Supplies and Services,Operational Materials,205,20/07/2023,2307-00254,0.00,5.38,R,ADI-Gardiner Ltd,No
Http://opendatacommunities.org/id/metropolitan-district-council/leeds,Leeds City Council,31/07/2023,Strategy and Resources,Leeds Building Services,Supplies and Services,Operational Materials,205,20/07/2023,2307-00255,0.00,6409.20,R,ADI-Gardiner Ltd,No
Http://opendatacommunities.org/id/metropolitan-district-council/leeds,Leeds City Council,31/07/2023,Strategy and Resources,Leeds Building Services,Supplies and Services,Operational Materials,205,20/07/2023,2307-00256,0.00,47.00,R,ADI-Gardiner Ltd,No
Http://opendatacommunities.org/id/metropolitan-district-council/leeds,Leeds City Council,31/07/2023,Strategy and Resources,Leeds Building Services,Supplies and Services,Operational Materials,205,25/07/2023,2307-00257,0.00,9.89,R,ADI-Gardiner Ltd,No
Http://opendatacommunities.org/id/metropolitan-district-council/leeds,Leeds City Council,31/07/2023,Strategy and Resources,Leeds Building Services,Supplies and Services,Operational Materials,205,25/07/2023,2307-00258,0.00,329.21,R,ADI-Gardiner Ltd,No
Http://opendatacommunities.org/id/metropolitan-district-council/leeds,Leeds City Council,31/07/2023,Strategy and Resources,Leeds Building Services,Supplies and Services,Operational Materials,205,25/07/2023,2307-00259,0.00,29.99,R,ADI-Gardiner Ltd,No
Http://opendatacommunities.org/id/metropolitan-district-council/leeds,Leeds City Council,31/07/2023,Strategy and Resources,Leeds Building Services,Supplies and Services,Operational Materials,205,27/07/2023,2307-00260,0.00,54.72,R,ADI-Gardiner Ltd,No
Http://opendatacommunities.org/id/metropolitan-district-council/leeds,Leeds City Council,31/07/2023,Strategy and Resources,Leeds Building Services,Supplies and Services,Operational Materials,205,27/07/2023,2307-00261,0.00,31.98,R,ADI-Gardiner Ltd,No
Http://opendatacommunities.org/id/metropolitan-district-council/leeds,Leeds City Council,31/07/2023,Strategy and Resources,Leeds Building Services,Supplies and Services,Operational Materials,205,27/07/2023,2307-00262,0.00,1145.76,R,ADI-Gardiner Ltd,No
Http://opendatacommunities.org/id/metropolitan-district-council/leeds,Leeds City Council,31/07/2023,Strategy and Resources,Leeds Building Services,Supplies and Services,Operational Materials,205,27/07/2023,2307-00263,0.00,12.86,R,ADI-Gardiner Ltd,No
Http://opendatacommunities.org/id/metropolitan-district-council/leeds,Leeds City Council,31/07/2023,Strategy and Resources,Leeds Building Services,Supplies and Services,Operational Materials,205,27/07/2023,2307-00264,0.00,110.98,R,ADI-Gardiner Ltd,No
Http://opendatacommunities.org/id/metropolitan-district-council/leeds,Leeds City Council,31/07/2023,Strategy and Resources,Leeds Building Services,Supplies and Services,Operational Materials,205,28/07/2023,2307-00265,0.00,12.99,R,ADI-Gardiner Ltd,No
Http://opendatacommunities.org/id/metropolitan-district-council/leeds,Leeds City Council,31/07/2023,Communities Housing and Environment,Benefits Wlefare and Poverty,Supplies and Services,Grant Related Expenditure,290,31/07/2023,2307-00266,0.00,70.00,R,REDACTED PERSONAL DATA,No
Http://opendatacommunities.org/id/metropolitan-district-council/leeds,Leeds City Council,31/07/2023,Communities Housing and Environment,Car Parking Services,External Income,Penalties Fines & Car Parking Charges,934,13/07/2023,2307-00267,0.00,84.00,R,REDACTED PERSONAL DATA,No
Http://opendatacommunities.org/id/metropolitan-district-council/leeds,Leeds City Council,31/07/2023,Communities Housing and Environment,Strategic Housing Partnership & Support ,Supplies and Services,Teaching Materials,202,11/06/2023,2307-00268,0.00,14.98,R,Adobe Acropro Subs,Yes
Http://opendatacommunities.org/id/metropolitan-district-council/leeds,Leeds City Council,31/07/2023,City Development,Libraries Arts & Heritage ,Supplies and Services,Publication And Promotion,267,07/06/2023,2307-00269,0.00,43.32,R,Adobe Creative Cloud,Yes
Http://opendatacommunities.org/id/metropolitan-district-council/leeds,Leeds City Council,31/07/2023,Children and Families,Social Care,Agency Payments,Independent Fostering Agencies,509,07/07/2023,2307-00270,0.00,2151.69,R,Adolescent And Childrens Trust,No
Http://opendatacommunities.org/id/metropolitan-district-council/leeds,Leeds City Council,31/07/2023,Children and Families,Social Care,Agency Payments,Independent Fostering Agencies,509,07/07/2023,2307-00271,0.00,4176.81,R,Adolescent And Childrens Trust,No
Http://opendatacommunities.org/id/metropolitan-district-council/leeds,Leeds City Council,31/07/2023,Children and Families,Social Care,Agency Payments,Independent Fostering Agencies,509,07/07/2023,2307-00272,0.00,1012.56,R,Adolescent And Childrens Trust,No
Http://opendatacommunities.org/id/metropolitan-district-council/leeds,Leeds City Council,31/07/2023,Children and Families,Social Care,Agency Payments,Independent Fostering Agencies,509,07/07/2023,2307-00273,0.00,3565.00,R,Adolescent And Childrens Trust,No
Http://opendatacommunities.org/id/metropolitan-district-council/leeds,Leeds City Council,31/07/2023,Children and Families,Social Care,Agency Payments,Independent Fostering Agencies,509,07/07/2023,2307-00274,0.00,3565.00,R,Adolescent And Childrens Trust,No
Http://opendatacommunities.org/id/metropolitan-district-council/leeds,Leeds City Council,31/07/2023,Children and Families,Social Care,Agency Payments,Independent Fostering Agencies,509,07/07/2023,2307-00275,0.00,3751.00,R,Adolescent And Childrens Trust,No
Http://opendatacommunities.org/id/metropolitan-district-council/leeds,Leeds City Council,31/07/2023,Children and Families,Social Care,Agency Payments,Independent Fostering Agencies,509,07/07/2023,2307-00276,0.00,3751.00,R,Adolescent And Childrens Trust,No
Http://opendatacommunities.org/id/metropolitan-district-council/leeds,Leeds City Council,31/07/2023,Children and Families,Social Care,Agency Payments,Independent Fostering Agencies,509,07/07/2023,2307-00277,0.00,3751.00,R,Adolescent And Childrens Trust,No
Http://opendatacommunities.org/id/metropolitan-district-council/leeds,Leeds City Council,31/07/2023,Children and Families,Social Care,Agency Payments,Independent Fostering Agencies,509,07/07/2023,2307-00278,0.00,3751.00,R,Adolescent And Childrens Trust,No
Http://opendatacommunities.org/id/metropolitan-district-council/leeds,Leeds City Council,31/07/2023,Children and Families,Social Care,Agency Payments,Independent Fostering Agencies,509,07/07/2023,2307-00279,0.00,3543.96,R,Adolescent And Childrens Trust,No
Http://opendatacommunities.org/id/metropolitan-district-council/leeds,Leeds City Council,31/07/2023,Children and Families,Social Care,Agency Payments,Independent Fostering Agencies,509,07/07/2023,2307-00280,0.00,3388.00,R,Adolescent And Childrens Trust,No
Http://opendatacommunities.org/id/metropolitan-district-council/leeds,Leeds City Council,31/07/2023,Children and Families,Social Care,Agency Payments,Independent Fostering Agencies,509,07/07/2023,2307-00281,0.00,3627.00,R,Adolescent And Childrens Trust,No
Http://opendatacommunities.org/id/metropolitan-district-council/leeds,Leeds City Council,31/07/2023,Adults and Health,Services For Adults Under 65 Mental/Dis,Agency Payments,Home Care,568,03/07/2023,2307-00282,0.00,681.66,R,Adopt Healthcare Ltd,No
Http://opendatacommunities.org/id/metropolitan-district-council/leeds,Leeds City Council,31/07/2023,Adults and Health,Services For Adults Under 65 Mental/Dis,Agency Payments,Home Care,568,03/07/2023,2307-00283,0.00,201.15,R,Adopt Healthcare Ltd,No
Http://opendatacommunities.org/id/metropolitan-district-council/leeds,Leeds City Council,31/07/2023,Adults and Health,Services For Adults Under 65 Mental/Dis,Agency Payments,Home Care,568,04/07/2023,2307-00284,0.00,681.66,R,Adopt Healthcare Ltd,No
Http://opendatacommunities.org/id/metropolitan-district-council/leeds,Leeds City Council,31/07/2023,Adults and Health,Services For Adults Under 65 Mental/Dis,Agency Payments,Home Care,568,04/07/2023,2307-00285,0.00,201.15,R,Adopt Healthcare Ltd,No
Http://opendatacommunities.org/id/metropolitan-district-council/leeds,Leeds City Council,31/07/2023,Adults and Health,Services For Adults Under 65 Mental/Dis,Agency Payments,HCAIT Community Support,575,05/07/2023,2307-00286,0.00,3531.32,R,Adopt Healthcare Ltd,No
Http://opendatacommunities.org/id/metropolitan-district-council/leeds,Leeds City Council,31/07/2023,Adults and Health,Services For Older People - 65 And Over,Agency Payments,Home Care,568,05/07/2023,2307-00287,0.00,-0.02,R,Adopt Healthcare Ltd,No
Http://opendatacommunities.org/id/metropolitan-district-council/leeds,Leeds City Council,31/07/2023,Adults and Health,Services For Older People Under 65 P/Dis,Agency Payments,Home Care,568,05/07/2023,2307-00288,0.00,759.90,R,Adopt Healthcare Ltd,No
Http://opendatacommunities.org/id/metropolitan-district-council/leeds,Leeds City Council,31/07/2023,Adults and Health,Services For Adults Under 65 Mental/Dis,Agency Payments,Home Care,568,13/07/2023,2307-00289,0.00,681.66,R,Adopt Healthcare Ltd,No
Http://opendatacommunities.org/id/metropolitan-district-council/leeds,Leeds City Council,31/07/2023,Adults and Health,Services For Adults Under 65 Mental/Dis,Agency Payments,Home Care,568,13/07/2023,2307-00290,0.00,201.15,R,Adopt Healthcare Ltd,No
Http://opendatacommunities.org/id/metropolitan-district-council/leeds,Leeds City Council,31/07/2023,Adults and Health,Services For Adults Under 65 Mental/Dis,Agency Payments,Home Care,568,19/07/2023,2307-00291,0.00,681.66,R,Adopt Healthcare Ltd,No
Http://opendatacommunities.org/id/metropolitan-district-council/leeds,Leeds City Council,31/07/2023,Adults and Health,Services For Adults Under 65 Mental/Dis,Agency Payments,Home Care,568,19/07/2023,2307-00292,0.00,201.15,R,Adopt Healthcare Ltd,No
Http://opendatacommunities.org/id/metropolitan-district-council/leeds,Leeds City Council,31/07/2023,Adults and Health,Services For Adults Under 65 Mental/Dis,Agency Payments,Home Care,568,25/07/2023,2307-00293,0.00,681.66,R,Adopt Healthcare Ltd,No
Http://opendatacommunities.org/id/metropolitan-district-council/leeds,Leeds City Council,31/07/2023,Adults and Health,Services For Adults Under 65 Mental/Dis,Agency Payments,Home Care,568,25/07/2023,2307-00294,0.00,201.15,R,Adopt Healthcare Ltd,No
Http://opendatacommunities.org/id/metropolitan-district-council/leeds,Leeds City Council,31/07/2023,Adults and Health,Services For Adults Under 65 Mental/Dis,Agency Payments,HCAIT Community Support,575,26/07/2023,2307-00295,0.00,3531.32,R,Adopt Healthcare Ltd,No
Http://opendatacommunities.org/id/metropolitan-district-council/leeds,Leeds City Council,31/07/2023,Adults and Health,Services For Older People - 65 And Over,Agency Payments,Home Care,568,26/07/2023,2307-00296,0.00,-0.02,R,Adopt Healthcare Ltd,No
Http://opendatacommunities.org/id/metropolitan-district-council/leeds,Leeds City Council,31/07/2023,Adults and Health,Services For Older People Under 65 P/Dis,Agency Payments,Home Care,568,26/07/2023,2307-00297,0.00,1385.70,R,Adopt Healthcare Ltd,No
Http://opendatacommunities.org/id/metropolitan-district-council/leeds,Leeds City Council,31/07/2023,Children and Families,Social Care,Agency Payments,Placement Support,550,07/07/2023,2307-00298,0.00,20.00,R,REDACTED PERSONAL DATA,No
Http://opendatacommunities.org/id/metropolitan-district-council/leeds,Leeds City Council,31/07/2023,Children and Families,Social Care,Agency Payments,Contact,548,14/07/2023,2307-00299,0.00,20.00,R,REDACTED PERSONAL DATA,No
Http://opendatacommunities.org/id/metropolitan-district-council/leeds,Leeds City Council,31/07/2023,Children and Families,Social Care,Agency Payments,Placement Support,550,21/07/2023,2307-00300,0.00,20.00,R,REDACTED PERSONAL DATA,No
Http://opendatacommunities.org/id/metropolitan-district-council/leeds,Leeds City Council,31/07/2023,Children and Families,Social Care,Agency Payments,Placement Support,550,28/07/2023,2307-00301,0.00,20.00,R,REDACTED PERSONAL DATA,No
Http://opendatacommunities.org/id/metropolitan-district-council/leeds,Leeds City Council,31/07/2023,Children and Families,Social Care,Agency Payments,Allowances,546,06/07/2023,2307-00302,0.00,150.12,R,REDACTED PERSONAL DATA,No
Http://opendatacommunities.org/id/metropolitan-district-council/leeds,Leeds City Council as Accountable Body,31/07/2023,Social Services Pooled Budgets,Jcs For People With Learning Disabilitie,Agency Payments,Residential,580,19/07/2023,2307-00303,0.00,2609.36,R,ADRIAN HOUSE,No
Http://opendatacommunities.org/id/metropolitan-district-council/leeds,Leeds City Council,31/07/2023,Communities Housing and Environment,Strategic Housing Partnership & Support,Capital,CONSTRUCTION,3,07/07/2023,2307-00304,0.00,10000.00,C,REDACTED PERSONAL DATA,No
Http://opendatacommunities.org/id/metropolitan-district-council/leeds,Leeds City Council,31/07/2023,Communities Housing and Environment,Strategic Housing Partnership & Support,Capital,TRANSPORT,4,20/07/2023,2307-00305,0.00,10000.00,C,REDACTED PERSONAL DATA,No
Http://opendatacommunities.org/id/metropolitan-district-council/leeds,Leeds City Council,31/07/2023,Strategy and Resources,Facilities Management ,Premises,Premises Security Services,162,21/06/2023,2307-00306,0.00,669.26,R,REDACTED COMMERCIAL CONFIDENTIALITY,Yes
Http://opendatacommunities.org/id/metropolitan-district-council/leeds,Leeds City Council,31/07/2023,City Development,Recreation,Supplies and Services,External Audit Fees,261,14/07/2023,2307-00307,0.00,140.00,R,ADVANCE STOCKS LTD,No
Http://opendatacommunities.org/id/metropolitan-district-council/leeds,Leeds City Council,31/07/2023,Children and Families,Social Care,Internal Recharges,Legal Disbursements,411,07/07/2023,2307-00308,0.00,538.40,R,ADVANCED CHILD CARE ASSESSMENTS LTD,No
Http://opendatacommunities.org/id/metropolitan-district-council/leeds,Leeds City Council,31/07/2023,Children and Families,Social Care,Internal Recharges,Legal Disbursements,411,27/07/2023,2307-00309,0.00,420.00,R,ADVANCED CHILD CARE ASSESSMENTS LTD,No
Http://opendatacommunities.org/id/metropolitan-district-council/leeds,Leeds City Council,31/07/2023,Adults and Health,Assessment And Care Management,Agency Payments,Home Care,568,12/07/2023,2307-00310,0.00,625.80,R,Advanced Medcare Ltd,No
Http://opendatacommunities.org/id/metropolitan-district-council/leeds,Leeds City Council,31/07/2023,Adults and Health,Services For Adults Under 65 Learn/Dis,Agency Payments,Home Care,568,12/07/2023,2307-00311,0.00,625.80,R,Advanced Medcare Ltd,No
Http://opendatacommunities.org/id/metropolitan-district-council/leeds,Leeds City Council,31/07/2023,Adults and Health,Services For Adults Under 65 Mental/Dis,Agency Payments,Home Care,568,12/07/2023,2307-00312,0.00,625.80,R,Advanced Medcare Ltd,No
Http://opendatacommunities.org/id/metropolitan-district-council/leeds,Leeds City Council,31/07/2023,Adults and Health,Services For Older People - 65 And Over,Agency Payments,Home Care,568,12/07/2023,2307-00313,0.00,50314.48,R,Advanced Medcare Ltd,No
Http://opendatacommunities.org/id/metropolitan-district-council/leeds,Leeds City Council,31/07/2023,Adults and Health,Services For Older People - 65 And Over,Agency Payments,HCAIT Community Support,575,12/07/2023,2307-00314,0.00,961.06,R,Advanced Medcare Ltd,No
Http://opendatacommunities.org/id/metropolitan-district-council/leeds,Leeds City Council,31/07/2023,Adults and Health,Services For Older People Under 65 P/Dis,Agency Payments,Home Care,568,12/07/2023,2307-00315,0.00,24428.59,R,Advanced Medcare Ltd,No
Http://opendatacommunities.org/id/metropolitan-district-council/leeds,Leeds City Council,31/07/2023,Adults and Health,Services For Older People Under 65 P/Dis,Agency Payments,HCAIT Community Support,575,12/07/2023,2307-00316,0.00,301.73,R,Advanced Medcare Ltd,No
Http://opendatacommunities.org/id/metropolitan-district-council/leeds,Leeds City Council as Accountable Body,31/07/2023,Social Services Pooled Budgets,Jcs For People With Learning Disabilitie,Agency Payments,Home Care,568,12/07/2023,2307-00317,0.00,871.65,R,Advanced Medcare Ltd,No
Http://opendatacommunities.org/id/metropolitan-district-council/leeds,Leeds City Council as Accountable Body,31/07/2023,Social Services Pooled Budgets,Jcs For People With Learning Disabilitie,Agency Payments,Nursing Home - Physical Disabl,575,12/07/2023,2307-00318,0.00,178.80,R,Advanced Medcare Ltd,No
Http://opendatacommunities.org/id/metropolitan-district-council/leeds,Leeds City Council as Accountable Body,31/07/2023,Social Services Pooled Budgets,Jcs For People With Learning Disabilitie,Agency Payments,Home Care,568,24/07/2023,2307-00319,0.00,4997.70,R,Advantage Healthcare Ltd,No
Http://opendatacommunities.org/id/metropolitan-district-council/leeds,Leeds City Council,31/07/2023,Adults and Health,Public Health ,Supplies and Services,Teaching Materials,202,13/06/2023,2307-00320,0.00,121.99,R,Advonet,Yes
Http://opendatacommunities.org/id/metropolitan-district-council/leeds,Leeds City Council,31/07/2023,Adults and Health,Public Health ,Supplies and Services,Postages,212,13/06/2023,2307-00321,0.00,19.44,R,Advonet,Yes
Http://opendatacommunities.org/id/metropolitan-district-council/leeds,Leeds City Council,31/07/2023,Adults and Health,Services For Older People - 65 And Over,Agency Payments,Payments To Voluntary Organisations,561,06/07/2023,2307-00322,0.00,101941.67,R,Advonet,No
Http://opendatacommunities.org/id/metropolitan-district-council/leeds,Leeds City Council,31/07/2023,Adults and Health,Services For Adults Under 65 Mental/Dis,Agency Payments,Home Care,568,06/07/2023,2307-00323,0.00,7.50,R,Advonet,No
Http://opendatacommunities.org/id/metropolitan-district-council/leeds,Leeds City Council as Accountable Body,31/07/2023,Social Services Pooled Budgets,Jcs For People With Learning Disabilitie,Supplies and Services,Other Hired And Contracted Services,265,06/07/2023,2307-00324,0.00,32.40,R,Advonet,No
Http://opendatacommunities.org/id/metropolitan-district-council/leeds,Leeds City Council as Accountable Body,31/07/2023,Social Services Pooled Budgets,Jcs For People With Learning Disabilitie,Supplies and Services,Other Hired And Contracted Services,265,06/07/2023,2307-00325,0.00,7.50,R,Advonet,No
Http://opendatacommunities.org/id/metropolitan-district-council/leeds,Leeds City Council as Accountable Body,31/07/2023,Social Services Pooled Budgets,Jcs For People With Learning Disabilitie,Supplies and Services,Other Hired And Contracted Services,265,06/07/2023,2307-00326,0.00,7.50,R,Advonet,No
Http://opendatacommunities.org/id/metropolitan-district-council/leeds,Leeds City Council,31/07/2023,Children and Families,Social Care,Agency Payments,Placement Support,550,06/07/2023,2307-00327,0.00,35.10,R,Advonet,No
Http://opendatacommunities.org/id/metropolitan-district-council/leeds,Leeds City Council,31/07/2023,Adults and Health,Services For Adults Under 65 Mental/Dis,Agency Payments,Home Care,568,06/07/2023,2307-00328,0.00,52.50,R,Advonet,No
Http://opendatacommunities.org/id/metropolitan-district-council/leeds,Leeds City Council as Accountable Body,31/07/2023,Social Services Pooled Budgets,Jcs For People With Learning Disabilitie,Supplies and Services,Other Hired And Contracted Services,265,06/07/2023,2307-00329,0.00,117.60,R,Advonet,No
Http://opendatacommunities.org/id/metropolitan-district-council/leeds,Leeds City Council as Accountable Body,31/07/2023,Social Services Pooled Budgets,Jcs For People With Learning Disabilitie,Supplies and Services,Other Hired And Contracted Services,265,06/07/2023,2307-00330,0.00,105.00,R,Advonet,No
Http://opendatacommunities.org/id/metropolitan-district-council/leeds,Leeds City Council as Accountable Body,31/07/2023,Social Services Pooled Budgets,Jcs For People With Learning Disabilitie,Supplies and Services,Other Hired And Contracted Services,265,06/07/2023,2307-00331,0.00,18.00,R,Advonet,No
Http://opendatacommunities.org/id/metropolitan-district-council/leeds,Leeds City Council as Accountable Body,31/07/2023,Social Services Pooled Budgets,Jcs For People With Learning Disabilitie,Supplies and Services,Other Hired And Contracted Services,265,06/07/2023,2307-00332,0.00,39.90,R,Advonet,No
Http://opendatacommunities.org/id/metropolitan-district-council/leeds,Leeds City Council as Accountable Body,31/07/2023,Social Services Pooled Budgets,Jcs For People With Learning Disabilitie,Supplies and Services,Other Hired And Contracted Services,265,06/07/2023,2307-00333,0.00,98.70,R,Advonet,No
Http://opendatacommunities.org/id/metropolitan-district-council/leeds,Leeds City Council,31/07/2023,Adults and Health,Services For Adults Under 65 Learn/Dis,Agency Payments,Payments To Voluntary Organisations,561,28/07/2023,2307-00334,0.00,16150.46,R,Advonet,No
Http://opendatacommunities.org/id/metropolitan-district-council/leeds,Leeds City Council,31/07/2023,City Development,Highways,Capital,OTHER COSTS,7,04/07/2023,2307-00335,0.00,52164.74,C,Aecom Limited,No
Http://opendatacommunities.org/id/metropolitan-district-council/leeds,Leeds City Council,31/07/2023,City Development,Highways,Capital,OTHER COSTS,7,04/07/2023,2307-00336,0.00,89405.23,C,Aecom Limited,No
Http://opendatacommunities.org/id/metropolitan-district-council/leeds,Leeds City Council,31/07/2023,City Development,Highways,Capital,OTHER COSTS,7,18/07/2023,2307-00337,0.00,18770.50,C,Aecom Limited,No
Http://opendatacommunities.org/id/metropolitan-district-council/leeds,Leeds City Council,31/07/2023,City Development,Highways,Capital,OTHER COSTS,7,25/07/2023,2307-00338,0.00,3647.50,C,Aecom Limited,No
Http://opendatacommunities.org/id/metropolitan-district-council/leeds,Leeds City Council,31/07/2023,City Development,Highways,Capital,OTHER COSTS,7,27/07/2023,2307-00339,0.00,39160.60,C,Aecom Limited,No
Http://opendatacommunities.org/id/metropolitan-district-council/leeds,Leeds City Council,31/07/2023,City Development,Highways,Capital,OTHER COSTS,7,27/07/2023,2307-00340,0.00,81762.31,C,Aecom Limited,No
Http://opendatacommunities.org/id/metropolitan-district-council/leeds,Leeds City Council,31/07/2023,Adults and Health,Services For Adults Under 65 Mental/Dis,Agency Payments,HCAIT Community Support,575,26/07/2023,2307-00341,0.00,67.05,R,Aegis Care Solutions Ltd,No
Http://opendatacommunities.org/id/metropolitan-district-council/leeds,Leeds City Council,31/07/2023,Adults and Health,Services For Adults Under 65 Mental/Dis,Agency Payments,HCAIT Other,577,26/07/2023,2307-00342,0.00,67.05,R,Aegis Care Solutions Ltd,No
Http://opendatacommunities.org/id/metropolitan-district-council/leeds,Leeds City Council,31/07/2023,Adults and Health,Services For Older People - 65 And Over,Agency Payments,Home Care,568,26/07/2023,2307-00343,0.00,38105.63,R,Aegis Care Solutions Ltd,No
Http://opendatacommunities.org/id/metropolitan-district-council/leeds,Leeds City Council,31/07/2023,Adults and Health,Services For Older People - 65 And Over,Agency Payments,HCAIT Community Support,575,26/07/2023,2307-00344,0.00,357.60,R,Aegis Care Solutions Ltd,No
Http://opendatacommunities.org/id/metropolitan-district-council/leeds,Leeds City Council,31/07/2023,Adults and Health,Services For Older People - 65 And Over,Agency Payments,HCAIT Other,577,26/07/2023,2307-00345,0.00,2205.86,R,Aegis Care Solutions Ltd,No
Http://opendatacommunities.org/id/metropolitan-district-council/leeds,Leeds City Council,31/07/2023,Adults and Health,Services For Older People Under 65 P/Dis,Agency Payments,Home Care,568,26/07/2023,2307-00346,0.00,8310.58,R,Aegis Care Solutions Ltd,No
Http://opendatacommunities.org/id/metropolitan-district-council/leeds,Leeds City Council as Accountable Body,31/07/2023,Social Services Pooled Budgets,Jcs For People With Learning Disabilitie,Agency Payments,Home Care,568,26/07/2023,2307-00347,0.00,4838.80,R,Aegis Care Solutions Ltd,No
Http://opendatacommunities.org/id/metropolitan-district-council/leeds,Leeds City Council as Accountable Body,31/07/2023,Social Services Pooled Budgets,Jcs For People With Learning Disabilitie,Agency Payments,Day Centre,564,07/07/2023,2307-00348,0.00,30152.48,R,Affinity Trust,No
Http://opendatacommunities.org/id/metropolitan-district-council/leeds,Leeds City Council as Accountable Body,31/07/2023,Social Services Pooled Budgets,Jcs For People With Learning Disabilitie,Agency Payments,Day Centre,564,27/07/2023,2307-00349,0.00,4314.31,R,Affinity Trust,No
Http://opendatacommunities.org/id/metropolitan-district-council/leeds,Leeds City Council as Accountable Body,31/07/2023,Social Services Pooled Budgets,Jcs For People With Learning Disabilitie,Agency Payments,Day Centre,564,27/07/2023,2307-00350,0.00,11765.94,R,Affinity Trust,No
Http://opendatacommunities.org/id/metropolitan-district-council/leeds,Leeds City Council as Accountable Body,31/07/2023,Social Services Pooled Budgets,Jcs For People With Learning Disabilitie,Agency Payments,Sheltered Accommodation,569,19/07/2023,2307-00351,0.00,121878.74,R,Affinity Trust North Divisional Office,No
Http://opendatacommunities.org/id/metropolitan-district-council/leeds,Leeds City Council,31/07/2023,Communities Housing and Environment,Climate Energy & Greenspaces ,Transport,Hire Of Movable Plant & Machinery,315,05/06/2023,2307-00352,0.00,3800.00,R,Afi Uplift,Yes
Http://opendatacommunities.org/id/metropolitan-district-council/leeds,Leeds City Council,31/07/2023,Communities Housing and Environment,Climate Energy & Greenspaces ,Transport,Hire Of Movable Plant & Machinery,315,23/06/2023,2307-00353,0.00,3800.00,R,Afi Uplift,Yes
Http://opendatacommunities.org/id/metropolitan-district-council/leeds,Leeds City Council,31/07/2023,Communities Housing and Environment,Customer Access,Supplies and Services,Bought In Professional Services,277,05/07/2023,2307-00354,0.00,18.00,R,Agnieszka J Collier,No
Http://opendatacommunities.org/id/metropolitan-district-council/leeds,Leeds City Council,31/07/2023,Communities Housing and Environment,Customer Access,Supplies and Services,Bought In Professional Services,277,19/07/2023,2307-00355,0.00,18.00,R,Agnieszka J Collier,No
Http://opendatacommunities.org/id/metropolitan-district-council/leeds,Leeds City Council,31/07/2023,Communities Housing and Environment,Customer Access,Supplies and Services,Bought In Professional Services,277,26/07/2023,2307-00356,0.00,18.00,R,Agnieszka J Collier,No
Http://opendatacommunities.org/id/metropolitan-district-council/leeds,Leeds City Council,31/07/2023,Communities Housing and Environment,Customer Access,Supplies and Services,Bought In Professional Services,277,26/07/2023,2307-00357,0.00,18.00,R,Agnieszka J Collier,No
Http://opendatacommunities.org/id/metropolitan-district-council/leeds,Leeds City Council,31/07/2023,Communities Housing and Environment,Customer Access,Supplies and Services,Bought In Professional Services,277,05/07/2023,2307-00358,0.00,27.00,R,REDACTED PERSONAL DATA,No
Http://opendatacommunities.org/id/metropolitan-district-council/leeds,Leeds City Council,31/07/2023,Communities Housing and Environment,Customer Access,Supplies and Services,Bought In Professional Services,277,05/07/2023,2307-00359,0.00,18.00,R,REDACTED PERSONAL DATA,No
Http://opendatacommunities.org/id/metropolitan-district-council/leeds,Leeds City Council,31/07/2023,Communities Housing and Environment,Customer Access,Supplies and Services,Bought In Professional Services,277,05/07/2023,2307-00360,0.00,18.00,R,REDACTED PERSONAL DATA,No
Http://opendatacommunities.org/id/metropolitan-district-council/leeds,Leeds City Council,31/07/2023,Communities Housing and Environment,Customer Access,Supplies and Services,Bought In Professional Services,277,12/07/2023,2307-00361,0.00,18.00,R,REDACTED PERSONAL DATA,No
Http://opendatacommunities.org/id/metropolitan-district-council/leeds,Leeds City Council,31/07/2023,Communities Housing and Environment,Customer Access,Supplies and Services,Bought In Professional Services,277,12/07/2023,2307-00362,0.00,18.00,R,REDACTED PERSONAL DATA,No
Http://opendatacommunities.org/id/metropolitan-district-council/leeds,Leeds City Council,31/07/2023,Communities Housing and Environment,Customer Access,Supplies and Services,Bought In Professional Services,277,12/07/2023,2307-00363,0.00,18.00,R,REDACTED PERSONAL DATA,No
Http://opendatacommunities.org/id/metropolitan-district-council/leeds,Leeds City Council,31/07/2023,Communities Housing and Environment,Customer Access,Supplies and Services,Bought In Professional Services,277,19/07/2023,2307-00364,0.00,18.00,R,REDACTED PERSONAL DATA,No
Http://opendatacommunities.org/id/metropolitan-district-council/leeds,Leeds City Council,31/07/2023,Communities Housing and Environment,Customer Access,Supplies and Services,Bought In Professional Services,277,19/07/2023,2307-00365,0.00,18.00,R,REDACTED PERSONAL DATA,No
Http://opendatacommunities.org/id/metropolitan-district-council/leeds,Leeds City Council,31/07/2023,Communities Housing and Environment,Customer Access,Supplies and Services,Bought In Professional Services,277,26/07/2023,2307-00366,0.00,18.00,R,REDACTED PERSONAL DATA,No
Http://opendatacommunities.org/id/metropolitan-district-council/leeds,Leeds City Council,31/07/2023,Communities Housing and Environment,Customer Access,Supplies and Services,Bought In Professional Services,277,26/07/2023,2307-00367,0.00,27.00,R,REDACTED PERSONAL DATA,No
Http://opendatacommunities.org/id/metropolitan-district-council/leeds,Leeds City Council,31/07/2023,Communities Housing and Environment,Customer Access,Supplies and Services,Bought In Professional Services,277,26/07/2023,2307-00368,0.00,18.00,R,REDACTED PERSONAL DATA,No
Http://opendatacommunities.org/id/metropolitan-district-council/leeds,Leeds City Council,31/07/2023,Communities Housing and Environment,Customer Access,Supplies and Services,Bought In Professional Services,277,26/07/2023,2307-00369,0.00,18.00,R,REDACTED PERSONAL DATA,No
Http://opendatacommunities.org/id/metropolitan-district-council/leeds,Leeds City Council,31/07/2023,Communities Housing and Environment,Customer Access,Supplies and Services,Bought In Professional Services,277,19/07/2023,2307-00370,0.00,27.00,R,Ahamat Hassan,No
Http://opendatacommunities.org/id/metropolitan-district-council/leeds,Leeds City Council,31/07/2023,Communities Housing and Environment,Customer Access,Supplies and Services,Bought In Professional Services,277,19/07/2023,2307-00371,0.00,18.00,R,Ahamat Hassan,No
Http://opendatacommunities.org/id/metropolitan-district-council/leeds,Leeds City Council,31/07/2023,Communities Housing and Environment,Customer Access,Supplies and Services,Bought In Professional Services,277,26/07/2023,2307-00372,0.00,27.00,R,Ahamat Hassan,No
Http://opendatacommunities.org/id/metropolitan-district-council/leeds,Leeds City Council,31/07/2023,City Development,Asset Management,Capital,OTHER COSTS,7,07/07/2023,2307-00373,0.00,5000.00,C,Ahead Partnership Ltd,No
Http://opendatacommunities.org/id/metropolitan-district-council/leeds,Leeds City Council,31/07/2023,Communities Housing and Environment,Customer Access,Supplies and Services,Bought In Professional Services,277,05/07/2023,2307-00374,0.00,14.00,R,Ahmed T. Al-Hamdi,No
Http://opendatacommunities.org/id/metropolitan-district-council/leeds,Leeds City Council,31/07/2023,Children and Families,Social Care,Agency Payments,General External Residential Placements,507,12/07/2023,2307-00375,0.00,33800.00,R,AHT Care Ltd,No
Http://opendatacommunities.org/id/metropolitan-district-council/leeds,Leeds City Council,31/07/2023,Children and Families,Social Care,Agency Payments,General External Residential Placements,507,28/07/2023,2307-00376,0.00,33800.00,R,AHT Care Ltd,No
Http://opendatacommunities.org/id/metropolitan-district-council/leeds,Leeds City Council as Accountable Body,31/07/2023,Social Services Pooled Budgets,Leeds Community Equip Store Pooled Budgt,Supplies and Services,Other Equipment,203,03/07/2023,2307-00377,0.00,694.50,R,AIDAPT BATHROOMS LTD,No
Http://opendatacommunities.org/id/metropolitan-district-council/leeds,Leeds City Council as Accountable Body,31/07/2023,Social Services Pooled Budgets,Leeds Community Equip Store Pooled Budgt,Supplies and Services,Other Equipment,203,07/07/2023,2307-00378,0.00,520.00,R,AIDAPT BATHROOMS LTD,No
Http://opendatacommunities.org/id/metropolitan-district-council/leeds,Leeds City Council as Accountable Body,31/07/2023,Social Services Pooled Budgets,Leeds Community Equip Store Pooled Budgt,Supplies and Services,Other Equipment,203,21/07/2023,2307-00379,0.00,5863.00,R,AIDAPT BATHROOMS LTD,No
Http://opendatacommunities.org/id/metropolitan-district-council/leeds,Leeds City Council,31/07/2023,Children and Families,Social Care,Agency Payments,Allowances,546,20/07/2023,2307-00380,0.00,216.76,R,REDACTED PERSONAL DATA,No
Http://opendatacommunities.org/id/metropolitan-district-council/leeds,Leeds City Council,31/07/2023,Strategy and Resources,Leeds Building Services,Supplies and Services,Operational Materials,205,28/07/2023,2307-00381,0.00,78.97,R,Air Conditioning Accessories,No
Http://opendatacommunities.org/id/metropolitan-district-council/leeds,Leeds City Council,31/07/2023,Communities Housing and Environment,Environmental Health,Supplies and Services,Other Hired And Contracted Services,265,28/07/2023,2307-00382,0.00,615.97,R,AIR LIQUIDE UK,No
Http://opendatacommunities.org/id/metropolitan-district-council/leeds,Leeds City Council,31/07/2023,Communities Housing and Environment,Environmental Health,Supplies and Services,Other Hired And Contracted Services,265,28/07/2023,2307-00383,0.00,615.97,R,AIR LIQUIDE UK,No
Http://opendatacommunities.org/id/metropolitan-district-council/leeds,Leeds City Council,31/07/2023,Communities Housing and Environment,Environmental Health,Supplies and Services,Other Hired And Contracted Services,265,28/07/2023,2307-00384,0.00,615.97,R,AIR LIQUIDE UK,No
Http://opendatacommunities.org/id/metropolitan-district-council/leeds,Leeds City Council,31/07/2023,Communities Housing and Environment,Environmental Health,Supplies and Services,Other Hired And Contracted Services,265,28/07/2023,2307-00385,0.00,615.97,R,AIR LIQUIDE UK,No
Http://opendatacommunities.org/id/metropolitan-district-council/leeds,Leeds City Council,31/07/2023,Children and Families,Social Care ,Transport,Public Transport Expenses,310,25/06/2023,2307-00386,0.00,421.71,R,Airbnb * Hmczrbwy4z,Yes
Http://opendatacommunities.org/id/metropolitan-district-council/leeds,Leeds City Council,31/07/2023,Children and Families,Social Care ,Transport,Public Transport Expenses,310,26/06/2023,2307-00387,0.00,-421.71,R,Airbnb * Hmczrbwy4z,Yes
Http://opendatacommunities.org/id/metropolitan-district-council/leeds,Leeds City Council,31/07/2023,Children and Families,Social Care ,Transport,Public Transport Expenses,310,12/06/2023,2307-00388,0.00,69.00,R,Airbnb * Hmepfxnqh3,Yes
Http://opendatacommunities.org/id/metropolitan-district-council/leeds,Leeds City Council,31/07/2023,Children and Families,Social Care ,Supplies and Services,General Amenity For Clients/Residents,285,01/06/2023,2307-00389,0.00,267.98,R,Airbnb * Hmfxxrb8c8,Yes
Http://opendatacommunities.org/id/metropolitan-district-council/leeds,Leeds City Council,31/07/2023,Children and Families,Social Care ,Transport,Public Transport Expenses,310,15/06/2023,2307-00390,0.00,2891.87,R,Airbnb * Hmhtfdyazd,Yes
Http://opendatacommunities.org/id/metropolitan-district-council/leeds,Leeds City Council,31/07/2023,Children and Families,Social Care ,Agency Payments,Placement Support,550,31/05/2023,2307-00391,0.00,1112.65,R,Airbnb * Hmwcf8ecpn,Yes
Http://opendatacommunities.org/id/metropolitan-district-council/leeds,Leeds City Council,31/07/2023,Communities Housing and Environment,Customer Access ,Supplies and Services,Operational Materials,205,21/06/2023,2307-00392,0.00,62.49,R,Aircon Direct,Yes
Http://opendatacommunities.org/id/metropolitan-district-council/leeds,Leeds City Council,31/07/2023,Communities Housing and Environment,Customer Access ,Supplies and Services,Operational Materials,205,21/06/2023,2307-00393,0.00,62.49,R,Aircon Direct,Yes
Http://opendatacommunities.org/id/metropolitan-district-council/leeds,Leeds City Council,31/07/2023,Communities Housing and Environment,Climate Energy & Greenspaces,Supplies and Services,Other Hired And Contracted Services,265,12/07/2023,2307-00394,0.00,489.00,R,Aire Valley Tree Services Ltd,No
Http://opendatacommunities.org/id/metropolitan-district-council/leeds,Leeds City Council,31/07/2023,Communities Housing and Environment,Climate Energy & Greenspaces,Supplies and Services,Other Hired And Contracted Services,265,14/07/2023,2307-00395,0.00,795.00,R,Aire Valley Tree Services Ltd,No
Http://opendatacommunities.org/id/metropolitan-district-council/leeds,Leeds City Council,31/07/2023,Communities Housing and Environment,Climate Energy & Greenspaces,Supplies and Services,Other Hired And Contracted Services,265,21/07/2023,2307-00396,0.00,249.00,R,Aire Valley Tree Services Ltd,No
Http://opendatacommunities.org/id/metropolitan-district-council/leeds,Leeds City Council,31/07/2023,Adults and Health,Services For Older People - 65 And Over,Agency Payments,Residential Care Dementia,571,19/07/2023,2307-00397,0.00,52893.16,R,Aire View Residential Home,No
Http://opendatacommunities.org/id/metropolitan-district-council/leeds,Leeds City Council,31/07/2023,Adults and Health,Services For Older People - 65 And Over,Agency Payments,Residential,580,19/07/2023,2307-00398,0.00,7876.25,R,Aire View Residential Home,No
Http://opendatacommunities.org/id/metropolitan-district-council/leeds,Leeds City Council,31/07/2023,Communities Housing and Environment,Strategic Housing Partnership & Support ,Supplies and Services,Teaching Materials,202,23/06/2023,2307-00399,0.00,47.52,R,Aireborough Decorating,Yes
Http://opendatacommunities.org/id/metropolitan-district-council/leeds,Leeds City Council,31/07/2023,Strategy and Resources,Commercial Services,Premises,Fixtures & Fittings,131,26/07/2023,2307-00400,0.00,6476.00,R,AIREDALE CATERING EQUIPMENT LTD,No
Http://opendatacommunities.org/id/metropolitan-district-council/leeds,Leeds City Council,31/07/2023,Strategic Landlord,Property and Contracts ,Transport,Public Transport Expenses,310,01/06/2023,2307-00401,0.00,9.10,R,Airpay 42658678-Roadrunne,Yes
Http://opendatacommunities.org/id/metropolitan-district-council/leeds,Leeds City Council,31/07/2023,Children and Families,Social Care ,Agency Payments,Contact,548,31/05/2023,2307-00402,0.00,34.15,R,Airpay 46882317-Amber Car,Yes
Http://opendatacommunities.org/id/metropolitan-district-council/leeds,Leeds City Council,31/07/2023,Children and Families,Social Care ,Appropriations,Leaving Care Allowances,634,01/06/2023,2307-00403,0.00,5.45,R,Airpay 46899690-Amber Car,Yes
Http://opendatacommunities.org/id/metropolitan-district-council/leeds,Leeds City Council,31/07/2023,Children and Families,Social Care ,Agency Payments,Contact,548,02/06/2023,2307-00404,0.00,6.55,R,Airpay 46913533-Amber Car,Yes
Http://opendatacommunities.org/id/metropolitan-district-council/leeds,Leeds City Council,31/07/2023,Adults and Health,Assessment And Care Management ,Supplies and Services,Other Hired And Contracted Services,265,05/06/2023,2307-00405,0.00,28.25,R,Airpay 46948655-Amber Car,Yes
Http://opendatacommunities.org/id/metropolitan-district-council/leeds,Leeds City Council,31/07/2023,Children and Families,Social Care ,Agency Payments,Section 17,551,12/06/2023,2307-00406,0.00,11.35,R,Airpay 47035173-Amber Car,Yes
Http://opendatacommunities.org/id/metropolitan-district-council/leeds,Leeds City Council,31/07/2023,Children and Families,Social Care ,Agency Payments,Placement Support,550,13/06/2023,2307-00407,0.00,6.15,R,Airpay 47046484-Amber Car,Yes
Http://opendatacommunities.org/id/metropolitan-district-council/leeds,Leeds City Council,31/07/2023,Children and Families,Social Care ,Agency Payments,Placement Support,550,13/06/2023,2307-00408,0.00,9.85,R,Airpay 47047412-Amber Car,Yes
Http://opendatacommunities.org/id/metropolitan-district-council/leeds,Leeds City Council,31/07/2023,Children and Families,Social Care ,Agency Payments,Placement Support,550,13/06/2023,2307-00409,0.00,22.15,R,Airpay 47048161-Amber Car,Yes
Http://opendatacommunities.org/id/metropolitan-district-council/leeds,Leeds City Council,31/07/2023,Children and Families,Social Care ,Agency Payments,Placement Support,550,13/06/2023,2307-00410,0.00,11.05,R,Airpay 47048210-Amber Car,Yes
Http://opendatacommunities.org/id/metropolitan-district-council/leeds,Leeds City Council,31/07/2023,Children and Families,Social Care ,Transport,Public Transport Expenses,310,14/06/2023,2307-00411,0.00,10.35,R,Airpay 47053354-Amber Car,Yes
Http://opendatacommunities.org/id/metropolitan-district-council/leeds,Leeds City Council,31/07/2023,Children and Families,Social Care ,Agency Payments,Placement Support,550,13/06/2023,2307-00412,0.00,44.15,R,Airpay 47056102-Amber Car,Yes
Http://opendatacommunities.org/id/metropolitan-district-council/leeds,Leeds City Council,31/07/2023,Children and Families,Social Care ,Transport,Public Transport Expenses,310,22/06/2023,2307-00413,0.00,5.96,R,Airpay 47158922-Amber Car,Yes
Http://opendatacommunities.org/id/metropolitan-district-council/leeds,Leeds City Council,31/07/2023,Children and Families,Social Care ,Transport,Public Transport Expenses,310,22/06/2023,2307-00414,0.00,4.54,R,Airpay 47170774-Amber Car,Yes
Http://opendatacommunities.org/id/metropolitan-district-council/leeds,Leeds City Council,31/07/2023,Children and Families,Social Care ,Transport,Public Transport Expenses,310,22/06/2023,2307-00415,0.00,6.12,R,Airpay 47177311-Amber Car,Yes
Http://opendatacommunities.org/id/metropolitan-district-council/leeds,Leeds City Council,31/07/2023,Communities Housing and Environment,Strategic Housing Partnership & Support ,Supplies and Services,Other Hired And Contracted Services,265,18/06/2023,2307-00416,0.00,49.85,R,Airpay 57442729-A2b Go Ca,Yes
Http://opendatacommunities.org/id/metropolitan-district-council/leeds,Leeds City Council as Accountable Body,31/07/2023,Social Services Pooled Budgets,Jcs For People With Learning Disabilitie,Agency Payments,Residential,580,19/07/2023,2307-00417,0.00,7677.84,R,AITCH care homes,No
Http://opendatacommunities.org/id/metropolitan-district-council/leeds,Leeds City Council,31/07/2023,Strategy and Resources,Leeds Building Services,Supplies and Services,Operational Furniture And Equipment,203,04/07/2023,2307-00418,0.00,359.19,R,AJM FIXINGS & POWER TOOLS LTD,No
Http://opendatacommunities.org/id/metropolitan-district-council/leeds,Leeds City Council,31/07/2023,Strategy and Resources,Leeds Building Services,Internal Income,Internal Income to commercial Services,896,04/07/2023,2307-00419,0.00,383.42,R,AJM FIXINGS & POWER TOOLS LTD,No
Http://opendatacommunities.org/id/metropolitan-district-council/leeds,Leeds City Council,31/07/2023,Strategy and Resources,Leeds Building Services,Supplies and Services,Operational Furniture And Equipment,203,04/07/2023,2307-00420,0.00,295.70,R,AJM FIXINGS & POWER TOOLS LTD,No
Http://opendatacommunities.org/id/metropolitan-district-council/leeds,Leeds City Council,31/07/2023,Strategy and Resources,Leeds Building Services,Premises,Cleaning Maintenance & Toiletries,127,05/07/2023,2307-00421,0.00,1085.43,R,AJM FIXINGS & POWER TOOLS LTD,No
Http://opendatacommunities.org/id/metropolitan-district-council/leeds,Leeds City Council,31/07/2023,Strategy and Resources,Leeds Building Services,Supplies and Services,Operational Furniture And Equipment,203,05/07/2023,2307-00422,0.00,435.46,R,AJM FIXINGS & POWER TOOLS LTD,No
Http://opendatacommunities.org/id/metropolitan-district-council/leeds,Leeds City Council,31/07/2023,Strategy and Resources,Leeds Building Services,Supplies and Services,Operational Furniture And Equipment,203,05/07/2023,2307-00423,0.00,67.00,R,AJM FIXINGS & POWER TOOLS LTD,No
Http://opendatacommunities.org/id/metropolitan-district-council/leeds,Leeds City Council,31/07/2023,Strategy and Resources,Leeds Building Services,Supplies and Services,Operational Furniture And Equipment,203,07/07/2023,2307-00424,0.00,543.00,R,AJM FIXINGS & POWER TOOLS LTD,No
Http://opendatacommunities.org/id/metropolitan-district-council/leeds,Leeds City Council,31/07/2023,Strategy and Resources,Leeds Building Services,Premises,Cleaning Maintenance & Toiletries,127,07/07/2023,2307-00425,0.00,729.56,R,AJM FIXINGS & POWER TOOLS LTD,No
Http://opendatacommunities.org/id/metropolitan-district-council/leeds,Leeds City Council,31/07/2023,Strategy and Resources,Leeds Building Services,Premises,Cleaning Maintenance & Toiletries,127,07/07/2023,2307-00426,0.00,525.00,R,AJM FIXINGS & POWER TOOLS LTD,No
Http://opendatacommunities.org/id/metropolitan-district-council/leeds,Leeds City Council,31/07/2023,Strategy and Resources,Leeds Building Services,Supplies and Services,Operational Furniture And Equipment,203,07/07/2023,2307-00427,0.00,99.00,R,AJM FIXINGS & POWER TOOLS LTD,No
Http://opendatacommunities.org/id/metropolitan-district-council/leeds,Leeds City Council,31/07/2023,Strategy and Resources,Leeds Building Services,Supplies and Services,Operational Furniture And Equipment,203,07/07/2023,2307-00428,0.00,99.00,R,AJM FIXINGS & POWER TOOLS LTD,No
Http://opendatacommunities.org/id/metropolitan-district-council/leeds,Leeds City Council,31/07/2023,Strategy and Resources,Leeds Building Services,Supplies and Services,Operational Furniture And Equipment,203,07/07/2023,2307-00429,0.00,141.90,R,AJM FIXINGS & POWER TOOLS LTD,No
Http://opendatacommunities.org/id/metropolitan-district-council/leeds,Leeds City Council,31/07/2023,Strategy and Resources,Leeds Building Services,Supplies and Services,Operational Furniture And Equipment,203,11/07/2023,2307-00430,0.00,684.14,R,AJM FIXINGS & POWER TOOLS LTD,No
Http://opendatacommunities.org/id/metropolitan-district-council/leeds,Leeds City Council,31/07/2023,Strategy and Resources,Leeds Building Services,Supplies and Services,Operational Furniture And Equipment,203,11/07/2023,2307-00431,0.00,101.00,R,AJM FIXINGS & POWER TOOLS LTD,No
Http://opendatacommunities.org/id/metropolitan-district-council/leeds,Leeds City Council,31/07/2023,Strategy and Resources,Leeds Building Services,Supplies and Services,Operational Furniture And Equipment,203,11/07/2023,2307-00432,0.00,359.19,R,AJM FIXINGS & POWER TOOLS LTD,No
Http://opendatacommunities.org/id/metropolitan-district-council/leeds,Leeds City Council,31/07/2023,Strategy and Resources,Leeds Building Services,Premises,Cleaning Maintenance & Toiletries,127,11/07/2023,2307-00433,0.00,9.50,R,AJM FIXINGS & POWER TOOLS LTD,No
Http://opendatacommunities.org/id/metropolitan-district-council/leeds,Leeds City Council,31/07/2023,Strategy and Resources,Leeds Building Services,Supplies and Services,Operational Furniture And Equipment,203,11/07/2023,2307-00434,0.00,105.41,R,AJM FIXINGS & POWER TOOLS LTD,No
Http://opendatacommunities.org/id/metropolitan-district-council/leeds,Leeds City Council,31/07/2023,Strategy and Resources,Leeds Building Services,Supplies and Services,Operational Furniture And Equipment,203,11/07/2023,2307-00435,0.00,18.24,R,AJM FIXINGS & POWER TOOLS LTD,No
Http://opendatacommunities.org/id/metropolitan-district-council/leeds,Leeds City Council,31/07/2023,Strategy and Resources,Leeds Building Services,Supplies and Services,Operational Furniture And Equipment,203,11/07/2023,2307-00436,0.00,86.80,R,AJM FIXINGS & POWER TOOLS LTD,No
Http://opendatacommunities.org/id/metropolitan-district-council/leeds,Leeds City Council,31/07/2023,Strategy and Resources,Leeds Building Services,Premises,Cleaning Maintenance & Toiletries,127,11/07/2023,2307-00437,0.00,296.20,R,AJM FIXINGS & POWER TOOLS LTD,No
Http://opendatacommunities.org/id/metropolitan-district-council/leeds,Leeds City Council,31/07/2023,Strategy and Resources,Leeds Building Services,Supplies and Services,Operational Furniture And Equipment,203,12/07/2023,2307-00438,0.00,140.50,R,AJM FIXINGS & POWER TOOLS LTD,No
Http://opendatacommunities.org/id/metropolitan-district-council/leeds,Leeds City Council,31/07/2023,Strategy and Resources,Leeds Building Services,Supplies and Services,Operational Furniture And Equipment,203,12/07/2023,2307-00439,0.00,67.00,R,AJM FIXINGS & POWER TOOLS LTD,No
Http://opendatacommunities.org/id/metropolitan-district-council/leeds,Leeds City Council,31/07/2023,Strategy and Resources,Leeds Building Services,Supplies and Services,Operational Furniture And Equipment,203,12/07/2023,2307-00440,0.00,359.19,R,AJM FIXINGS & POWER TOOLS LTD,No
Http://opendatacommunities.org/id/metropolitan-district-council/leeds,Leeds City Council,31/07/2023,Strategy and Resources,Leeds Building Services,Supplies and Services,Operational Furniture And Equipment,203,12/07/2023,2307-00441,0.00,359.19,R,AJM FIXINGS & POWER TOOLS LTD,No
Http://opendatacommunities.org/id/metropolitan-district-council/leeds,Leeds City Council,31/07/2023,Strategy and Resources,Leeds Building Services,Supplies and Services,Operational Furniture And Equipment,203,14/07/2023,2307-00442,0.00,288.43,R,AJM FIXINGS & POWER TOOLS LTD,No
Http://opendatacommunities.org/id/metropolitan-district-council/leeds,Leeds City Council,31/07/2023,Strategy and Resources,Leeds Building Services,Premises,Cleaning Maintenance & Toiletries,127,14/07/2023,2307-00443,0.00,90.50,R,AJM FIXINGS & POWER TOOLS LTD,No
Http://opendatacommunities.org/id/metropolitan-district-council/leeds,Leeds City Council,31/07/2023,Strategy and Resources,Leeds Building Services,Premises,Cleaning Maintenance & Toiletries,127,14/07/2023,2307-00444,0.00,1688.40,R,AJM FIXINGS & POWER TOOLS LTD,No
Http://opendatacommunities.org/id/metropolitan-district-council/leeds,Leeds City Council,31/07/2023,Strategy and Resources,Leeds Building Services,Premises,Cleaning Maintenance & Toiletries,127,14/07/2023,2307-00445,0.00,179.36,R,AJM FIXINGS & POWER TOOLS LTD,No
Http://opendatacommunities.org/id/metropolitan-district-council/leeds,Leeds City Council,31/07/2023,Strategy and Resources,Leeds Building Services,Supplies and Services,Operational Furniture And Equipment,203,14/07/2023,2307-00446,0.00,760.41,R,AJM FIXINGS & POWER TOOLS LTD,No
Http://opendatacommunities.org/id/metropolitan-district-council/leeds,Leeds City Council,31/07/2023,Strategy and Resources,Leeds Building Services,Premises,Cleaning Maintenance & Toiletries,127,14/07/2023,2307-00447,0.00,1232.90,R,AJM FIXINGS & POWER TOOLS LTD,No
Http://opendatacommunities.org/id/metropolitan-district-council/leeds,Leeds City Council,31/07/2023,Strategy and Resources,Leeds Building Services,Supplies and Services,Operational Furniture And Equipment,203,14/07/2023,2307-00448,0.00,1305.72,R,AJM FIXINGS & POWER TOOLS LTD,No
Http://opendatacommunities.org/id/metropolitan-district-council/leeds,Leeds City Council,31/07/2023,Strategy and Resources,Leeds Building Services,Premises,Cleaning Maintenance & Toiletries,127,14/07/2023,2307-00449,0.00,887.70,R,AJM FIXINGS & POWER TOOLS LTD,No
Http://opendatacommunities.org/id/metropolitan-district-council/leeds,Leeds City Council,31/07/2023,Strategy and Resources,Leeds Building Services,Premises,Cleaning Maintenance & Toiletries,127,18/07/2023,2307-00450,0.00,1059.40,R,AJM FIXINGS & POWER TOOLS LTD,No
Http://opendatacommunities.org/id/metropolitan-district-council/leeds,Leeds City Council,31/07/2023,Strategy and Resources,Leeds Building Services,Premises,Cleaning Maintenance & Toiletries,127,19/07/2023,2307-00451,0.00,240.00,R,AJM FIXINGS & POWER TOOLS LTD,No
Http://opendatacommunities.org/id/metropolitan-district-council/leeds,Leeds City Council,31/07/2023,Strategy and Resources,Leeds Building Services,Supplies and Services,Operational Furniture And Equipment,203,19/07/2023,2307-00452,0.00,162.79,R,AJM FIXINGS & POWER TOOLS LTD,No
Http://opendatacommunities.org/id/metropolitan-district-council/leeds,Leeds City Council,31/07/2023,Strategy and Resources,Leeds Building Services,Premises,Cleaning Maintenance & Toiletries,127,19/07/2023,2307-00453,0.00,265.90,R,AJM FIXINGS & POWER TOOLS LTD,No
Http://opendatacommunities.org/id/metropolitan-district-council/leeds,Leeds City Council,31/07/2023,Strategy and Resources,Leeds Building Services,Premises,Cleaning Maintenance & Toiletries,127,19/07/2023,2307-00454,0.00,337.00,R,AJM FIXINGS & POWER TOOLS LTD,No
Http://opendatacommunities.org/id/metropolitan-district-council/leeds,Leeds City Council,31/07/2023,Strategy and Resources,Leeds Building Services,Supplies and Services,Operational Furniture And Equipment,203,19/07/2023,2307-00455,0.00,125.83,R,AJM FIXINGS & POWER TOOLS LTD,No
Http://opendatacommunities.org/id/metropolitan-district-council/leeds,Leeds City Council,31/07/2023,Strategy and Resources,Leeds Building Services,Supplies and Services,Operational Furniture And Equipment,203,19/07/2023,2307-00456,0.00,496.00,R,AJM FIXINGS & POWER TOOLS LTD,No
Http://opendatacommunities.org/id/metropolitan-district-council/leeds,Leeds City Council,31/07/2023,Strategy and Resources,Leeds Building Services,Supplies and Services,Operational Furniture And Equipment,203,21/07/2023,2307-00457,0.00,359.19,R,AJM FIXINGS & POWER TOOLS LTD,No
Http://opendatacommunities.org/id/metropolitan-district-council/leeds,Leeds City Council,31/07/2023,Strategy and Resources,Leeds Building Services,Supplies and Services,Operational Furniture And Equipment,203,21/07/2023,2307-00458,0.00,103.17,R,AJM FIXINGS & POWER TOOLS LTD,No
Http://opendatacommunities.org/id/metropolitan-district-council/leeds,Leeds City Council,31/07/2023,Strategy and Resources,Leeds Building Services,Supplies and Services,Operational Furniture And Equipment,203,21/07/2023,2307-00459,0.00,95.00,R,AJM FIXINGS & POWER TOOLS LTD,No
Http://opendatacommunities.org/id/metropolitan-district-council/leeds,Leeds City Council,31/07/2023,Strategy and Resources,Leeds Building Services,Supplies and Services,Operational Furniture And Equipment,203,21/07/2023,2307-00460,0.00,54.15,R,AJM FIXINGS & POWER TOOLS LTD,No
Http://opendatacommunities.org/id/metropolitan-district-council/leeds,Leeds City Council,31/07/2023,Strategy and Resources,Leeds Building Services,Supplies and Services,Operational Furniture And Equipment,203,21/07/2023,2307-00461,0.00,330.44,R,AJM FIXINGS & POWER TOOLS LTD,No
Http://opendatacommunities.org/id/metropolitan-district-council/leeds,Leeds City Council,31/07/2023,Strategy and Resources,Leeds Building Services,Supplies and Services,Operational Furniture And Equipment,203,21/07/2023,2307-00462,0.00,449.00,R,AJM FIXINGS & POWER TOOLS LTD,No
Http://opendatacommunities.org/id/metropolitan-district-council/leeds,Leeds City Council,31/07/2023,Strategy and Resources,Leeds Building Services,Supplies and Services,Operational Furniture And Equipment,203,21/07/2023,2307-00463,0.00,103.17,R,AJM FIXINGS & POWER TOOLS LTD,No
Http://opendatacommunities.org/id/metropolitan-district-council/leeds,Leeds City Council,31/07/2023,Strategy and Resources,Leeds Building Services,Supplies and Services,Operational Furniture And Equipment,203,21/07/2023,2307-00464,0.00,181.00,R,AJM FIXINGS & POWER TOOLS LTD,No
Http://opendatacommunities.org/id/metropolitan-district-council/leeds,Leeds City Council,31/07/2023,Strategy and Resources,Leeds Building Services,Supplies and Services,Operational Furniture And Equipment,203,21/07/2023,2307-00465,0.00,25.39,R,AJM FIXINGS & POWER TOOLS LTD,No
Http://opendatacommunities.org/id/metropolitan-district-council/leeds,Leeds City Council,31/07/2023,Strategy and Resources,Leeds Building Services,Premises,Cleaning Maintenance & Toiletries,127,21/07/2023,2307-00466,0.00,198.00,R,AJM FIXINGS & POWER TOOLS LTD,No
Http://opendatacommunities.org/id/metropolitan-district-council/leeds,Leeds City Council,31/07/2023,Strategy and Resources,Leeds Building Services,Supplies and Services,Operational Furniture And Equipment,203,21/07/2023,2307-00467,0.00,43.17,R,AJM FIXINGS & POWER TOOLS LTD,No
Http://opendatacommunities.org/id/metropolitan-district-council/leeds,Leeds City Council,31/07/2023,Strategy and Resources,Leeds Building Services,Supplies and Services,Operational Furniture And Equipment,203,21/07/2023,2307-00468,0.00,245.00,R,AJM FIXINGS & POWER TOOLS LTD,No
Http://opendatacommunities.org/id/metropolitan-district-council/leeds,Leeds City Council,31/07/2023,Strategy and Resources,Leeds Building Services,Premises,Cleaning Maintenance & Toiletries,127,26/07/2023,2307-00469,0.00,249.90,R,AJM FIXINGS & POWER TOOLS LTD,No
Http://opendatacommunities.org/id/metropolitan-district-council/leeds,Leeds City Council,31/07/2023,Strategy and Resources,Leeds Building Services,Premises,Cleaning Maintenance & Toiletries,127,26/07/2023,2307-00470,0.00,122.26,R,AJM FIXINGS & POWER TOOLS LTD,No
Http://opendatacommunities.org/id/metropolitan-district-council/leeds,Leeds City Council,31/07/2023,Strategy and Resources,Leeds Building Services,Supplies and Services,Operational Furniture And Equipment,203,26/07/2023,2307-00471,0.00,254.10,R,AJM FIXINGS & POWER TOOLS LTD,No
Http://opendatacommunities.org/id/metropolitan-district-council/leeds,Leeds City Council,31/07/2023,Strategy and Resources,Leeds Building Services,Premises,Cleaning Maintenance & Toiletries,127,28/07/2023,2307-00472,0.00,416.25,R,AJM FIXINGS & POWER TOOLS LTD,No
Http://opendatacommunities.org/id/metropolitan-district-council/leeds,Leeds City Council,31/07/2023,Strategy and Resources,Leeds Building Services,Supplies and Services,Operational Furniture And Equipment,203,28/07/2023,2307-00473,0.00,219.90,R,AJM FIXINGS & POWER TOOLS LTD,No
Http://opendatacommunities.org/id/metropolitan-district-council/leeds,Leeds City Council,31/07/2023,Strategy and Resources,Leeds Building Services,Supplies and Services,Operational Furniture And Equipment,203,28/07/2023,2307-00474,0.00,162.79,R,AJM FIXINGS & POWER TOOLS LTD,No
Http://opendatacommunities.org/id/metropolitan-district-council/leeds,Leeds City Council,31/07/2023,Strategy and Resources,Leeds Building Services,Supplies and Services,Operational Furniture And Equipment,203,28/07/2023,2307-00475,0.00,448.00,R,AJM FIXINGS & POWER TOOLS LTD,No
Http://opendatacommunities.org/id/metropolitan-district-council/leeds,Leeds City Council,31/07/2023,Strategy and Resources,Leeds Building Services,Supplies and Services,Operational Furniture And Equipment,203,28/07/2023,2307-00476,0.00,359.19,R,AJM FIXINGS & POWER TOOLS LTD,No
Http://opendatacommunities.org/id/metropolitan-district-council/leeds,Leeds City Council,31/07/2023,Strategy and Resources,Leeds Building Services,Supplies and Services,Operational Furniture And Equipment,203,28/07/2023,2307-00477,0.00,95.00,R,AJM FIXINGS & POWER TOOLS LTD,No
Http://opendatacommunities.org/id/metropolitan-district-council/leeds,Leeds City Council,31/07/2023,Strategy and Resources,Leeds Building Services,Premises,Cleaning Maintenance & Toiletries,127,28/07/2023,2307-00478,0.00,515.94,R,AJM FIXINGS & POWER TOOLS LTD,No
Http://opendatacommunities.org/id/metropolitan-district-council/leeds,Leeds City Council,31/07/2023,Strategy and Resources,Leeds Building Services,Premises,Cleaning Maintenance & Toiletries,127,28/07/2023,2307-00479,0.00,209.89,R,AJM FIXINGS & POWER TOOLS LTD,No
Http://opendatacommunities.org/id/metropolitan-district-council/leeds,Leeds City Council,31/07/2023,Strategy and Resources,Leeds Building Services,Supplies and Services,Operational Furniture And Equipment,203,28/07/2023,2307-00480,0.00,95.60,R,AJM FIXINGS & POWER TOOLS LTD,No
Http://opendatacommunities.org/id/metropolitan-district-council/leeds,Leeds City Council,31/07/2023,Strategy and Resources,Leeds Building Services,Premises,Cleaning Maintenance & Toiletries,127,28/07/2023,2307-00481,0.00,55.02,R,AJM FIXINGS & POWER TOOLS LTD,No
Http://opendatacommunities.org/id/metropolitan-district-council/leeds,Leeds City Council,31/07/2023,Strategy and Resources,Leeds Building Services,Premises,Cleaning Maintenance & Toiletries,127,28/07/2023,2307-00482,0.00,268.80,R,AJM FIXINGS & POWER TOOLS LTD,No
Http://opendatacommunities.org/id/metropolitan-district-council/leeds,Leeds City Council,31/07/2023,Adults and Health,Social Services Support Services,Employees,Training & Development,70,07/07/2023,2307-00483,0.00,7500.00,R,Akd Solutions Ltd,No
Http://opendatacommunities.org/id/metropolitan-district-council/leeds,Leeds City Council,31/07/2023,Strategic Landlord,HRA Housing Leeds,Capital,CONSTRUCTION,3,07/07/2023,2307-00484,0.00,80.00,C,REDACTED PERSONAL DATA,No
Http://opendatacommunities.org/id/metropolitan-district-council/leeds,Leeds City Council,31/07/2023,Communities Housing and Environment,Strategic Housing Partnership & Support,Capital,CONSTRUCTION,3,14/07/2023,2307-00485,0.00,199.85,C,AKR Construction Ltd,No
Http://opendatacommunities.org/id/metropolitan-district-council/leeds,Leeds City Council,31/07/2023,Communities Housing and Environment,Strategic Housing Partnership & Support,Capital,CONSTRUCTION,3,28/07/2023,2307-00486,0.00,5500.00,C,AKR Construction Ltd,No
Http://opendatacommunities.org/id/metropolitan-district-council/leeds,Leeds City Council,31/07/2023,Communities Housing and Environment,Strategic Housing Partnership & Support ,Supplies and Services,Books & Audio-Visual Materials,206,23/06/2023,2307-00487,0.00,74.99,R,Alamy.Com Limited,Yes
Http://opendatacommunities.org/id/metropolitan-district-council/leeds,Leeds City Council,31/07/2023,Communities Housing and Environment,Strategic Housing Partnership & Support ,Supplies and Services,Books & Audio-Visual Materials,206,23/06/2023,2307-00488,0.00,29.99,R,Alamy.Com Limited,Yes
Http://opendatacommunities.org/id/metropolitan-district-council/leeds,Leeds City Council,31/07/2023,Strategy and Resources,Democratic Services ,Appropriations,Civic Allowances,651,23/06/2023,2307-00489,0.00,60.00,R,Alan Brown Flowers,Yes
Http://opendatacommunities.org/id/metropolitan-district-council/leeds,Leeds City Council,31/07/2023,Children and Families,Social Care,Agency Payments,Placement Support,550,20/07/2023,2307-00490,0.00,235.67,R,REDACTED PERSONAL DATA,No
Http://opendatacommunities.org/id/metropolitan-district-council/leeds,Leeds City Council,31/07/2023,Children and Families,Social Care,Supplies and Services,Hospitality,255,10/07/2023,2307-00491,0.00,115.08,R,REDACTED PERSONAL DATA,No
Http://opendatacommunities.org/id/metropolitan-district-council/leeds,Leeds City Council,31/07/2023,Children and Families,Social Care,Agency Payments,Services Rendered By Other Organisations,511,07/07/2023,2307-00492,0.00,959.40,R,REDACTED PERSONAL DATA,No
Http://opendatacommunities.org/id/metropolitan-district-council/leeds,Leeds City Council,31/07/2023,Children and Families,Social Care ,Agency Payments,Section 17,551,08/06/2023,2307-00493,0.00,25.00,R,Aldi,Yes
Http://opendatacommunities.org/id/metropolitan-district-council/leeds,Leeds City Council,31/07/2023,Children and Families,Social Care ,Agency Payments,Section 17,551,15/06/2023,2307-00494,0.00,30.00,R,Aldi,Yes
Http://opendatacommunities.org/id/metropolitan-district-council/leeds,Leeds City Council,31/07/2023,Children and Families,Social Care ,Supplies and Services,Teaching Materials,202,16/06/2023,2307-00495,0.00,16.69,R,Aldi,Yes
Http://opendatacommunities.org/id/metropolitan-district-council/leeds,Leeds City Council,31/07/2023,Children and Families,Social Care ,Agency Payments,Placement Support,550,29/06/2023,2307-00496,0.00,11.19,R,Aldi,Yes
Http://opendatacommunities.org/id/metropolitan-district-council/leeds,Leeds City Council,31/07/2023,Children and Families,Social Care ,Supplies and Services,Food & Drink,231,10/06/2023,2307-00497,0.00,25.07,R,Aldi 103 779,Yes
Http://opendatacommunities.org/id/metropolitan-district-council/leeds,Leeds City Council,31/07/2023,Communities Housing and Environment,Strategic Housing Partnership & Support ,Supplies and Services,Food & Drink,231,12/06/2023,2307-00498,0.00,4.42,R,Aldi 103 779,Yes
Http://opendatacommunities.org/id/metropolitan-district-council/leeds,Leeds City Council,31/07/2023,Communities Housing and Environment,Strategic Housing Partnership & Support ,Supplies and Services,Teaching Materials,202,03/06/2023,2307-00499,0.00,3.38,R,Aldi 15 779,Yes
Http://opendatacommunities.org/id/metropolitan-district-council/leeds,Leeds City Council,31/07/2023,Communities Housing and Environment,Strategic Housing Partnership & Support ,Supplies and Services,Teaching Materials,202,08/06/2023,2307-00500,0.00,31.28,R,Aldi 15 779,Yes
Http://opendatacommunities.org/id/metropolitan-district-council/leeds,Leeds City Council,31/07/2023,Communities Housing and Environment,Strategic Housing Partnership & Support ,Supplies and Services,Teaching Materials,202,17/06/2023,2307-00501,0.00,18.09,R,Aldi 15 779,Yes
Http://opendatacommunities.org/id/metropolitan-district-council/leeds,Leeds City Council,31/07/2023,Communities Housing and Environment,Strategic Housing Partnership & Support ,Supplies and Services,Teaching Materials,202,17/06/2023,2307-00502,0.00,2.49,R,Aldi 15 779,Yes
Http://opendatacommunities.org/id/metropolitan-district-council/leeds,Leeds City Council,31/07/2023,Children and Families,Social Care ,Supplies and Services,Food & Drink,231,10/06/2023,2307-00503,0.00,6.56,R,Aldi 40 779,Yes
Http://opendatacommunities.org/id/metropolitan-district-council/leeds,Leeds City Council,31/07/2023,Children and Families,Social Care ,Supplies and Services,Food & Drink,231,10/06/2023,2307-00504,0.00,6.75,R,Aldi 40 779,Yes
Http://opendatacommunities.org/id/metropolitan-district-council/leeds,Leeds City Council,31/07/2023,Communities Housing and Environment,Communities ,Supplies and Services,Operational Materials,205,12/06/2023,2307-00505,0.00,4.19,R,Aldi 40 779,Yes
Http://opendatacommunities.org/id/metropolitan-district-council/leeds,Leeds City Council,31/07/2023,Communities Housing and Environment,Climate Energy & Greenspaces ,Supplies and Services,Operational Materials,205,14/06/2023,2307-00506,0.00,2.42,R,Aldi 40 779,Yes
Http://opendatacommunities.org/id/metropolitan-district-council/leeds,Leeds City Council,31/07/2023,Communities Housing and Environment,Communities ,Supplies and Services,Operational Materials,205,19/06/2023,2307-00507,0.00,3.25,R,Aldi 40 779,Yes
Http://opendatacommunities.org/id/metropolitan-district-council/leeds,Leeds City Council,31/07/2023,Children and Families,Social Care ,Supplies and Services,Food & Drink,231,29/06/2023,2307-00508,0.00,15.16,R,Aldi 40 779,Yes
Http://opendatacommunities.org/id/metropolitan-district-council/leeds,Leeds City Council,31/07/2023,Children and Families,Social Care ,Supplies and Services,Food & Drink,231,02/06/2023,2307-00509,0.00,23.94,R,Aldi 49 779,Yes
Http://opendatacommunities.org/id/metropolitan-district-council/leeds,Leeds City Council,31/07/2023,Children and Families,Social Care ,Supplies and Services,Food & Drink,231,06/06/2023,2307-00510,0.00,25.98,R,Aldi 49 779,Yes
Http://opendatacommunities.org/id/metropolitan-district-council/leeds,Leeds City Council,31/07/2023,Children and Families,Social Care ,Agency Payments,Section 17,551,15/06/2023,2307-00511,0.00,76.77,R,Aldi 49 779,Yes
Http://opendatacommunities.org/id/metropolitan-district-council/leeds,Leeds City Council,31/07/2023,Children and Families,Social Care ,Supplies and Services,Teaching Materials,202,05/06/2023,2307-00512,0.00,8.24,R,Aldi 71 779,Yes
Http://opendatacommunities.org/id/metropolitan-district-council/leeds,Leeds City Council,31/07/2023,Children and Families,Social Care ,Agency Payments,Placement Support,550,08/06/2023,2307-00513,0.00,24.12,R,Aldi 71 779,Yes
Http://opendatacommunities.org/id/metropolitan-district-council/leeds,Leeds City Council,31/07/2023,Children and Families,Social Care ,Supplies and Services,Food & Drink,231,16/06/2023,2307-00514,0.00,36.63,R,Aldi 71 779,Yes
Http://opendatacommunities.org/id/metropolitan-district-council/leeds,Leeds City Council,31/07/2023,Communities Housing and Environment,Strategic Housing Partnership & Support ,Supplies and Services,Food & Drink,231,12/06/2023,2307-00515,0.00,42.50,R,Aldi 779117,Yes
Http://opendatacommunities.org/id/metropolitan-district-council/leeds,Leeds City Council,31/07/2023,Communities Housing and Environment,Strategic Housing Partnership & Support ,Supplies and Services,Food & Drink,231,19/06/2023,2307-00516,0.00,42.50,R,Aldi 779117,Yes
Http://opendatacommunities.org/id/metropolitan-district-council/leeds,Leeds City Council,31/07/2023,Communities Housing and Environment,Strategic Housing Partnership & Support ,Supplies and Services,Food & Drink,231,26/06/2023,2307-00517,0.00,42.50,R,Aldi 779117,Yes
Http://opendatacommunities.org/id/metropolitan-district-council/leeds,Leeds City Council,31/07/2023,Communities Housing and Environment,Communities ,Supplies and Services,'Well Being' Large Grants Projects,230,27/06/2023,2307-00518,0.00,2.50,R,Aldi 779117,Yes
Http://opendatacommunities.org/id/metropolitan-district-council/leeds,Leeds City Council,31/07/2023,Adults and Health,Services For Older People - 65 And Over ,Supplies and Services,General Amenity For Clients/Residents,285,13/06/2023,2307-00519,0.00,13.19,R,Aldi 779-90,Yes
Http://opendatacommunities.org/id/metropolitan-district-council/leeds,Leeds City Council,31/07/2023,Children and Families,Social Care ,Agency Payments,Services Rendered By Other Organisations,511,21/06/2023,2307-00520,0.00,83.33,R,Aldi 78 779,Yes
Http://opendatacommunities.org/id/metropolitan-district-council/leeds,Leeds City Council,31/07/2023,Children and Families,Social Care ,Supplies and Services,Food & Drink,231,13/06/2023,2307-00521,0.00,57.32,R,Aldi 85 779,Yes
Http://opendatacommunities.org/id/metropolitan-district-council/leeds,Leeds City Council,31/07/2023,Children and Families,Social Care ,Supplies and Services,Food & Drink,231,15/06/2023,2307-00522,0.00,7.72,R,Aldi 85 779,Yes
Http://opendatacommunities.org/id/metropolitan-district-council/leeds,Leeds City Council,31/07/2023,Children and Families,Social Care ,Agency Payments,Section 17,551,29/06/2023,2307-00523,0.00,16.80,R,Aldi 85 779,Yes
Http://opendatacommunities.org/id/metropolitan-district-council/leeds,Leeds City Council,31/07/2023,Children and Families,Social Care ,Agency Payments,Section 17,551,01/06/2023,2307-00524,0.00,70.65,R,Aldi 88 779,Yes
Http://opendatacommunities.org/id/metropolitan-district-council/leeds,Leeds City Council,31/07/2023,Children and Families,Social Care ,Supplies and Services,Food & Drink,231,07/06/2023,2307-00525,0.00,0.83,R,Aldi 88 779,Yes
Http://opendatacommunities.org/id/metropolitan-district-council/leeds,Leeds City Council,31/07/2023,Children and Families,Social Care ,Supplies and Services,Food & Drink,231,07/06/2023,2307-00526,0.00,7.93,R,Aldi 88 779,Yes
Http://opendatacommunities.org/id/metropolitan-district-council/leeds,Leeds City Council,31/07/2023,Children and Families,Social Care ,Supplies and Services,Food & Drink,231,14/06/2023,2307-00527,0.00,11.25,R,Aldi 88 779,Yes
Http://opendatacommunities.org/id/metropolitan-district-council/leeds,Leeds City Council,31/07/2023,Children and Families,Social Care ,Supplies and Services,Food & Drink,231,31/05/2023,2307-00528,0.00,145.78,R,Aldi 89 779,Yes
Http://opendatacommunities.org/id/metropolitan-district-council/leeds,Leeds City Council,31/07/2023,Children and Families,Social Care ,Supplies and Services,Food & Drink,231,31/05/2023,2307-00529,0.00,9.22,R,Aldi 89 779,Yes
Http://opendatacommunities.org/id/metropolitan-district-council/leeds,Leeds City Council,31/07/2023,Children and Families,Social Care ,Supplies and Services,Food & Drink,231,06/06/2023,2307-00530,0.00,51.81,R,Aldi 89 779,Yes
Http://opendatacommunities.org/id/metropolitan-district-council/leeds,Leeds City Council,31/07/2023,Communities Housing and Environment,Strategic Housing Partnership & Support ,Supplies and Services,Food & Drink,231,14/06/2023,2307-00531,0.00,7.34,R,Aldi 89 779,Yes
Http://opendatacommunities.org/id/metropolitan-district-council/leeds,Leeds City Council,31/07/2023,Children and Families,Social Care ,Appropriations,Young People Expenses,654,15/06/2023,2307-00532,0.00,15.00,R,Aldi 89 779,Yes
Http://opendatacommunities.org/id/metropolitan-district-council/leeds,Leeds City Council,31/07/2023,Children and Families,Social Care ,Supplies and Services,Food & Drink,231,19/06/2023,2307-00533,0.00,151.70,R,Aldi 89 779,Yes
Http://opendatacommunities.org/id/metropolitan-district-council/leeds,Leeds City Council,31/07/2023,Adults and Health,Services For Older People - 65 And Over ,Supplies and Services,Food & Drink,231,18/06/2023,2307-00534,0.00,10.57,R,Aldi 99 779,Yes
Http://opendatacommunities.org/id/metropolitan-district-council/leeds,Leeds City Council,31/07/2023,Children and Families,Social Care ,Supplies and Services,Food & Drink,231,31/05/2023,2307-00535,0.00,31.80,R,Aldi Stores,Yes
Http://opendatacommunities.org/id/metropolitan-district-council/leeds,Leeds City Council,31/07/2023,Children and Families,Social Care ,Appropriations,Leaving Care Allowances,634,08/06/2023,2307-00536,0.00,15.42,R,Aldi Stores,Yes
Http://opendatacommunities.org/id/metropolitan-district-council/leeds,Leeds City Council,31/07/2023,Children and Families,Social Care ,Supplies and Services,Food & Drink,231,21/06/2023,2307-00537,0.00,9.96,R,Aldi Stores,Yes
Http://opendatacommunities.org/id/metropolitan-district-council/leeds,Leeds City Council,31/07/2023,Children and Families,Social Care ,Supplies and Services,Food & Drink,231,28/06/2023,2307-00538,0.00,5.92,R,Aldi Stores,Yes
Http://opendatacommunities.org/id/metropolitan-district-council/leeds,Leeds City Council,31/07/2023,Children and Families,Social Care,Agency Payments,Section 17,551,28/07/2023,2307-00539,0.00,150.00,R,REDACTED PERSONAL DATA,No
Http://opendatacommunities.org/id/metropolitan-district-council/leeds,Leeds City Council,31/07/2023,Communities Housing and Environment,Customer Access,Transport,Public Transport Expenses,310,07/07/2023,2307-00540,0.00,4.00,R,REDACTED PERSONAL DATA,No
Http://opendatacommunities.org/id/metropolitan-district-council/leeds,Leeds City Council,31/07/2023,Children and Families,Social Care,Internal Recharges,Legal Disbursements,411,07/07/2023,2307-00541,0.00,451.00,R,Alex Taylor,No
Http://opendatacommunities.org/id/metropolitan-district-council/leeds,Leeds City Council,31/07/2023,Strategy and Resources,Commercial Services,Supplies and Services,Other Hired And Contracted Services,265,13/07/2023,2307-00542,0.00,70.00,R,ALEX WAGG,No
Http://opendatacommunities.org/id/metropolitan-district-council/leeds,Leeds City Council,31/07/2023,Strategy and Resources,Commercial Services,Supplies and Services,Other Hired And Contracted Services,265,18/07/2023,2307-00543,0.00,150.00,R,ALEX WAGG,No
Http://opendatacommunities.org/id/metropolitan-district-council/leeds,Leeds City Council,31/07/2023,Strategy and Resources,Commercial Services,Supplies and Services,Other Hired And Contracted Services,265,18/07/2023,2307-00544,0.00,300.00,R,ALEX WAGG,No
Http://opendatacommunities.org/id/metropolitan-district-council/leeds,Leeds City Council,31/07/2023,Strategy and Resources,Commercial Services,Supplies and Services,Other Hired And Contracted Services,265,18/07/2023,2307-00545,0.00,495.00,R,ALEX WAGG,No
Http://opendatacommunities.org/id/metropolitan-district-council/leeds,Leeds City Council,31/07/2023,Strategy and Resources,Commercial Services,Supplies and Services,Other Hired And Contracted Services,265,18/07/2023,2307-00546,0.00,230.00,R,ALEX WAGG,No
Http://opendatacommunities.org/id/metropolitan-district-council/leeds,Leeds City Council,31/07/2023,Strategy and Resources,Commercial Services,Supplies and Services,Other Hired And Contracted Services,265,21/07/2023,2307-00547,0.00,70.00,R,ALEX WAGG,No
Http://opendatacommunities.org/id/metropolitan-district-council/leeds,Leeds City Council,31/07/2023,Strategy and Resources,Commercial Services,Supplies and Services,Other Hired And Contracted Services,265,21/07/2023,2307-00548,0.00,456.50,R,ALEX WAGG,No
Http://opendatacommunities.org/id/metropolitan-district-council/leeds,Leeds City Council,31/07/2023,Strategy and Resources,Commercial Services,Supplies and Services,Other Hired And Contracted Services,265,31/07/2023,2307-00549,0.00,70.00,R,ALEX WAGG,No
Http://opendatacommunities.org/id/metropolitan-district-council/leeds,Leeds City Council,31/07/2023,Strategy and Resources,Commercial Services,Supplies and Services,Other Hired And Contracted Services,265,31/07/2023,2307-00550,0.00,200.00,R,ALEX WAGG,No
Http://opendatacommunities.org/id/metropolitan-district-council/leeds,Leeds City Council,31/07/2023,Strategy and Resources,Commercial Services,Supplies and Services,Other Hired And Contracted Services,265,31/07/2023,2307-00551,0.00,250.00,R,ALEX WAGG,No
Http://opendatacommunities.org/id/metropolitan-district-council/leeds,Leeds City Council,31/07/2023,Strategy and Resources,Commercial Services,Supplies and Services,Other Hired And Contracted Services,265,31/07/2023,2307-00552,0.00,468.00,R,ALEX WAGG,No
Http://opendatacommunities.org/id/metropolitan-district-council/leeds,Leeds City Council,31/07/2023,Adults and Health,Services For Older People - 65 And Over,Agency Payments,Residential Care Dementia,571,19/07/2023,2307-00553,0.00,25417.78,R,ALEXANDER RESIDENTIAL HOME,No
Http://opendatacommunities.org/id/metropolitan-district-council/leeds,Leeds City Council,31/07/2023,Adults and Health,Services For Older People - 65 And Over,Agency Payments,Residential,580,19/07/2023,2307-00554,0.00,20983.73,R,ALEXANDER RESIDENTIAL HOME,No
Http://opendatacommunities.org/id/metropolitan-district-council/leeds,Leeds City Council as Accountable Body,31/07/2023,Social Services Pooled Budgets,Jcs For People With Learning Disabilitie,Agency Payments,Residential,580,19/07/2023,2307-00555,0.00,3096.00,R,ALEXANDER RESIDENTIAL HOME,No
Http://opendatacommunities.org/id/metropolitan-district-council/leeds,Leeds City Council,31/07/2023,Communities Housing and Environment,Customer Access,Supplies and Services,Bought In Professional Services,277,05/07/2023,2307-00556,0.00,18.00,R,Alexandra Costenco,No
Http://opendatacommunities.org/id/metropolitan-district-council/leeds,Leeds City Council,31/07/2023,Communities Housing and Environment,Customer Access,Supplies and Services,Bought In Professional Services,277,19/07/2023,2307-00557,0.00,18.00,R,Alexandra Costenco,No
Http://opendatacommunities.org/id/metropolitan-district-council/leeds,Leeds City Council,31/07/2023,Communities Housing and Environment,Customer Access,Supplies and Services,Bought In Professional Services,277,19/07/2023,2307-00558,0.00,18.00,R,Alexandra Costenco,No
Http://opendatacommunities.org/id/metropolitan-district-council/leeds,Leeds City Council,31/07/2023,Adults and Health,Services For Older People - 65 And Over,Agency Payments,Residential Care Dementia,571,19/07/2023,2307-00559,0.00,8613.86,R,ALEXANDRA COURT,No
Http://opendatacommunities.org/id/metropolitan-district-council/leeds,Leeds City Council,31/07/2023,Adults and Health,Services For Older People - 65 And Over,Agency Payments,Residential,580,19/07/2023,2307-00560,0.00,6586.85,R,ALEXANDRA COURT,No
Http://opendatacommunities.org/id/metropolitan-district-council/leeds,Leeds City Council,31/07/2023,Children and Families,Social Care,Agency Payments,Services Rendered By Other Organisations,511,07/07/2023,2307-00561,0.00,319.80,R,REDACTED PERSONAL DATA,No
Http://opendatacommunities.org/id/metropolitan-district-council/leeds,Leeds City Council,31/07/2023,Adults and Health,Services For Older People - 65 And Over ,Supplies and Services,Clothing & Uniforms,241,31/05/2023,2307-00562,0.00,1791.58,R,Alexandra Website,Yes
Http://opendatacommunities.org/id/metropolitan-district-council/leeds,Leeds City Council,31/07/2023,Adults and Health,Home Care Services ,Supplies and Services,Clothing & Uniforms,241,13/06/2023,2307-00563,0.00,218.89,R,Alexandra Website,Yes
Http://opendatacommunities.org/id/metropolitan-district-council/leeds,Leeds City Council,31/07/2023,Adults and Health,Services For Older People - 65 And Over ,Supplies and Services,Clothing & Uniforms,241,20/06/2023,2307-00564,0.00,1079.46,R,Alexandra Website,Yes
Http://opendatacommunities.org/id/metropolitan-district-council/leeds,Leeds City Council,31/07/2023,Communities Housing and Environment,Strategic Housing Partnership & Support ,Supplies and Services,Clothing & Uniforms,241,20/06/2023,2307-00565,0.00,77.96,R,Alexandra Website,Yes
Http://opendatacommunities.org/id/metropolitan-district-council/leeds,Leeds City Council,31/07/2023,Children and Families,Social Care ,Transport,Public Transport Expenses,310,26/06/2023,2307-00566,0.00,21.25,R,Al-Fares Limited,Yes
Http://opendatacommunities.org/id/metropolitan-district-council/leeds,Leeds City Council,31/07/2023,Strategy and Resources,Leeds Building Services,Supplies and Services,Other Hired And Contracted Services,265,06/07/2023,2307-00567,0.00,970.00,R,Alfred Bagnall & Sons (Leeds) Ltd,No
Http://opendatacommunities.org/id/metropolitan-district-council/leeds,Leeds City Council,31/07/2023,Strategy and Resources,Leeds Building Services,Supplies and Services,Other Hired And Contracted Services,265,06/07/2023,2307-00568,0.00,5010.00,R,Alfred Bagnall & Sons (Leeds) Ltd,No
Http://opendatacommunities.org/id/metropolitan-district-council/leeds,Leeds City Council,31/07/2023,Strategy and Resources,Leeds Building Services,Supplies and Services,Other Hired And Contracted Services,265,06/07/2023,2307-00569,0.00,970.18,R,Alfred Bagnall & Sons (Leeds) Ltd,No
Http://opendatacommunities.org/id/metropolitan-district-council/leeds,Leeds City Council,31/07/2023,City Development,Regeneration,Capital,OTHER COSTS,7,14/07/2023,2307-00570,0.00,3635.00,C,Alfred Bagnall & Sons (Leeds) Ltd,No
Http://opendatacommunities.org/id/metropolitan-district-council/leeds,Leeds City Council,31/07/2023,Children and Families,Social Care,Premises,Maintenance Of Buildings,101,14/07/2023,2307-00571,0.00,7100.00,R,Alfred Bagnall & Sons (Leeds) Ltd,No
Http://opendatacommunities.org/id/metropolitan-district-council/leeds,Leeds City Council,31/07/2023,Strategy and Resources,Leeds Building Services,Supplies and Services,Other Hired And Contracted Services,265,20/07/2023,2307-00572,0.00,680.00,R,Alfred Bagnall & Sons (Leeds) Ltd,No
Http://opendatacommunities.org/id/metropolitan-district-council/leeds,Leeds City Council,31/07/2023,Strategy and Resources,Leeds Building Services,Supplies and Services,Other Hired And Contracted Services,265,20/07/2023,2307-00573,0.00,8001.23,R,Alfred Bagnall & Sons (Leeds) Ltd,No
Http://opendatacommunities.org/id/metropolitan-district-council/leeds,Leeds City Council,31/07/2023,Communities Housing and Environment,Climate Energy & Greenspaces,Transport,Hire Of Movable Plant & Machinery,315,12/07/2023,2307-00574,0.00,165.49,R,ALGECO UK LIMITED,No
Http://opendatacommunities.org/id/metropolitan-district-council/leeds,Leeds City Council,31/07/2023,Strategic Landlord,Housing Management,Supplies and Services,Compensation Claims,200,17/07/2023,2307-00575,0.00,1622.50,R,REDACTED PERSONAL DATA,No
Http://opendatacommunities.org/id/metropolitan-district-council/leeds,Leeds City Council,31/07/2023,Communities Housing and Environment,Customer Access,Supplies and Services,Bought In Professional Services,277,05/07/2023,2307-00576,0.00,22.80,R,Ali Pourakaberian,No
Http://opendatacommunities.org/id/metropolitan-district-council/leeds,Leeds City Council,31/07/2023,Communities Housing and Environment,Customer Access,Supplies and Services,Bought In Professional Services,277,05/07/2023,2307-00577,0.00,27.00,R,Ali Pourakaberian,No
Http://opendatacommunities.org/id/metropolitan-district-council/leeds,Leeds City Council,31/07/2023,Communities Housing and Environment,Customer Access,Supplies and Services,Bought In Professional Services,277,12/07/2023,2307-00578,0.00,10.00,R,Ali Pourakaberian,No
Http://opendatacommunities.org/id/metropolitan-district-council/leeds,Leeds City Council,31/07/2023,Communities Housing and Environment,Customer Access,Supplies and Services,Bought In Professional Services,277,12/07/2023,2307-00579,0.00,18.00,R,Ali Pourakaberian,No
Http://opendatacommunities.org/id/metropolitan-district-council/leeds,Leeds City Council,31/07/2023,Communities Housing and Environment,Customer Access,Supplies and Services,Bought In Professional Services,277,12/07/2023,2307-00580,0.00,18.00,R,Ali Pourakaberian,No
Http://opendatacommunities.org/id/metropolitan-district-council/leeds,Leeds City Council,31/07/2023,Communities Housing and Environment,Customer Access,Supplies and Services,Bought In Professional Services,277,12/07/2023,2307-00581,0.00,13.50,R,Ali Pourakaberian,No
Http://opendatacommunities.org/id/metropolitan-district-council/leeds,Leeds City Council,31/07/2023,Communities Housing and Environment,Customer Access,Supplies and Services,Bought In Professional Services,277,12/07/2023,2307-00582,0.00,18.00,R,Ali Pourakaberian,No
Http://opendatacommunities.org/id/metropolitan-district-council/leeds,Leeds City Council,31/07/2023,Communities Housing and Environment,Customer Access,Supplies and Services,Bought In Professional Services,277,12/07/2023,2307-00583,0.00,22.50,R,Ali Pourakaberian,No
Http://opendatacommunities.org/id/metropolitan-district-council/leeds,Leeds City Council,31/07/2023,Communities Housing and Environment,Customer Access,Supplies and Services,Bought In Professional Services,277,19/07/2023,2307-00584,0.00,18.00,R,Ali Pourakaberian,No
Http://opendatacommunities.org/id/metropolitan-district-council/leeds,Leeds City Council,31/07/2023,Communities Housing and Environment,Customer Access,Supplies and Services,Bought In Professional Services,277,19/07/2023,2307-00585,0.00,22.50,R,Ali Pourakaberian,No
Http://opendatacommunities.org/id/metropolitan-district-council/leeds,Leeds City Council,31/07/2023,City Development,Recreation,Supplies and Services,Bought In Professional Services,277,28/07/2023,2307-00586,0.00,100.00,R,Alice M Richardson,No
Http://opendatacommunities.org/id/metropolitan-district-council/leeds,Leeds City Council,31/07/2023,City Development,Recreation,Supplies and Services,Bought In Professional Services,277,28/07/2023,2307-00587,0.00,80.00,R,Alice M Richardson,No
Http://opendatacommunities.org/id/metropolitan-district-council/leeds,Leeds City Council,31/07/2023,City Development,Recreation,Supplies and Services,Bought In Professional Services,277,28/07/2023,2307-00588,0.00,80.00,R,Alice M Richardson,No
Http://opendatacommunities.org/id/metropolitan-district-council/leeds,Leeds City Council,31/07/2023,Children and Families,Social Care,Agency Payments,Section 17,551,10/07/2023,2307-00589,0.00,37.00,R,REDACTED PERSONAL DATA,No
Http://opendatacommunities.org/id/metropolitan-district-council/leeds,Leeds City Council,31/07/2023,Adults and Health,Assessment And Care Management,Supplies and Services,Other Hired And Contracted Services,265,24/07/2023,2307-00590,0.00,26.24,R,REDACTED PERSONAL DATA,No
Http://opendatacommunities.org/id/metropolitan-district-council/leeds,Leeds City Council,31/07/2023,Adults and Health,Assessment And Care Management,Supplies and Services,Other Hired And Contracted Services,265,25/07/2023,2307-00591,0.00,204.25,R,REDACTED PERSONAL DATA,No
Http://opendatacommunities.org/id/metropolitan-district-council/leeds,Leeds City Council,31/07/2023,Children and Families,Social Care,Agency Payments,Placement Support,550,06/07/2023,2307-00592,0.00,216.76,R,REDACTED PERSONAL DATA,No
Http://opendatacommunities.org/id/metropolitan-district-council/leeds,Leeds City Council,31/07/2023,Children and Families,Social Care,Agency Payments,Contact,548,07/07/2023,2307-00593,0.00,10.40,R,REDACTED PERSONAL DATA,No
Http://opendatacommunities.org/id/metropolitan-district-council/leeds,Leeds City Council,31/07/2023,Children and Families,Social Care,Agency Payments,Placement Support,550,12/07/2023,2307-00594,0.00,216.76,R,REDACTED PERSONAL DATA,No
Http://opendatacommunities.org/id/metropolitan-district-council/leeds,Leeds City Council,31/07/2023,Children and Families,Social Care,Agency Payments,Contact,548,14/07/2023,2307-00595,0.00,10.40,R,REDACTED PERSONAL DATA,No
Http://opendatacommunities.org/id/metropolitan-district-council/leeds,Leeds City Council,31/07/2023,Children and Families,Social Care,Agency Payments,Placement Support,550,21/07/2023,2307-00596,0.00,216.76,R,REDACTED PERSONAL DATA,No
Http://opendatacommunities.org/id/metropolitan-district-council/leeds,Leeds City Council,31/07/2023,Children and Families,Social Care,Agency Payments,Allowances,546,28/07/2023,2307-00597,0.00,216.76,R,REDACTED PERSONAL DATA,No
Http://opendatacommunities.org/id/metropolitan-district-council/leeds,Leeds City Council,31/07/2023,Children and Families,Social Care,Appropriations,Direct Payments,626,12/07/2023,2307-00598,0.00,2189.09,R,REDACTED PERSONAL DATA,No
Http://opendatacommunities.org/id/metropolitan-district-council/leeds,Leeds City Council,31/07/2023,Children and Families,Social Care,Agency Payments,Contact,548,06/07/2023,2307-00599,0.00,60.00,R,REDACTED PERSONAL DATA,No
Http://opendatacommunities.org/id/metropolitan-district-council/leeds,Leeds City Council,31/07/2023,Children and Families,Social Care,Agency Payments,Services Rendered By Other Organisations,511,07/07/2023,2307-00600,0.00,959.40,R,REDACTED PERSONAL DATA,No
Http://opendatacommunities.org/id/metropolitan-district-council/leeds,Leeds City Council,31/07/2023,Children and Families,Social Care,Internal Recharges,Legal Disbursements,411,07/07/2023,2307-00601,0.00,720.00,R,Alison Davenport,No
Http://opendatacommunities.org/id/metropolitan-district-council/leeds,Leeds City Council,31/07/2023,Children and Families,Social Care,Internal Recharges,Legal Disbursements,411,07/07/2023,2307-00602,0.00,450.00,R,Alison Davenport,No
Http://opendatacommunities.org/id/metropolitan-district-council/leeds,Leeds City Council,31/07/2023,Children and Families,Social Care,Agency Payments,Allowance Enhancements,547,21/07/2023,2307-00603,0.00,498.36,R,REDACTED PERSONAL DATA,No
Http://opendatacommunities.org/id/metropolitan-district-council/leeds,Leeds City Council,31/07/2023,Strategic Landlord,Property and Contracts,Supplies and Services,Insurance Claims,248,13/07/2023,2307-00604,0.00,6250.00,R,Alison Law Solicitors,No
Http://opendatacommunities.org/id/metropolitan-district-council/leeds,Leeds City Council,31/07/2023,Strategy and Resources,Commercial Services,Supplies and Services,Other Hired And Contracted Services,265,21/07/2023,2307-00605,0.00,392.00,R,REDACTED PERSONAL DATA,No
Http://opendatacommunities.org/id/metropolitan-district-council/leeds,Leeds City Council,31/07/2023,Strategic Landlord,Housing Management,Supplies and Services,Compensation Claims,200,26/07/2023,2307-00606,0.00,200.00,R,REDACTED PERSONAL DATA,No
Http://opendatacommunities.org/id/metropolitan-district-council/leeds,Leeds City Council,31/07/2023,Children and Families,Social Care ,Supplies and Services,Office Consumables,210,08/06/2023,2307-00607,0.00,18.50,R,All 4s Pet & Equestria,Yes
Http://opendatacommunities.org/id/metropolitan-district-council/leeds,Leeds City Council,31/07/2023,City Development,Libraries Arts & Heritage ,Premises,Maintenance Of Buildings,101,28/06/2023,2307-00608,0.00,169.99,R,All Seasons Gazebos,Yes
Http://opendatacommunities.org/id/metropolitan-district-council/leeds,Leeds City Council,31/07/2023,Children and Families,Social Care,Agency Payments,Services Rendered By Other Organisations,511,05/07/2023,2307-00609,0.00,1373.58,R,All Stars Childcare,No
Http://opendatacommunities.org/id/metropolitan-district-council/leeds,Leeds City Council,31/07/2023,Children and Families,Social Care,Agency Payments,Services Rendered By Other Organisations,511,07/07/2023,2307-00610,0.00,9146.28,R,All Stars Childcare,No
Http://opendatacommunities.org/id/metropolitan-district-council/leeds,Leeds City Council,31/07/2023,Adults and Health,Services For Adults Under 65 Mental/Dis,Premises,General Maintenance,104,14/07/2023,2307-00611,0.00,108.00,R,ALLANSOUND COMMUNICATIONS,No
Http://opendatacommunities.org/id/metropolitan-district-council/leeds,Leeds City Council as Accountable Body,31/07/2023,Social Services Pooled Budgets,Jcs For People With Learning Disabilitie,Agency Payments,Sheltered Accommodation,569,19/07/2023,2307-00612,0.00,25207.52,R,Allerton Avenue,No
Http://opendatacommunities.org/id/metropolitan-district-council/leeds,Leeds City Council,31/07/2023,Adults and Health,Services For Older People - 65 And Over,Agency Payments,Nursing Care Dementia,574,19/07/2023,2307-00613,0.00,4890.88,R,ALLERTON PARK N H,No
Http://opendatacommunities.org/id/metropolitan-district-council/leeds,Leeds City Council,31/07/2023,Strategy and Resources,Finance,Supplies and Services,Bank Charges,263,05/07/2023,2307-00614,0.00,133.63,R,ALLIANCE & LEICESTER COMMERCIAL BANK,No
Http://opendatacommunities.org/id/metropolitan-district-council/leeds,Leeds City Council,31/07/2023,Strategy and Resources,Finance,Supplies and Services,Bank Charges,263,05/07/2023,2307-00615,0.00,100.00,R,ALLIANCE & LEICESTER COMMERCIAL BANK,No
Http://opendatacommunities.org/id/metropolitan-district-council/leeds,Leeds City Council,31/07/2023,Strategy and Resources,Commercial Services,Transport,Vehicle Spares,345,06/07/2023,2307-00616,0.00,-97.52,R,Alliance Automotive UK CV LTD,No
Http://opendatacommunities.org/id/metropolitan-district-council/leeds,Leeds City Council,31/07/2023,Strategy and Resources,Commercial Services,Transport,Vehicle Spares,345,06/07/2023,2307-00617,0.00,300.93,R,Alliance Automotive UK CV LTD,No
Http://opendatacommunities.org/id/metropolitan-district-council/leeds,Leeds City Council,31/07/2023,Strategy and Resources,Commercial Services,Transport,Vehicle Spares,345,06/07/2023,2307-00618,0.00,56.53,R,Alliance Automotive UK CV LTD,No
Http://opendatacommunities.org/id/metropolitan-district-council/leeds,Leeds City Council,31/07/2023,Strategy and Resources,Commercial Services,Transport,Vehicle Spares,345,06/07/2023,2307-00619,0.00,11.90,R,Alliance Automotive UK CV LTD,No
Http://opendatacommunities.org/id/metropolitan-district-council/leeds,Leeds City Council,31/07/2023,Strategy and Resources,Commercial Services,Transport,Vehicle Spares,345,06/07/2023,2307-00620,0.00,49.13,R,Alliance Automotive UK CV LTD,No
Http://opendatacommunities.org/id/metropolitan-district-council/leeds,Leeds City Council,31/07/2023,Strategy and Resources,Commercial Services,Transport,Vehicle Spares,345,06/07/2023,2307-00621,0.00,13.99,R,Alliance Automotive UK CV LTD,No
Http://opendatacommunities.org/id/metropolitan-district-council/leeds,Leeds City Council,31/07/2023,Strategy and Resources,Commercial Services,Transport,Vehicle Spares,345,06/07/2023,2307-00622,0.00,41.58,R,Alliance Automotive UK CV LTD,No
Http://opendatacommunities.org/id/metropolitan-district-council/leeds,Leeds City Council,31/07/2023,Strategy and Resources,Commercial Services,Transport,Vehicle Spares,345,06/07/2023,2307-00623,0.00,51.37,R,Alliance Automotive UK CV LTD,No
Http://opendatacommunities.org/id/metropolitan-district-council/leeds,Leeds City Council,31/07/2023,Strategy and Resources,Commercial Services,Transport,Vehicle Spares,345,06/07/2023,2307-00624,0.00,273.31,R,Alliance Automotive UK CV LTD,No
Http://opendatacommunities.org/id/metropolitan-district-council/leeds,Leeds City Council,31/07/2023,Strategy and Resources,Commercial Services,Transport,Vehicle Spares,345,06/07/2023,2307-00625,0.00,94.45,R,Alliance Automotive UK CV LTD,No
Http://opendatacommunities.org/id/metropolitan-district-council/leeds,Leeds City Council,31/07/2023,Strategy and Resources,Commercial Services,Transport,Vehicle Spares,345,06/07/2023,2307-00626,0.00,36.71,R,Alliance Automotive UK CV LTD,No
Http://opendatacommunities.org/id/metropolitan-district-council/leeds,Leeds City Council,31/07/2023,Strategy and Resources,Commercial Services,Transport,Vehicle Spares,345,06/07/2023,2307-00627,0.00,525.54,R,Alliance Automotive UK CV LTD,No
Http://opendatacommunities.org/id/metropolitan-district-council/leeds,Leeds City Council,31/07/2023,Strategy and Resources,Commercial Services,Transport,Vehicle Spares,345,06/07/2023,2307-00628,0.00,1182.06,R,Alliance Automotive UK CV LTD,No
Http://opendatacommunities.org/id/metropolitan-district-council/leeds,Leeds City Council,31/07/2023,Strategy and Resources,Commercial Services,Transport,Vehicle Spares,345,07/07/2023,2307-00629,0.00,-31.61,R,Alliance Automotive UK CV LTD,No
Http://opendatacommunities.org/id/metropolitan-district-council/leeds,Leeds City Council,31/07/2023,Strategy and Resources,Commercial Services,Transport,Vehicle Spares,345,07/07/2023,2307-00630,0.00,-85.56,R,Alliance Automotive UK CV LTD,No
Http://opendatacommunities.org/id/metropolitan-district-council/leeds,Leeds City Council,31/07/2023,Strategy and Resources,Commercial Services,Transport,Vehicle Spares,345,07/07/2023,2307-00631,0.00,-14.41,R,Alliance Automotive UK CV LTD,No
Http://opendatacommunities.org/id/metropolitan-district-council/leeds,Leeds City Council,31/07/2023,Strategy and Resources,Commercial Services,Transport,Vehicle Spares,345,07/07/2023,2307-00632,0.00,-50.84,R,Alliance Automotive UK CV LTD,No
Http://opendatacommunities.org/id/metropolitan-district-council/leeds,Leeds City Council,31/07/2023,Strategy and Resources,Commercial Services,Transport,Vehicle Spares,345,07/07/2023,2307-00633,0.00,-67.86,R,Alliance Automotive UK CV LTD,No
Http://opendatacommunities.org/id/metropolitan-district-council/leeds,Leeds City Council,31/07/2023,Strategy and Resources,Commercial Services,Transport,Vehicle Spares,345,07/07/2023,2307-00634,0.00,-49.46,R,Alliance Automotive UK CV LTD,No
Http://opendatacommunities.org/id/metropolitan-district-council/leeds,Leeds City Council,31/07/2023,Strategy and Resources,Commercial Services,Transport,Vehicle Spares,345,07/07/2023,2307-00635,0.00,452.62,R,Alliance Automotive UK CV LTD,No
Http://opendatacommunities.org/id/metropolitan-district-council/leeds,Leeds City Council,31/07/2023,Strategy and Resources,Commercial Services,Transport,Vehicle Spares,345,07/07/2023,2307-00636,0.00,74.34,R,Alliance Automotive UK CV LTD,No
Http://opendatacommunities.org/id/metropolitan-district-council/leeds,Leeds City Council,31/07/2023,Strategy and Resources,Commercial Services,Transport,Vehicle Spares,345,07/07/2023,2307-00637,0.00,289.14,R,Alliance Automotive UK CV LTD,No
Http://opendatacommunities.org/id/metropolitan-district-council/leeds,Leeds City Council,31/07/2023,Strategy and Resources,Commercial Services,Transport,Vehicle Spares,345,07/07/2023,2307-00638,0.00,315.66,R,Alliance Automotive UK CV LTD,No
Http://opendatacommunities.org/id/metropolitan-district-council/leeds,Leeds City Council,31/07/2023,Strategy and Resources,Commercial Services,Transport,Vehicle Spares,345,07/07/2023,2307-00639,0.00,35.89,R,Alliance Automotive UK CV LTD,No
Http://opendatacommunities.org/id/metropolitan-district-council/leeds,Leeds City Council,31/07/2023,Strategy and Resources,Commercial Services,Transport,Vehicle Spares,345,07/07/2023,2307-00640,0.00,470.25,R,Alliance Automotive UK CV LTD,No
Http://opendatacommunities.org/id/metropolitan-district-council/leeds,Leeds City Council,31/07/2023,Strategy and Resources,Commercial Services,Transport,Vehicle Spares,345,07/07/2023,2307-00641,0.00,898.67,R,Alliance Automotive UK CV LTD,No
Http://opendatacommunities.org/id/metropolitan-district-council/leeds,Leeds City Council,31/07/2023,Strategy and Resources,Commercial Services,Transport,Vehicle Spares,345,07/07/2023,2307-00642,0.00,38.85,R,Alliance Automotive UK CV LTD,No
Http://opendatacommunities.org/id/metropolitan-district-council/leeds,Leeds City Council,31/07/2023,Strategy and Resources,Commercial Services,Transport,Vehicle Spares,345,07/07/2023,2307-00643,0.00,3.93,R,Alliance Automotive UK CV LTD,No
Http://opendatacommunities.org/id/metropolitan-district-council/leeds,Leeds City Council,31/07/2023,Strategy and Resources,Commercial Services,Transport,Vehicle Spares,345,07/07/2023,2307-00644,0.00,101.58,R,Alliance Automotive UK CV LTD,No
Http://opendatacommunities.org/id/metropolitan-district-council/leeds,Leeds City Council,31/07/2023,Strategy and Resources,Commercial Services,Transport,Vehicle Spares,345,07/07/2023,2307-00645,0.00,8.72,R,Alliance Automotive UK CV LTD,No
Http://opendatacommunities.org/id/metropolitan-district-council/leeds,Leeds City Council,31/07/2023,Strategy and Resources,Commercial Services,Transport,Vehicle Spares,345,07/07/2023,2307-00646,0.00,645.59,R,Alliance Automotive UK CV LTD,No
Http://opendatacommunities.org/id/metropolitan-district-council/leeds,Leeds City Council,31/07/2023,Strategy and Resources,Commercial Services,Transport,Vehicle Spares,345,07/07/2023,2307-00647,0.00,43.88,R,Alliance Automotive UK CV LTD,No
Http://opendatacommunities.org/id/metropolitan-district-council/leeds,Leeds City Council,31/07/2023,Strategy and Resources,Commercial Services,Transport,Vehicle Spares,345,07/07/2023,2307-00648,0.00,561.33,R,Alliance Automotive UK CV LTD,No
Http://opendatacommunities.org/id/metropolitan-district-council/leeds,Leeds City Council,31/07/2023,Strategy and Resources,Commercial Services,Transport,Vehicle Spares,345,07/07/2023,2307-00649,0.00,78.71,R,Alliance Automotive UK CV LTD,No
Http://opendatacommunities.org/id/metropolitan-district-council/leeds,Leeds City Council,31/07/2023,Strategy and Resources,Commercial Services,Transport,Vehicle Spares,345,07/07/2023,2307-00650,0.00,257.80,R,Alliance Automotive UK CV LTD,No
Http://opendatacommunities.org/id/metropolitan-district-council/leeds,Leeds City Council,31/07/2023,Strategy and Resources,Commercial Services,Transport,Vehicle Spares,345,07/07/2023,2307-00651,0.00,74.18,R,Alliance Automotive UK CV LTD,No
Http://opendatacommunities.org/id/metropolitan-district-council/leeds,Leeds City Council,31/07/2023,Strategy and Resources,Commercial Services,Transport,Vehicle Spares,345,07/07/2023,2307-00652,0.00,552.93,R,Alliance Automotive UK CV LTD,No
Http://opendatacommunities.org/id/metropolitan-district-council/leeds,Leeds City Council,31/07/2023,Strategy and Resources,Commercial Services,Transport,Vehicle Spares,345,07/07/2023,2307-00653,0.00,503.47,R,Alliance Automotive UK CV LTD,No
Http://opendatacommunities.org/id/metropolitan-district-council/leeds,Leeds City Council,31/07/2023,Strategy and Resources,Commercial Services,Transport,Vehicle Spares,345,07/07/2023,2307-00654,0.00,247.32,R,Alliance Automotive UK CV LTD,No
Http://opendatacommunities.org/id/metropolitan-district-council/leeds,Leeds City Council,31/07/2023,Strategy and Resources,Commercial Services,Transport,Vehicle Spares,345,07/07/2023,2307-00655,0.00,116.75,R,Alliance Automotive UK CV LTD,No
Http://opendatacommunities.org/id/metropolitan-district-council/leeds,Leeds City Council,31/07/2023,Strategy and Resources,Commercial Services,Transport,Vehicle Spares,345,07/07/2023,2307-00656,0.00,145.62,R,Alliance Automotive UK CV LTD,No
Http://opendatacommunities.org/id/metropolitan-district-council/leeds,Leeds City Council,31/07/2023,Strategy and Resources,Commercial Services,Transport,Vehicle Spares,345,07/07/2023,2307-00657,0.00,35.05,R,Alliance Automotive UK CV LTD,No
Http://opendatacommunities.org/id/metropolitan-district-council/leeds,Leeds City Council,31/07/2023,Strategy and Resources,Commercial Services,Transport,Vehicle Spares,345,07/07/2023,2307-00658,0.00,17.53,R,Alliance Automotive UK CV LTD,No
Http://opendatacommunities.org/id/metropolitan-district-council/leeds,Leeds City Council,31/07/2023,Strategy and Resources,Commercial Services,Transport,Vehicle Spares,345,07/07/2023,2307-00659,0.00,25.42,R,Alliance Automotive UK CV LTD,No
Http://opendatacommunities.org/id/metropolitan-district-council/leeds,Leeds City Council,31/07/2023,Strategy and Resources,Commercial Services,Transport,Vehicle Spares,345,07/07/2023,2307-00660,0.00,9.41,R,Alliance Automotive UK CV LTD,No
Http://opendatacommunities.org/id/metropolitan-district-council/leeds,Leeds City Council,31/07/2023,Strategy and Resources,Commercial Services,Transport,Vehicle Spares,345,07/07/2023,2307-00661,0.00,34.06,R,Alliance Automotive UK CV LTD,No
Http://opendatacommunities.org/id/metropolitan-district-council/leeds,Leeds City Council,31/07/2023,Strategy and Resources,Commercial Services,Transport,Vehicle Spares,345,07/07/2023,2307-00662,0.00,74.25,R,Alliance Automotive UK CV LTD,No
Http://opendatacommunities.org/id/metropolitan-district-council/leeds,Leeds City Council,31/07/2023,Strategy and Resources,Commercial Services,Transport,Vehicle Spares,345,07/07/2023,2307-00663,0.00,445.51,R,Alliance Automotive UK CV LTD,No
Http://opendatacommunities.org/id/metropolitan-district-council/leeds,Leeds City Council,31/07/2023,Strategy and Resources,Commercial Services,Transport,Vehicle Spares,345,07/07/2023,2307-00664,0.00,126.23,R,Alliance Automotive UK CV LTD,No
Http://opendatacommunities.org/id/metropolitan-district-council/leeds,Leeds City Council,31/07/2023,Strategy and Resources,Commercial Services,Transport,Vehicle Spares,345,07/07/2023,2307-00665,0.00,188.58,R,Alliance Automotive UK CV LTD,No
Http://opendatacommunities.org/id/metropolitan-district-council/leeds,Leeds City Council,31/07/2023,Strategy and Resources,Commercial Services,Transport,Vehicle Spares,345,07/07/2023,2307-00666,0.00,179.82,R,Alliance Automotive UK CV LTD,No
Http://opendatacommunities.org/id/metropolitan-district-council/leeds,Leeds City Council,31/07/2023,Strategy and Resources,Commercial Services,Transport,Vehicle Spares,345,07/07/2023,2307-00667,0.00,124.60,R,Alliance Automotive UK CV LTD,No
Http://opendatacommunities.org/id/metropolitan-district-council/leeds,Leeds City Council,31/07/2023,Strategy and Resources,Commercial Services,Transport,Vehicle Spares,345,07/07/2023,2307-00668,0.00,368.01,R,Alliance Automotive UK CV LTD,No
Http://opendatacommunities.org/id/metropolitan-district-council/leeds,Leeds City Council,31/07/2023,Strategy and Resources,Commercial Services,Transport,Vehicle Spares,345,07/07/2023,2307-00669,0.00,118.31,R,Alliance Automotive UK CV LTD,No
Http://opendatacommunities.org/id/metropolitan-district-council/leeds,Leeds City Council,31/07/2023,Strategy and Resources,Commercial Services,Transport,Vehicle Spares,345,13/07/2023,2307-00670,0.00,-217.09,R,Alliance Automotive UK CV LTD,No
Http://opendatacommunities.org/id/metropolitan-district-council/leeds,Leeds City Council,31/07/2023,Strategy and Resources,Commercial Services,Transport,Vehicle Spares,345,13/07/2023,2307-00671,0.00,448.83,R,Alliance Automotive UK CV LTD,No
Http://opendatacommunities.org/id/metropolitan-district-council/leeds,Leeds City Council,31/07/2023,Strategy and Resources,Commercial Services,Transport,Vehicle Spares,345,13/07/2023,2307-00672,0.00,105.70,R,Alliance Automotive UK CV LTD,No
Http://opendatacommunities.org/id/metropolitan-district-council/leeds,Leeds City Council,31/07/2023,Strategy and Resources,Commercial Services,Transport,Vehicle Spares,345,13/07/2023,2307-00673,0.00,378.07,R,Alliance Automotive UK CV LTD,No
Http://opendatacommunities.org/id/metropolitan-district-council/leeds,Leeds City Council,31/07/2023,Strategy and Resources,Commercial Services,Transport,Vehicle Spares,345,13/07/2023,2307-00674,0.00,17.71,R,Alliance Automotive UK CV LTD,No
Http://opendatacommunities.org/id/metropolitan-district-council/leeds,Leeds City Council,31/07/2023,Strategy and Resources,Commercial Services,Transport,Vehicle Spares,345,13/07/2023,2307-00675,0.00,225.78,R,Alliance Automotive UK CV LTD,No
Http://opendatacommunities.org/id/metropolitan-district-council/leeds,Leeds City Council,31/07/2023,Strategy and Resources,Commercial Services,Transport,Vehicle Spares,345,13/07/2023,2307-00676,0.00,762.50,R,Alliance Automotive UK CV LTD,No
Http://opendatacommunities.org/id/metropolitan-district-council/leeds,Leeds City Council,31/07/2023,Strategy and Resources,Commercial Services,Transport,Vehicle Spares,345,13/07/2023,2307-00677,0.00,157.41,R,Alliance Automotive UK CV LTD,No
Http://opendatacommunities.org/id/metropolitan-district-council/leeds,Leeds City Council,31/07/2023,Strategy and Resources,Commercial Services,Transport,Vehicle Spares,345,13/07/2023,2307-00678,0.00,74.97,R,Alliance Automotive UK CV LTD,No
Http://opendatacommunities.org/id/metropolitan-district-council/leeds,Leeds City Council,31/07/2023,Strategy and Resources,Commercial Services,Transport,Vehicle Spares,345,13/07/2023,2307-00679,0.00,63.33,R,Alliance Automotive UK CV LTD,No
Http://opendatacommunities.org/id/metropolitan-district-council/leeds,Leeds City Council,31/07/2023,Strategy and Resources,Commercial Services,Transport,Vehicle Spares,345,13/07/2023,2307-00680,0.00,145.02,R,Alliance Automotive UK CV LTD,No
Http://opendatacommunities.org/id/metropolitan-district-council/leeds,Leeds City Council,31/07/2023,Strategy and Resources,Commercial Services,Transport,Vehicle Spares,345,13/07/2023,2307-00681,0.00,1188.05,R,Alliance Automotive UK CV LTD,No
Http://opendatacommunities.org/id/metropolitan-district-council/leeds,Leeds City Council,31/07/2023,Strategy and Resources,Commercial Services,Transport,Vehicle Spares,345,13/07/2023,2307-00682,0.00,53.47,R,Alliance Automotive UK CV LTD,No
Http://opendatacommunities.org/id/metropolitan-district-council/leeds,Leeds City Council,31/07/2023,Strategy and Resources,Commercial Services,Transport,Vehicle Spares,345,13/07/2023,2307-00683,0.00,216.27,R,Alliance Automotive UK CV LTD,No
Http://opendatacommunities.org/id/metropolitan-district-council/leeds,Leeds City Council,31/07/2023,Strategy and Resources,Commercial Services,Transport,Vehicle Spares,345,13/07/2023,2307-00684,0.00,29.51,R,Alliance Automotive UK CV LTD,No
Http://opendatacommunities.org/id/metropolitan-district-council/leeds,Leeds City Council,31/07/2023,Strategy and Resources,Commercial Services,Transport,Vehicle Spares,345,13/07/2023,2307-00685,0.00,130.39,R,Alliance Automotive UK CV LTD,No
Http://opendatacommunities.org/id/metropolitan-district-council/leeds,Leeds City Council,31/07/2023,Strategy and Resources,Commercial Services,Transport,Vehicle Spares,345,13/07/2023,2307-00686,0.00,65.84,R,Alliance Automotive UK CV LTD,No
Http://opendatacommunities.org/id/metropolitan-district-council/leeds,Leeds City Council,31/07/2023,Strategy and Resources,Commercial Services,Transport,Vehicle Spares,345,13/07/2023,2307-00687,0.00,6.92,R,Alliance Automotive UK CV LTD,No
Http://opendatacommunities.org/id/metropolitan-district-council/leeds,Leeds City Council,31/07/2023,Strategy and Resources,Commercial Services,Transport,Vehicle Spares,345,13/07/2023,2307-00688,0.00,49.13,R,Alliance Automotive UK CV LTD,No
Http://opendatacommunities.org/id/metropolitan-district-council/leeds,Leeds City Council,31/07/2023,Strategy and Resources,Commercial Services,Transport,Vehicle Spares,345,13/07/2023,2307-00689,0.00,78.16,R,Alliance Automotive UK CV LTD,No
Http://opendatacommunities.org/id/metropolitan-district-council/leeds,Leeds City Council,31/07/2023,Strategy and Resources,Commercial Services,Transport,Vehicle Spares,345,14/07/2023,2307-00690,0.00,-14.76,R,Alliance Automotive UK CV LTD,No
Http://opendatacommunities.org/id/metropolitan-district-council/leeds,Leeds City Council,31/07/2023,Strategy and Resources,Commercial Services,Transport,Vehicle Spares,345,14/07/2023,2307-00691,0.00,123.67,R,Alliance Automotive UK CV LTD,No
Http://opendatacommunities.org/id/metropolitan-district-council/leeds,Leeds City Council,31/07/2023,Strategy and Resources,Commercial Services,Transport,Vehicle Spares,345,14/07/2023,2307-00692,0.00,564.93,R,Alliance Automotive UK CV LTD,No
Http://opendatacommunities.org/id/metropolitan-district-council/leeds,Leeds City Council,31/07/2023,Strategy and Resources,Commercial Services,Transport,Vehicle Spares,345,14/07/2023,2307-00693,0.00,50.49,R,Alliance Automotive UK CV LTD,No
Http://opendatacommunities.org/id/metropolitan-district-council/leeds,Leeds City Council,31/07/2023,Strategy and Resources,Commercial Services,Transport,Vehicle Spares,345,14/07/2023,2307-00694,0.00,247.25,R,Alliance Automotive UK CV LTD,No
Http://opendatacommunities.org/id/metropolitan-district-council/leeds,Leeds City Council,31/07/2023,Strategy and Resources,Commercial Services,Transport,Vehicle Spares,345,14/07/2023,2307-00695,0.00,97.03,R,Alliance Automotive UK CV LTD,No
Http://opendatacommunities.org/id/metropolitan-district-council/leeds,Leeds City Council,31/07/2023,Strategy and Resources,Commercial Services,Transport,Vehicle Spares,345,14/07/2023,2307-00696,0.00,5.26,R,Alliance Automotive UK CV LTD,No
Http://opendatacommunities.org/id/metropolitan-district-council/leeds,Leeds City Council,31/07/2023,Strategy and Resources,Commercial Services,Transport,Vehicle Spares,345,14/07/2023,2307-00697,0.00,13.57,R,Alliance Automotive UK CV LTD,No
Http://opendatacommunities.org/id/metropolitan-district-council/leeds,Leeds City Council,31/07/2023,Strategy and Resources,Commercial Services,Transport,Vehicle Spares,345,14/07/2023,2307-00698,0.00,44.36,R,Alliance Automotive UK CV LTD,No
Http://opendatacommunities.org/id/metropolitan-district-council/leeds,Leeds City Council,31/07/2023,Strategy and Resources,Commercial Services,Transport,Vehicle Spares,345,14/07/2023,2307-00699,0.00,17.55,R,Alliance Automotive UK CV LTD,No
Http://opendatacommunities.org/id/metropolitan-district-council/leeds,Leeds City Council,31/07/2023,Strategy and Resources,Commercial Services,Transport,Vehicle Spares,345,14/07/2023,2307-00700,0.00,237.86,R,Alliance Automotive UK CV LTD,No
Http://opendatacommunities.org/id/metropolitan-district-council/leeds,Leeds City Council,31/07/2023,Strategy and Resources,Commercial Services,Transport,Vehicle Spares,345,14/07/2023,2307-00701,0.00,280.12,R,Alliance Automotive UK CV LTD,No
Http://opendatacommunities.org/id/metropolitan-district-council/leeds,Leeds City Council,31/07/2023,Strategy and Resources,Commercial Services,Transport,Vehicle Spares,345,14/07/2023,2307-00702,0.00,20.49,R,Alliance Automotive UK CV LTD,No
Http://opendatacommunities.org/id/metropolitan-district-council/leeds,Leeds City Council,31/07/2023,Strategy and Resources,Commercial Services,Transport,Vehicle Spares,345,14/07/2023,2307-00703,0.00,967.65,R,Alliance Automotive UK CV LTD,No
Http://opendatacommunities.org/id/metropolitan-district-council/leeds,Leeds City Council,31/07/2023,Strategy and Resources,Commercial Services,Transport,Vehicle Spares,345,17/07/2023,2307-00704,0.00,-190.19,R,Alliance Automotive UK CV LTD,No
Http://opendatacommunities.org/id/metropolitan-district-council/leeds,Leeds City Council,31/07/2023,Strategy and Resources,Commercial Services,Transport,Vehicle Spares,345,17/07/2023,2307-00705,0.00,1068.97,R,Alliance Automotive UK CV LTD,No
Http://opendatacommunities.org/id/metropolitan-district-council/leeds,Leeds City Council,31/07/2023,Strategy and Resources,Commercial Services,Transport,Vehicle Spares,345,17/07/2023,2307-00706,0.00,190.19,R,Alliance Automotive UK CV LTD,No
Http://opendatacommunities.org/id/metropolitan-district-council/leeds,Leeds City Council,31/07/2023,Strategy and Resources,Commercial Services,Transport,Vehicle Spares,345,17/07/2023,2307-00707,0.00,379.18,R,Alliance Automotive UK CV LTD,No
Http://opendatacommunities.org/id/metropolitan-district-council/leeds,Leeds City Council,31/07/2023,Strategy and Resources,Commercial Services,Transport,Vehicle Spares,345,17/07/2023,2307-00708,0.00,108.76,R,Alliance Automotive UK CV LTD,No
Http://opendatacommunities.org/id/metropolitan-district-council/leeds,Leeds City Council,31/07/2023,Strategy and Resources,Commercial Services,Transport,Vehicle Spares,345,17/07/2023,2307-00709,0.00,164.62,R,Alliance Automotive UK CV LTD,No
Http://opendatacommunities.org/id/metropolitan-district-council/leeds,Leeds City Council,31/07/2023,Strategy and Resources,Commercial Services,Transport,Vehicle Spares,345,17/07/2023,2307-00710,0.00,1103.78,R,Alliance Automotive UK CV LTD,No
Http://opendatacommunities.org/id/metropolitan-district-council/leeds,Leeds City Council,31/07/2023,Strategy and Resources,Commercial Services,Transport,Vehicle Spares,345,17/07/2023,2307-00711,0.00,2479.32,R,Alliance Automotive UK CV LTD,No
Http://opendatacommunities.org/id/metropolitan-district-council/leeds,Leeds City Council,31/07/2023,Strategy and Resources,Commercial Services,Transport,Vehicle Spares,345,17/07/2023,2307-00712,0.00,10541.33,R,Alliance Automotive UK CV LTD,No
Http://opendatacommunities.org/id/metropolitan-district-council/leeds,Leeds City Council,31/07/2023,Strategy and Resources,Commercial Services,Transport,Vehicle Spares,345,17/07/2023,2307-00713,0.00,306.55,R,Alliance Automotive UK CV LTD,No
Http://opendatacommunities.org/id/metropolitan-district-council/leeds,Leeds City Council,31/07/2023,Strategy and Resources,Commercial Services,Transport,Vehicle Spares,345,17/07/2023,2307-00714,0.00,191.24,R,Alliance Automotive UK CV LTD,No
Http://opendatacommunities.org/id/metropolitan-district-council/leeds,Leeds City Council,31/07/2023,Strategy and Resources,Commercial Services,Transport,Vehicle Spares,345,20/07/2023,2307-00715,0.00,-543.28,R,Alliance Automotive UK CV LTD,No
Http://opendatacommunities.org/id/metropolitan-district-council/leeds,Leeds City Council,31/07/2023,Strategy and Resources,Commercial Services,Transport,Vehicle Spares,345,20/07/2023,2307-00716,0.00,544.50,R,Alliance Automotive UK CV LTD,No
Http://opendatacommunities.org/id/metropolitan-district-council/leeds,Leeds City Council,31/07/2023,Strategy and Resources,Commercial Services,Transport,Vehicle Spares,345,20/07/2023,2307-00717,0.00,237.83,R,Alliance Automotive UK CV LTD,No
Http://opendatacommunities.org/id/metropolitan-district-council/leeds,Leeds City Council,31/07/2023,Strategy and Resources,Commercial Services,Transport,Vehicle Spares,345,20/07/2023,2307-00718,0.00,325.04,R,Alliance Automotive UK CV LTD,No
Http://opendatacommunities.org/id/metropolitan-district-council/leeds,Leeds City Council,31/07/2023,Strategy and Resources,Commercial Services,Transport,Vehicle Spares,345,20/07/2023,2307-00719,0.00,1302.41,R,Alliance Automotive UK CV LTD,No
Http://opendatacommunities.org/id/metropolitan-district-council/leeds,Leeds City Council,31/07/2023,Strategy and Resources,Commercial Services,Transport,Vehicle Spares,345,20/07/2023,2307-00720,0.00,788.05,R,Alliance Automotive UK CV LTD,No
Http://opendatacommunities.org/id/metropolitan-district-council/leeds,Leeds City Council,31/07/2023,Strategy and Resources,Commercial Services,Transport,Vehicle Spares,345,20/07/2023,2307-00721,0.00,48.00,R,Alliance Automotive UK CV LTD,No
Http://opendatacommunities.org/id/metropolitan-district-council/leeds,Leeds City Council,31/07/2023,Strategy and Resources,Commercial Services,Transport,Vehicle Spares,345,20/07/2023,2307-00722,0.00,259.27,R,Alliance Automotive UK CV LTD,No
Http://opendatacommunities.org/id/metropolitan-district-council/leeds,Leeds City Council,31/07/2023,Strategy and Resources,Commercial Services,Transport,Vehicle Spares,345,20/07/2023,2307-00723,0.00,50.38,R,Alliance Automotive UK CV LTD,No
Http://opendatacommunities.org/id/metropolitan-district-council/leeds,Leeds City Council,31/07/2023,Strategy and Resources,Commercial Services,Transport,Vehicle Spares,345,20/07/2023,2307-00724,0.00,56.91,R,Alliance Automotive UK CV LTD,No
Http://opendatacommunities.org/id/metropolitan-district-council/leeds,Leeds City Council,31/07/2023,Strategy and Resources,Commercial Services,Transport,Vehicle Spares,345,20/07/2023,2307-00725,0.00,543.28,R,Alliance Automotive UK CV LTD,No
Http://opendatacommunities.org/id/metropolitan-district-council/leeds,Leeds City Council,31/07/2023,Strategy and Resources,Commercial Services,Transport,Vehicle Spares,345,20/07/2023,2307-00726,0.00,19.80,R,Alliance Automotive UK CV LTD,No
Http://opendatacommunities.org/id/metropolitan-district-council/leeds,Leeds City Council,31/07/2023,Strategy and Resources,Commercial Services,Transport,Vehicle Spares,345,20/07/2023,2307-00727,0.00,54.62,R,Alliance Automotive UK CV LTD,No
Http://opendatacommunities.org/id/metropolitan-district-council/leeds,Leeds City Council,31/07/2023,Strategy and Resources,Commercial Services,Transport,Vehicle Spares,345,20/07/2023,2307-00728,0.00,157.41,R,Alliance Automotive UK CV LTD,No
Http://opendatacommunities.org/id/metropolitan-district-council/leeds,Leeds City Council,31/07/2023,Strategy and Resources,Commercial Services,Transport,Vehicle Spares,345,20/07/2023,2307-00729,0.00,187.61,R,Alliance Automotive UK CV LTD,No
Http://opendatacommunities.org/id/metropolitan-district-council/leeds,Leeds City Council,31/07/2023,Strategy and Resources,Commercial Services,Transport,Vehicle Spares,345,20/07/2023,2307-00730,0.00,16.07,R,Alliance Automotive UK CV LTD,No
Http://opendatacommunities.org/id/metropolitan-district-council/leeds,Leeds City Council,31/07/2023,Strategy and Resources,Commercial Services,Transport,Vehicle Spares,345,20/07/2023,2307-00731,0.00,1041.39,R,Alliance Automotive UK CV LTD,No
Http://opendatacommunities.org/id/metropolitan-district-council/leeds,Leeds City Council,31/07/2023,Strategy and Resources,Commercial Services,Transport,Vehicle Spares,345,20/07/2023,2307-00732,0.00,1858.73,R,Alliance Automotive UK CV LTD,No
Http://opendatacommunities.org/id/metropolitan-district-council/leeds,Leeds City Council,31/07/2023,Strategy and Resources,Commercial Services,Transport,Vehicle Spares,345,20/07/2023,2307-00733,0.00,91.78,R,Alliance Automotive UK CV LTD,No
Http://opendatacommunities.org/id/metropolitan-district-council/leeds,Leeds City Council,31/07/2023,Strategy and Resources,Commercial Services,Transport,Vehicle Spares,345,20/07/2023,2307-00734,0.00,268.70,R,Alliance Automotive UK CV LTD,No
Http://opendatacommunities.org/id/metropolitan-district-council/leeds,Leeds City Council,31/07/2023,Strategy and Resources,Commercial Services,Transport,Vehicle Spares,345,20/07/2023,2307-00735,0.00,95.40,R,Alliance Automotive UK CV LTD,No
Http://opendatacommunities.org/id/metropolitan-district-council/leeds,Leeds City Council,31/07/2023,Strategy and Resources,Commercial Services,Transport,Vehicle Spares,345,20/07/2023,2307-00736,0.00,139.59,R,Alliance Automotive UK CV LTD,No
Http://opendatacommunities.org/id/metropolitan-district-council/leeds,Leeds City Council,31/07/2023,Strategy and Resources,Commercial Services,Transport,Vehicle Spares,345,20/07/2023,2307-00737,0.00,861.18,R,Alliance Automotive UK CV LTD,No
Http://opendatacommunities.org/id/metropolitan-district-council/leeds,Leeds City Council,31/07/2023,Strategy and Resources,Commercial Services,Transport,Vehicle Spares,345,20/07/2023,2307-00738,0.00,118.27,R,Alliance Automotive UK CV LTD,No
Http://opendatacommunities.org/id/metropolitan-district-council/leeds,Leeds City Council,31/07/2023,Strategy and Resources,Commercial Services,Transport,Vehicle Spares,345,20/07/2023,2307-00739,0.00,20.79,R,Alliance Automotive UK CV LTD,No
Http://opendatacommunities.org/id/metropolitan-district-council/leeds,Leeds City Council,31/07/2023,Strategy and Resources,Commercial Services,Transport,Vehicle Spares,345,20/07/2023,2307-00740,0.00,26.32,R,Alliance Automotive UK CV LTD,No
Http://opendatacommunities.org/id/metropolitan-district-council/leeds,Leeds City Council,31/07/2023,Strategy and Resources,Commercial Services,Transport,Vehicle Spares,345,20/07/2023,2307-00741,0.00,279.24,R,Alliance Automotive UK CV LTD,No
Http://opendatacommunities.org/id/metropolitan-district-council/leeds,Leeds City Council,31/07/2023,Strategy and Resources,Commercial Services,Transport,Vehicle Spares,345,20/07/2023,2307-00742,0.00,15.00,R,Alliance Automotive UK CV LTD,No
Http://opendatacommunities.org/id/metropolitan-district-council/leeds,Leeds City Council,31/07/2023,Strategy and Resources,Commercial Services,Transport,Vehicle Spares,345,20/07/2023,2307-00743,0.00,107.72,R,Alliance Automotive UK CV LTD,No
Http://opendatacommunities.org/id/metropolitan-district-council/leeds,Leeds City Council,31/07/2023,Strategy and Resources,Commercial Services,Transport,Vehicle Spares,345,20/07/2023,2307-00744,0.00,276.66,R,Alliance Automotive UK CV LTD,No
Http://opendatacommunities.org/id/metropolitan-district-council/leeds,Leeds City Council,31/07/2023,Strategy and Resources,Commercial Services,Transport,Vehicle Spares,345,20/07/2023,2307-00745,0.00,295.02,R,Alliance Automotive UK CV LTD,No
Http://opendatacommunities.org/id/metropolitan-district-council/leeds,Leeds City Council,31/07/2023,Strategy and Resources,Commercial Services,Transport,Vehicle Spares,345,21/07/2023,2307-00746,0.00,376.21,R,Alliance Automotive UK CV LTD,No
Http://opendatacommunities.org/id/metropolitan-district-council/leeds,Leeds City Council,31/07/2023,Strategy and Resources,Commercial Services,Transport,Vehicle Spares,345,21/07/2023,2307-00747,0.00,536.62,R,Alliance Automotive UK CV LTD,No
Http://opendatacommunities.org/id/metropolitan-district-council/leeds,Leeds City Council,31/07/2023,Strategy and Resources,Commercial Services,Transport,Vehicle Spares,345,21/07/2023,2307-00748,0.00,312.77,R,Alliance Automotive UK CV LTD,No
Http://opendatacommunities.org/id/metropolitan-district-council/leeds,Leeds City Council,31/07/2023,Strategy and Resources,Commercial Services,Transport,Vehicle Spares,345,21/07/2023,2307-00749,0.00,301.99,R,Alliance Automotive UK CV LTD,No
Http://opendatacommunities.org/id/metropolitan-district-council/leeds,Leeds City Council,31/07/2023,Strategy and Resources,Commercial Services,Transport,Vehicle Spares,345,21/07/2023,2307-00750,0.00,735.77,R,Alliance Automotive UK CV LTD,No
Http://opendatacommunities.org/id/metropolitan-district-council/leeds,Leeds City Council,31/07/2023,Strategy and Resources,Commercial Services,Transport,Vehicle Spares,345,21/07/2023,2307-00751,0.00,118.27,R,Alliance Automotive UK CV LTD,No
Http://opendatacommunities.org/id/metropolitan-district-council/leeds,Leeds City Council,31/07/2023,Strategy and Resources,Commercial Services,Transport,Vehicle Spares,345,21/07/2023,2307-00752,0.00,68.12,R,Alliance Automotive UK CV LTD,No
Http://opendatacommunities.org/id/metropolitan-district-council/leeds,Leeds City Council,31/07/2023,Strategy and Resources,Commercial Services,Transport,Vehicle Spares,345,21/07/2023,2307-00753,0.00,43.07,R,Alliance Automotive UK CV LTD,No
Http://opendatacommunities.org/id/metropolitan-district-council/leeds,Leeds City Council,31/07/2023,Strategy and Resources,Commercial Services,Transport,Vehicle Spares,345,21/07/2023,2307-00754,0.00,344.41,R,Alliance Automotive UK CV LTD,No
Http://opendatacommunities.org/id/metropolitan-district-council/leeds,Leeds City Council,31/07/2023,Strategy and Resources,Commercial Services,Transport,Vehicle Spares,345,21/07/2023,2307-00755,0.00,98.65,R,Alliance Automotive UK CV LTD,No
Http://opendatacommunities.org/id/metropolitan-district-council/leeds,Leeds City Council,31/07/2023,Strategy and Resources,Commercial Services,Transport,Vehicle Spares,345,21/07/2023,2307-00756,0.00,244.26,R,Alliance Automotive UK CV LTD,No
Http://opendatacommunities.org/id/metropolitan-district-council/leeds,Leeds City Council,31/07/2023,Strategy and Resources,Commercial Services,Transport,Vehicle Spares,345,21/07/2023,2307-00757,0.00,145.83,R,Alliance Automotive UK CV LTD,No
Http://opendatacommunities.org/id/metropolitan-district-council/leeds,Leeds City Council,31/07/2023,Strategy and Resources,Commercial Services,Transport,Vehicle Spares,345,21/07/2023,2307-00758,0.00,139.41,R,Alliance Automotive UK CV LTD,No
Http://opendatacommunities.org/id/metropolitan-district-council/leeds,Leeds City Council,31/07/2023,Strategy and Resources,Commercial Services,Transport,Vehicle Spares,345,21/07/2023,2307-00759,0.00,105.32,R,Alliance Automotive UK CV LTD,No
Http://opendatacommunities.org/id/metropolitan-district-council/leeds,Leeds City Council,31/07/2023,Strategy and Resources,Commercial Services,Transport,Vehicle Spares,345,21/07/2023,2307-00760,0.00,131.67,R,Alliance Automotive UK CV LTD,No
Http://opendatacommunities.org/id/metropolitan-district-council/leeds,Leeds City Council,31/07/2023,Strategy and Resources,Commercial Services,Transport,Vehicle Spares,345,21/07/2023,2307-00761,0.00,53.16,R,Alliance Automotive UK CV LTD,No
Http://opendatacommunities.org/id/metropolitan-district-council/leeds,Leeds City Council,31/07/2023,Strategy and Resources,Commercial Services,Transport,Vehicle Spares,345,21/07/2023,2307-00762,0.00,94.82,R,Alliance Automotive UK CV LTD,No
Http://opendatacommunities.org/id/metropolitan-district-council/leeds,Leeds City Council,31/07/2023,Strategy and Resources,Commercial Services,Transport,Vehicle Spares,345,21/07/2023,2307-00763,0.00,25.72,R,Alliance Automotive UK CV LTD,No
Http://opendatacommunities.org/id/metropolitan-district-council/leeds,Leeds City Council,31/07/2023,Strategy and Resources,Commercial Services,Transport,Vehicle Spares,345,21/07/2023,2307-00764,0.00,24.33,R,Alliance Automotive UK CV LTD,No
Http://opendatacommunities.org/id/metropolitan-district-council/leeds,Leeds City Council,31/07/2023,Strategy and Resources,Commercial Services,Transport,Vehicle Spares,345,21/07/2023,2307-00765,0.00,8.29,R,Alliance Automotive UK CV LTD,No
Http://opendatacommunities.org/id/metropolitan-district-council/leeds,Leeds City Council,31/07/2023,Strategy and Resources,Commercial Services,Transport,Vehicle Spares,345,21/07/2023,2307-00766,0.00,404.87,R,Alliance Automotive UK CV LTD,No
Http://opendatacommunities.org/id/metropolitan-district-council/leeds,Leeds City Council,31/07/2023,Strategy and Resources,Commercial Services,Transport,Vehicle Spares,345,21/07/2023,2307-00767,0.00,347.09,R,Alliance Automotive UK CV LTD,No
Http://opendatacommunities.org/id/metropolitan-district-council/leeds,Leeds City Council,31/07/2023,Strategy and Resources,Commercial Services,Transport,Vehicle Spares,345,21/07/2023,2307-00768,0.00,375.16,R,Alliance Automotive UK CV LTD,No
Http://opendatacommunities.org/id/metropolitan-district-council/leeds,Leeds City Council,31/07/2023,Strategy and Resources,Commercial Services,Transport,Vehicle Spares,345,21/07/2023,2307-00769,0.00,83.16,R,Alliance Automotive UK CV LTD,No
Http://opendatacommunities.org/id/metropolitan-district-council/leeds,Leeds City Council,31/07/2023,Strategy and Resources,Commercial Services,Transport,Vehicle Spares,345,21/07/2023,2307-00770,0.00,142.17,R,Alliance Automotive UK CV LTD,No
Http://opendatacommunities.org/id/metropolitan-district-council/leeds,Leeds City Council,31/07/2023,Strategy and Resources,Commercial Services,Transport,Vehicle Spares,345,21/07/2023,2307-00771,0.00,260.35,R,Alliance Automotive UK CV LTD,No
Http://opendatacommunities.org/id/metropolitan-district-council/leeds,Leeds City Council,31/07/2023,Strategy and Resources,Commercial Services,Transport,Vehicle Spares,345,21/07/2023,2307-00772,0.00,229.62,R,Alliance Automotive UK CV LTD,No
Http://opendatacommunities.org/id/metropolitan-district-council/leeds,Leeds City Council,31/07/2023,Strategy and Resources,Commercial Services,Transport,Vehicle Spares,345,21/07/2023,2307-00773,0.00,22.28,R,Alliance Automotive UK CV LTD,No
Http://opendatacommunities.org/id/metropolitan-district-council/leeds,Leeds City Council,31/07/2023,Strategy and Resources,Commercial Services,Transport,Vehicle Spares,345,21/07/2023,2307-00774,0.00,257.88,R,Alliance Automotive UK CV LTD,No
Http://opendatacommunities.org/id/metropolitan-district-council/leeds,Leeds City Council,31/07/2023,Strategy and Resources,Commercial Services,Transport,Vehicle Spares,345,21/07/2023,2307-00775,0.00,8.83,R,Alliance Automotive UK CV LTD,No
Http://opendatacommunities.org/id/metropolitan-district-council/leeds,Leeds City Council,31/07/2023,Strategy and Resources,Commercial Services,Transport,Vehicle Spares,345,21/07/2023,2307-00776,0.00,518.67,R,Alliance Automotive UK CV LTD,No
Http://opendatacommunities.org/id/metropolitan-district-council/leeds,Leeds City Council,31/07/2023,Strategy and Resources,Commercial Services,Transport,Vehicle Spares,345,21/07/2023,2307-00777,0.00,68.81,R,Alliance Automotive UK CV LTD,No
Http://opendatacommunities.org/id/metropolitan-district-council/leeds,Leeds City Council,31/07/2023,Strategy and Resources,Commercial Services,Transport,Vehicle Spares,345,21/07/2023,2307-00778,0.00,376.19,R,Alliance Automotive UK CV LTD,No
Http://opendatacommunities.org/id/metropolitan-district-council/leeds,Leeds City Council,31/07/2023,Strategy and Resources,Commercial Services,Transport,Vehicle Spares,345,21/07/2023,2307-00779,0.00,12.78,R,Alliance Automotive UK CV LTD,No
Http://opendatacommunities.org/id/metropolitan-district-council/leeds,Leeds City Council,31/07/2023,Strategy and Resources,Commercial Services,Transport,Vehicle Spares,345,21/07/2023,2307-00780,0.00,70.15,R,Alliance Automotive UK CV LTD,No
Http://opendatacommunities.org/id/metropolitan-district-council/leeds,Leeds City Council,31/07/2023,Strategy and Resources,Commercial Services,Transport,Vehicle Spares,345,21/07/2023,2307-00781,0.00,142.17,R,Alliance Automotive UK CV LTD,No
Http://opendatacommunities.org/id/metropolitan-district-council/leeds,Leeds City Council,31/07/2023,Strategy and Resources,Commercial Services,Transport,Vehicle Spares,345,21/07/2023,2307-00782,0.00,109.32,R,Alliance Automotive UK CV LTD,No
Http://opendatacommunities.org/id/metropolitan-district-council/leeds,Leeds City Council,31/07/2023,Strategy and Resources,Commercial Services,Transport,Vehicle Spares,345,27/07/2023,2307-00783,0.00,-38.91,R,Alliance Automotive UK CV LTD,No
